BIOGUIDE_ID,OFFICE,QUARTER,CATEGORY,DATE,PAYEE,START DATE,END DATE,PURPOSE,AMOUNT,YEAR,TRANSCODE,TRANSCODELONG,RECORDID,RECIP (orig.)
,OFFICE OF THE SPEAKER,2012Q3,PERSONNEL BENEFITS,2019-07-16,HON. JOHN A. BOEHNER,2012-07-01,2012-07-31,OFFICIAL EXPENSES FOR LEADERS,"2,083.33",2012,AP,Accounts payable,489058,HON. JOHN A. BOEHNER
,OFFICE OF THE SPEAKER,2012Q3,PERSONNEL BENEFITS,2019-08-13,HON. JOHN A. BOEHNER,2012-08-01,2012-08-31,OFFICIAL EXPENSES FOR LEADERS,"2,083.33",2012,AP,Accounts payable,506324,HON. JOHN A. BOEHNER
,OFFICE OF THE SPEAKER,2012Q3,PERSONNEL BENEFITS,2019-09-14,HON. JOHN A. BOEHNER,2012-09-01,2012-09-30,OFFICIAL EXPENSES FOR LEADERS,"2,083.33",2012,AP,Accounts payable,528721,HON. JOHN A. BOEHNER
,OFFICE OF THE SPEAKER,2012Q3,FRANKED MAIL,2019-07-25,UNITED STATES POSTAL SERVICE,2012-06-01,2012-06-30,FRANKED MAIL,98.03,2012,AP,Accounts payable,497116,UNITED STATES POSTAL SERVICE
,OFFICE OF THE SPEAKER,2012Q3,FRANKED MAIL,2019-08-16,UNITED STATES POSTAL SERVICE,2012-07-01,2012-07-31,FRANKED MAIL,163.82,2012,AP,Accounts payable,508932,UNITED STATES POSTAL SERVICE
,OFFICE OF THE SPEAKER,2012Q3,FRANKED MAIL,2019-09-06,UNITED STATES POSTAL SERVICE,2012-05-01,2012-05-31,FRANKED MAIL,-118.62,2012,AP,Accounts payable,522468,UNITED STATES POSTAL SERVICE
,OFFICE OF THE SPEAKER,2012Q3,FRANKED MAIL,2019-09-06,UNITED STATES POSTAL SERVICE,2012-06-01,2012-06-30,FRANKED MAIL,-98.03,2012,AP,Accounts payable,522474,UNITED STATES POSTAL SERVICE
,OFFICE OF THE SPEAKER,2012Q3,FRANKED MAIL,2019-09-06,UNITED STATES POSTAL SERVICE,2012-01-03,2012-01-31,FRANKED MAIL,-74.97,2012,AP,Accounts payable,522478,UNITED STATES POSTAL SERVICE
,OFFICE OF THE SPEAKER,2012Q3,FRANKED MAIL,2019-09-06,UNITED STATES POSTAL SERVICE,2012-03-01,2012-03-31,FRANKED MAIL,-210.49,2012,AP,Accounts payable,522484,UNITED STATES POSTAL SERVICE
,OFFICE OF THE SPEAKER,2012Q3,FRANKED MAIL,2019-09-06,UNITED STATES POSTAL SERVICE,2012-02-01,2012-02-29,FRANKED MAIL,-128.22,2012,AP,Accounts payable,522492,UNITED STATES POSTAL SERVICE
,OFFICE OF THE SPEAKER,2012Q3,FRANKED MAIL,2019-09-06,UNITED STATES POSTAL SERVICE,2012-04-01,2012-04-30,FRANKED MAIL,-127.79,2012,AP,Accounts payable,522501,UNITED STATES POSTAL SERVICE
,OFFICE OF THE SPEAKER,2012Q3,FRANKED MAIL,2019-09-10,UNITED STATES POSTAL SERVICE,2012-07-01,2012-07-31,FRANKED MAIL,-163.82,2012,AP,Accounts payable,523831,UNITED STATES POSTAL SERVICE
,OFFICE OF THE SPEAKER,2012Q3,PERSONNEL COMPENSATION,,"ANDREWS,THOMAS S",2012-07-01,2012-09-30,SENIOR STAFF ASSISTANT,"8,000.01",2012,,,,"ANDREWS,THOMAS S"
,OFFICE OF THE SPEAKER,2012Q3,PERSONNEL COMPENSATION,,"ANDREWS,THOMAS S",2012-06-01,2012-08-31,SENIOR STAFF ASSISTANT (OVERTIME),"1,534.60",2012,,,,"ANDREWS,THOMAS S"
,OFFICE OF THE SPEAKER,2012Q3,PERSONNEL COMPENSATION,,"AVONDOGLIO,BRYANT J",2012-07-01,2012-09-30,ADVANCE & DIGITAL PRODUC MGR,"13,777.78",2012,,,,"AVONDOGLIO,BRYANT J"
,OFFICE OF THE SPEAKER,2012Q3,PERSONNEL COMPENSATION,,"BECKER,ALEXANDER M",2012-07-01,2012-09-30,STAFF ASSISTANT,"6,999.99",2012,,,,"BECKER,ALEXANDER M"
,OFFICE OF THE SPEAKER,2012Q3,PERSONNEL COMPENSATION,,"BECKER,ALEXANDER M",2012-06-01,2012-08-31,STAFF ASSISTANT (OVERTIME),923.79,2012,,,,"BECKER,ALEXANDER M"
,OFFICE OF THE SPEAKER,2012Q3,PERSONNEL COMPENSATION,,"BELAIR, BRENDAN M",2012-07-01,2012-09-30,SHARED EMPLOYEE,"20,000.01",2012,,,,"BELAIR, BRENDAN M"
,OFFICE OF THE SPEAKER,2012Q3,PERSONNEL COMPENSATION,,"BENJAMIN, WILLIAM C",2012-07-01,2012-09-30,DIR OF INFORMATION TECHNOLOGY,"23,250.00",2012,,,,"BENJAMIN, WILLIAM C"
,OFFICE OF THE SPEAKER,2012Q3,PERSONNEL COMPENSATION,,"BLAKE,KRISTENE",2012-07-01,2012-09-30,DIRECTOR OF SCHDLNG/EXEC ASST,"21,875.01",2012,,,,"BLAKE,KRISTENE"
,OFFICE OF THE SPEAKER,2012Q3,PERSONNEL COMPENSATION,,"BOYD,KATHRYN E",2012-07-01,2012-09-30,ASST COMMUNICATIONS DIRECTOR,"20,000.01",2012,,,,"BOYD,KATHRYN E"
,OFFICE OF THE SPEAKER,2012Q3,PERSONNEL COMPENSATION,,"BOZA-HOLMAN, SOFIA M",2012-07-01,2012-09-30,STAFF ASSISTANT,"6,999.99",2012,,,,"BOZA-HOLMAN, SOFIA M"
,OFFICE OF THE SPEAKER,2012Q3,PERSONNEL COMPENSATION,,"BOZA-HOLMAN, SOFIA M",2012-06-01,2012-08-31,STAFF ASSISTANT (OVERTIME),617.88,2012,,,,"BOZA-HOLMAN, SOFIA M"
,OFFICE OF THE SPEAKER,2012Q3,PERSONNEL COMPENSATION,,"BUCK, BRENDAN K",2012-07-01,2012-07-31,PRESS SECRETARY,"8,944.44",2012,,,,"BUCK, BRENDAN K"
,OFFICE OF THE SPEAKER,2012Q3,PERSONNEL COMPENSATION,,"BUNKER,ANDREW R",2012-07-01,2012-07-08,STAFF ASSISTANT,622.22,2012,,,,"BUNKER,ANDREW R"
,OFFICE OF THE SPEAKER,2012Q3,PERSONNEL COMPENSATION,,"BUNKER,ANDREW R",2012-07-09,2012-09-30,FLOOR ASSISTANT,"7,744.44",2012,,,,"BUNKER,ANDREW R"
,OFFICE OF THE SPEAKER,2012Q3,PERSONNEL COMPENSATION,,"BUNKER,ANDREW R",2012-06-04,2012-06-30,STAFF ASSISTANT (OVERTIME),292.79,2012,,,,"BUNKER,ANDREW R"
,OFFICE OF THE SPEAKER,2012Q3,PERSONNEL COMPENSATION,,"CASSIDY, ED",2012-07-01,2012-09-30,DIRECTOR OF HOUSE OPERATIONS,"42,000.00",2012,,,,"CASSIDY, ED"
,OFFICE OF THE SPEAKER,2012Q3,PERSONNEL COMPENSATION,,"CATANZARO,MICHAEL J",2012-07-01,2012-09-30,ASST TO THE SPEAKER FOR POLICY,"42,000.00",2012,,,,"CATANZARO,MICHAEL J"
,OFFICE OF THE SPEAKER,2012Q3,PERSONNEL COMPENSATION,,"DESTEFANO,JOHN",2012-07-01,2012-09-30,SR ADVISOR FOR MEMBER SERVICES,"41,250.00",2012,,,,"DESTEFANO,JOHN"
,OFFICE OF THE SPEAKER,2012Q3,PERSONNEL COMPENSATION,,"DEUTSCH,JEREMY",2012-07-01,2012-09-30,SHARED EMPLOYEE,"20,000.01",2012,,,,"DEUTSCH,JEREMY"
,OFFICE OF THE SPEAKER,2012Q3,PERSONNEL COMPENSATION,,"EASBY-SMITH,ANNE S",2012-07-12,2012-09-30,STAFF ASSISTANT,"6,144.44",2012,,,,"EASBY-SMITH,ANNE S"
,OFFICE OF THE SPEAKER,2012Q3,PERSONNEL COMPENSATION,,"EASBY-SMITH,ANNE S",2012-07-12,2012-08-31,STAFF ASSISTANT (OVERTIME),494.71,2012,,,,"EASBY-SMITH,ANNE S"
,OFFICE OF THE SPEAKER,2012Q3,PERSONNEL COMPENSATION,,"EASBY-SMITH,ANNE S",2012-07-12,2012-07-15,STAFF ASSISTANT (OTHER COMPENSATION),235,2012,,,,"EASBY-SMITH,ANNE S"
,OFFICE OF THE SPEAKER,2012Q3,PERSONNEL COMPENSATION,,"ECKARD,NASTASHA",2012-07-01,2012-09-30,LEGISLATIVE ASSISTANT,"12,999.99",2012,,,,"ECKARD,NASTASHA"
,OFFICE OF THE SPEAKER,2012Q3,PERSONNEL COMPENSATION,,"EICHHORN, JARED D",2012-07-01,2012-09-30,FLOOR ASSISTANT,"12,000.00",2012,,,,"EICHHORN, JARED D"
,OFFICE OF THE SPEAKER,2012Q3,PERSONNEL COMPENSATION,,"EMBLER, ELIZABETH G",2012-08-15,2012-09-30,DIRECTOR OF ADVANCE,"9,570.56",2012,,,,"EMBLER, ELIZABETH G"
,OFFICE OF THE SPEAKER,2012Q3,PERSONNEL COMPENSATION,,"FINNEGAN,PATRICK",2012-07-01,2012-09-30,SPECIAL ASSISTANT TO THE SPEAK,"10,749.99",2012,,,,"FINNEGAN,PATRICK"
,OFFICE OF THE SPEAKER,2012Q3,PERSONNEL COMPENSATION,,"GILLESPIE,MAURA M",2012-07-01,2012-09-30,SCHEDULING ASSISTANT,"9,999.99",2012,,,,"GILLESPIE,MAURA M"
,OFFICE OF THE SPEAKER,2012Q3,PERSONNEL COMPENSATION,,"GREEN, JO-MARIE S",2012-07-01,2012-09-30,GEN COUNSEL & CHIEF OF LEG OPS,"42,999.99",2012,,,,"GREEN, JO-MARIE S"
,OFFICE OF THE SPEAKER,2012Q3,PERSONNEL COMPENSATION,,"GREENE,WILLIAM P",2012-07-01,2012-09-30,DIRECTOR-OUTREACH,"33,825.00",2012,,,,"GREENE,WILLIAM P"
,OFFICE OF THE SPEAKER,2012Q3,PERSONNEL COMPENSATION,,"HALEY, KATHERINE C",2012-07-01,2012-09-30,ASST TO SPEAKER FOR POLICY,"22,125.00",2012,,,,"HALEY, KATHERINE C"
,OFFICE OF THE SPEAKER,2012Q3,PERSONNEL COMPENSATION,,"HARROUN, TIMOTHY J",2012-07-01,2012-09-30,MANAGER REPUBLICAN CLOAKROOM,"33,287.49",2012,,,,"HARROUN, TIMOTHY J"
,OFFICE OF THE SPEAKER,2012Q3,PERSONNEL COMPENSATION,,"HERRLE, CYNTHIA A",2012-07-01,2012-09-30,ASST TO THE SPEAKER FOR POLICY,"35,550.00",2012,,,,"HERRLE, CYNTHIA A"
,OFFICE OF THE SPEAKER,2012Q3,PERSONNEL COMPENSATION,,"HUTCHESON,NATHANIEL J",2012-07-01,2012-07-06,FLOOR ASSISTANT,666.67,2012,,,,"HUTCHESON,NATHANIEL J"
,OFFICE OF THE SPEAKER,2012Q3,PERSONNEL COMPENSATION,,"JACKSON,BARRY S",2012-07-01,2012-09-30,SR COUNSELOR TO THE SPEAKER,"32,104.17",2012,,,,"JACKSON,BARRY S"
,OFFICE OF THE SPEAKER,2012Q3,PERSONNEL COMPENSATION,,"JACKSON,BARRY S",2012-09-01,2012-09-30,SR COUNSELOR TO THE SPEAKER (OTHER COMPENSATION),"11,020.83",2012,,,,"JACKSON,BARRY S"
,OFFICE OF THE SPEAKER,2012Q3,PERSONNEL COMPENSATION,,"KAMIS,KYLA M",2012-07-01,2012-09-30,DIRECTOR OF SPECIAL EVENTS,"13,749.99",2012,,,,"KAMIS,KYLA M"
,OFFICE OF THE SPEAKER,2012Q3,PERSONNEL COMPENSATION,,"KINZEL,WILL C",2012-07-01,2012-09-30,ASST TO THE SPEAKER FOR POLICY,"28,599.99",2012,,,,"KINZEL,WILL C"
,OFFICE OF THE SPEAKER,2012Q3,PERSONNEL COMPENSATION,,"KOLEGO, TREVOR W",2012-07-01,2012-09-30,DEPUTY DIR MEMBERS SERVICES,"32,499.99",2012,,,,"KOLEGO, TREVOR W"
,OFFICE OF THE SPEAKER,2012Q3,PERSONNEL COMPENSATION,,"LAMPERT,JUSTIN",2012-07-01,2012-09-30,RESEARCH ASSISTANT,"11,250.00",2012,,,,"LAMPERT,JUSTIN"
,OFFICE OF THE SPEAKER,2012Q3,PERSONNEL COMPENSATION,,"LOPER,BRETT S",2012-07-01,2012-09-30,POLICY DIRECTOR,"42,999.99",2012,,,,"LOPER,BRETT S"
,OFFICE OF THE SPEAKER,2012Q3,PERSONNEL COMPENSATION,,"LOZUPONE, AMY S",2012-07-01,2012-09-30,DIRECTOR OF ADMIN OPERATIONS,"35,750.01",2012,,,,"LOZUPONE, AMY S"
,OFFICE OF THE SPEAKER,2012Q3,PERSONNEL COMPENSATION,,"LUKEMAN,KATHERINE A",2012-07-01,2012-09-30,ASSOCIATE COUNSEL,"12,999.99",2012,,,,"LUKEMAN,KATHERINE A"
,OFFICE OF THE SPEAKER,2012Q3,PERSONNEL COMPENSATION,,"MACDONALD, B",2012-07-01,2012-09-30,SHARED EMPLOYEE,"20,000.01",2012,,,,"MACDONALD, B"
,OFFICE OF THE SPEAKER,2012Q3,PERSONNEL COMPENSATION,,"MARSHALL,MICHAEL A",2012-07-12,2012-09-30,STAFF ASSISTANT,"6,144.44",2012,,,,"MARSHALL,MICHAEL A"
,OFFICE OF THE SPEAKER,2012Q3,PERSONNEL COMPENSATION,,"MARSHALL,MICHAEL A",2012-07-12,2012-08-31,STAFF ASSISTANT (OVERTIME),469.47,2012,,,,"MARSHALL,MICHAEL A"
,OFFICE OF THE SPEAKER,2012Q3,PERSONNEL COMPENSATION,,"MARSHALL,MICHAEL A",2012-07-12,2012-07-31,STAFF ASSISTANT (OTHER COMPENSATION),235,2012,,,,"MARSHALL,MICHAEL A"
,OFFICE OF THE SPEAKER,2012Q3,PERSONNEL COMPENSATION,,"MILLER,WILLIAM",2012-09-15,2012-09-30,STAFF ASSISTANT,"1,244.44",2012,,,,"MILLER,WILLIAM"
,OFFICE OF THE SPEAKER,2012Q3,PERSONNEL COMPENSATION,,"MILLER,WILLIAM",2012-09-15,2012-09-30,STAFF ASSISTANT (OTHER COMPENSATION),"1,088.89",2012,,,,"MILLER,WILLIAM"
,OFFICE OF THE SPEAKER,2012Q3,PERSONNEL COMPENSATION,,"MINKLER,ANN W",2012-07-01,2012-09-30,FLOOR ASSISTANT,"8,250.00",2012,,,,"MINKLER,ANN W"
,OFFICE OF THE SPEAKER,2012Q3,PERSONNEL COMPENSATION,,"PIERSON, JAY",2012-07-01,2012-09-30,FLOOR ASSISTANT,"42,099.99",2012,,,,"PIERSON, JAY"
,OFFICE OF THE SPEAKER,2012Q3,PERSONNEL COMPENSATION,,"PORTER, EMILY S",2012-07-01,2012-09-30,ASST TO THE SPEAKER FOR POLICY,"27,500.01",2012,,,,"PORTER, EMILY S"
,OFFICE OF THE SPEAKER,2012Q3,PERSONNEL COMPENSATION,,"PROPP,ELIZABETH R",2012-07-01,2012-09-30,DEPUTY PRESS SECRETARY,"14,250.00",2012,,,,"PROPP,ELIZABETH R"
,OFFICE OF THE SPEAKER,2012Q3,PERSONNEL COMPENSATION,,"RATCLIFFE,RAMSEY E",2012-06-25,2012-09-30,SPECIAL EVENTS COORDINATOR,"9,333.34",2012,,,,"RATCLIFFE,RAMSEY E"
,OFFICE OF THE SPEAKER,2012Q3,PERSONNEL COMPENSATION,,"REED, HEATHER E",2012-07-01,2012-09-30,ASSISTANT PRESS SECRETARY,"11,250.00",2012,,,,"REED, HEATHER E"
,OFFICE OF THE SPEAKER,2012Q3,PERSONNEL COMPENSATION,,"REED, MARY K",2012-07-01,2012-09-30,SHARED EMPLOYEE,"8,124.99",2012,,,,"REED, MARY K"
,OFFICE OF THE SPEAKER,2012Q3,PERSONNEL COMPENSATION,,"RICCI,MICHAEL",2012-07-01,2012-09-30,DIRECTOR OF SPEECHWRITING,"31,500.00",2012,,,,"RICCI,MICHAEL"
,OFFICE OF THE SPEAKER,2012Q3,PERSONNEL COMPENSATION,,"ROGERS, GEORGE R",2012-07-01,2012-09-30,ASST TO THE SPEAKER FOR POLICY,"37,500.00",2012,,,,"ROGERS, GEORGE R"
,OFFICE OF THE SPEAKER,2012Q3,PERSONNEL COMPENSATION,,"SAGER,MICHAEL J",2012-07-01,2012-09-30,SYSTEMS ADMINISTRATOR,"20,000.01",2012,,,,"SAGER,MICHAEL J"
,OFFICE OF THE SPEAKER,2012Q3,PERSONNEL COMPENSATION,,"SCHNITTGER, DAVID M",2012-07-01,2012-09-30,"DEP CHIEF OF STAFF,COMMUN OPS","43,125.00",2012,,,,"SCHNITTGER, DAVID M"
,OFFICE OF THE SPEAKER,2012Q3,PERSONNEL COMPENSATION,,"SEYMOUR JR, DONALD P",2012-07-01,2012-09-30,DIGITAL COMMUNICATIONS DIRECTO,"32,750.01",2012,,,,"SEYMOUR JR, DONALD P"
,OFFICE OF THE SPEAKER,2012Q3,PERSONNEL COMPENSATION,,"SKRZYCKI, KRISTIN S",2012-07-01,2012-09-30,SHARED EMPLOYEE,"20,000.01",2012,,,,"SKRZYCKI, KRISTIN S"
,OFFICE OF THE SPEAKER,2012Q3,PERSONNEL COMPENSATION,,"SMITH, KEVIN",2012-07-01,2012-09-30,DIRECTOR OF COMMUNICATIONS,"38,874.99",2012,,,,"SMITH, KEVIN"
,OFFICE OF THE SPEAKER,2012Q3,PERSONNEL COMPENSATION,,"SOMMERS, MICHAEL J",2012-07-01,2012-09-30,CHIEF OF STAFF,"43,125.00",2012,,,,"SOMMERS, MICHAEL J"
,OFFICE OF THE SPEAKER,2012Q3,PERSONNEL COMPENSATION,,"STEEL, MICHAEL",2012-07-01,2012-08-31,PRESS SECRETARY,"14,722.23",2012,,,,"STEEL, MICHAEL"
,OFFICE OF THE SPEAKER,2012Q3,PERSONNEL COMPENSATION,,"STEWART, JENNIFER M",2012-07-01,2012-09-30,ASST TO SPEAKER FOR POLICY,"27,500.01",2012,,,,"STEWART, JENNIFER M"
,OFFICE OF THE SPEAKER,2012Q3,PERSONNEL COMPENSATION,,"STRUNK, JEFFREY A",2012-07-01,2012-09-30,DEPUTY FLOOR DIRECTOR,"18,750.00",2012,,,,"STRUNK, JEFFREY A"
,OFFICE OF THE SPEAKER,2012Q3,PERSONNEL COMPENSATION,,"THORSEN, ANNE B",2012-07-01,2012-09-30,FLOOR DIRECTOR,"35,000.01",2012,,,,"THORSEN, ANNE B"
,OFFICE OF THE SPEAKER,2012Q3,PERSONNEL COMPENSATION,,"WELLINGTON III,EDMUND",2012-06-21,2012-08-31,PART-TIME EMPLOYEE,"5,444.44",2012,,,,"WELLINGTON III,EDMUND"
,OFFICE OF THE SPEAKER,2012Q3,PERSONNEL COMPENSATION,,"WELLINGTON III,EDMUND",2012-06-21,2012-07-31,PART-TIME EMPLOYEE (OVERTIME),424.03,2012,,,,"WELLINGTON III,EDMUND"
,OFFICE OF THE SPEAKER,2012Q3,PERSONNEL COMPENSATION,,"WELLINGTON III,EDMUND",2012-06-21,2012-06-21,PART-TIME EMPLOYEE (OTHER COMPENSATION),"1,555.55",2012,,,,"WELLINGTON III,EDMUND"
,OFFICE OF THE SPEAKER,2012Q3,PERSONNEL COMPENSATION,,"WOLF,ADAM J",2012-07-01,2012-07-31,SHARED EMPLOYEE,"4,166.67",2012,,,,"WOLF,ADAM J"
,OFFICE OF THE SPEAKER,2012Q3,PERSONNEL COMPENSATION,,"WOLF,ADAM J",2012-07-01,2012-07-31,SHARED EMPLOYEE (OTHER COMPENSATION),"4,166.67",2012,,,,"WOLF,ADAM J"
,OFFICE OF THE SPEAKER,2012Q3,TRAVEL,2019-07-03,"SEYMOUR JR, DONALD P",2012-06-10,2012-06-12,COMMERCIAL TRANSPORTATION,410.4,2012,AP,Accounts payable,480732,"SEYMOUR JR, DONALD P"
,OFFICE OF THE SPEAKER,2012Q3,TRAVEL,2019-07-03,"SEYMOUR JR, DONALD P",2012-06-10,2012-06-11,LODGING,647.3,2012,AP,Accounts payable,480739,"SEYMOUR JR, DONALD P"
,OFFICE OF THE SPEAKER,2012Q3,TRAVEL,2019-07-03,"SEYMOUR JR, DONALD P",2012-06-10,2012-06-12,TAXI/PARKING/TOLLS,89.44,2012,AP,Accounts payable,480744,"SEYMOUR JR, DONALD P"
,OFFICE OF THE SPEAKER,2012Q3,TRAVEL,2019-07-03,"SEYMOUR JR, DONALD P",2012-06-10,2012-06-10,MEALS,11.75,2012,AP,Accounts payable,480746,"SEYMOUR JR, DONALD P"
,OFFICE OF THE SPEAKER,2012Q3,TRAVEL,2019-07-05,"AVONDOGLIO, BRYANT J",2012-06-12,2012-06-12,TAXI/PARKING/TOLLS,25.36,2012,AP,Accounts payable,480684,"AVONDOGLIO, BRYANT J"
,OFFICE OF THE SPEAKER,2012Q3,TRAVEL,2019-07-05,"SCHNITTGER, DAVID M",2012-05-08,2012-05-08,TAXI/PARKING/TOLLS,15,2012,AP,Accounts payable,480688,"SCHNITTGER, DAVID M"
,OFFICE OF THE SPEAKER,2012Q3,TRAVEL,2019-07-06,"AVONDOGLIO, BRYANT J",2012-06-10,2012-06-12,LODGING,647.3,2012,AP,Accounts payable,482004,"AVONDOGLIO, BRYANT J"
,OFFICE OF THE SPEAKER,2012Q3,TRAVEL,2019-07-17,"SKEWES-COX,CHRISTINA J",2012-05-21,2012-05-21,PRIVATE AUTO MILEAGE,29.7,2012,AP,Accounts payable,488868,"SKEWES-COX,CHRISTINA J"
,OFFICE OF THE SPEAKER,2012Q3,TRAVEL,2019-07-24,"HALEY, KATHERINE C",2012-03-16,2012-07-17,TAXI/PARKING/TOLLS,171.4,2012,AP,Accounts payable,496377,"HALEY, KATHERINE C"
,OFFICE OF THE SPEAKER,2012Q3,TRAVEL,2019-07-24,"SMITH, KEVIN",2012-05-23,2012-06-13,TAXI/PARKING/TOLLS,39,2012,AP,Accounts payable,496378,"SMITH, KEVIN"
,OFFICE OF THE SPEAKER,2012Q3,TRAVEL,2019-07-26,"HALEY, KATHERINE C",2012-05-07,2012-05-07,COMMERCIAL TRANSPORTATION,101.7,2012,AP,Accounts payable,497367,"HALEY, KATHERINE C"
,OFFICE OF THE SPEAKER,2012Q3,TRAVEL,2019-07-30,"JACKSON,BARRY S",2012-06-08,2012-07-16,TAXI/PARKING/TOLLS,80,2012,AP,Accounts payable,499174,"JACKSON,BARRY S"
,OFFICE OF THE SPEAKER,2012Q3,TRAVEL,2019-08-10,"SKEWES-COX,CHRISTINA J",2012-05-21,2012-05-21,PRIVATE AUTO MILEAGE,-29.7,2012,AP,Accounts payable,506077,"SKEWES-COX,CHRISTINA J"
,OFFICE OF THE SPEAKER,2012Q3,TRAVEL,2019-08-20,"GREENE,WILLIAM P",2012-01-18,2012-08-01,TAXI/PARKING/TOLLS,402.5,2012,AP,Accounts payable,511346,"GREENE,WILLIAM P"
,OFFICE OF THE SPEAKER,2012Q3,TRAVEL,2019-09-26,"JACKSON,BARRY S",2012-07-27,2012-07-27,TAXI/PARKING/TOLLS,20,2012,AP,Accounts payable,535910,"JACKSON,BARRY S"
,OFFICE OF THE SPEAKER,2012Q3,TRAVEL,2019-09-26,"KINZEL,WILL C",2012-07-12,2012-07-15,PRIVATE AUTO MILEAGE,170.94,2012,AP,Accounts payable,535914,"KINZEL,WILL C"
,OFFICE OF THE SPEAKER,2012Q3,TRAVEL,2019-09-26,"KINZEL,WILL C",2012-07-12,2012-07-15,LODGING,596.7,2012,AP,Accounts payable,535918,"KINZEL,WILL C"
,OFFICE OF THE SPEAKER,2012Q3,TRAVEL,2019-09-26,"KINZEL,WILL C",2012-07-12,2012-07-15,MEALS,159.09,2012,AP,Accounts payable,535920,"KINZEL,WILL C"
,OFFICE OF THE SPEAKER,2012Q3,PRINTING AND REPRODUCTION,2019-07-17,ACCURATE WORD LLC,2012-07-03,2012-07-03,PRINTING & REPRODUCTION,91.85,2012,AP,Accounts payable,488853,ACCURATE WORD LLC
,OFFICE OF THE SPEAKER,2012Q3,PRINTING AND REPRODUCTION,2019-07-17,ACCURATE WORD LLC,2012-07-02,2012-07-02,PRINTING & REPRODUCTION,31.9,2012,AP,Accounts payable,488856,ACCURATE WORD LLC
,OFFICE OF THE SPEAKER,2012Q3,PRINTING AND REPRODUCTION,2019-07-26,,2012-07-01,2012-07-31,PHOTOGRAPHIC (TRANSFER),442.9,2012,GL,General ledger,PIX0021110,
,OFFICE OF THE SPEAKER,2012Q3,PRINTING AND REPRODUCTION,2019-08-10,ACCURATE WORD LLC,2012-07-02,2012-07-02,PRINTING & REPRODUCTION,-31.9,2012,AP,Accounts payable,506033,ACCURATE WORD LLC
,OFFICE OF THE SPEAKER,2012Q3,PRINTING AND REPRODUCTION,2019-08-10,ACCURATE WORD LLC,2012-07-03,2012-07-03,PRINTING & REPRODUCTION,-91.85,2012,AP,Accounts payable,506171,ACCURATE WORD LLC
,OFFICE OF THE SPEAKER,2012Q3,PRINTING AND REPRODUCTION,2019-08-28,,2012-08-01,2012-08-31,PHOTOGRAPHIC (TRANSFER),111.5,2012,GL,General ledger,PIX0022012,
,OFFICE OF THE SPEAKER,2012Q3,PRINTING AND REPRODUCTION,2019-09-28,,2012-09-01,2012-09-30,PHOTOGRAPHIC (TRANSFER),46.1,2012,GL,General ledger,PIX0022997,
,OFFICE OF THE SPEAKER,2012Q3,OTHER SERVICES,2019-07-03,"SEYMOUR JR, DONALD P",2012-05-25,2012-05-25,TRAINING,990,2012,AP,Accounts payable,480722,"SEYMOUR JR, DONALD P"
,OFFICE OF THE SPEAKER,2012Q3,OTHER SERVICES,2019-07-17,NJI NEW MEDIA LLC,2012-07-05,2012-07-05,"WEB DEV HST,EMAIL & RLTD SERV","6,264.00",2012,AP,Accounts payable,488849,NJI NEW MEDIA LLC
,OFFICE OF THE SPEAKER,2012Q3,OTHER SERVICES,2019-08-10,NJI NEW MEDIA LLC,2012-07-05,2012-07-05,"WEB DEV HST,EMAIL & RLTD SERV","-6,264.00",2012,AP,Accounts payable,506132,NJI NEW MEDIA LLC
,OFFICE OF THE SPEAKER,2012Q3,SUPPLIES AND MATERIALS,2019-07-06,"SCHNITTGER, DAVID M",2012-06-27,2012-06-27,FOOD & BEVERAGE,48.45,2012,AP,Accounts payable,482012,"SCHNITTGER, DAVID M"
,OFFICE OF THE SPEAKER,2012Q3,SUPPLIES AND MATERIALS,2019-07-17,THE KOSHER KITCHEN CATERING COMPANY,2012-04-18,2012-04-18,FOOD & BEVERAGE,"2,318.00",2012,AP,Accounts payable,488229,THE KOSHER KITCHEN CATERING COMPANY
,OFFICE OF THE SPEAKER,2012Q3,SUPPLIES AND MATERIALS,2019-07-17,COCA-COLA ENTERPRISES,2012-07-03,2012-07-03,FOOD & BEVERAGE,150.08,2012,AP,Accounts payable,488827,COCA-COLA ENTERPRISES
,OFFICE OF THE SPEAKER,2012Q3,SUPPLIES AND MATERIALS,2019-07-17,HAGUE QUALITY WATER OF MD INC,2012-07-04,2012-07-04,WATER,252,2012,AP,Accounts payable,488832,HAGUE QUALITY WATER OF MD INC
,OFFICE OF THE SPEAKER,2012Q3,SUPPLIES AND MATERIALS,2019-07-17,JOE RAGAN'S COFFEE LTD,2012-06-07,2012-06-07,FOOD & BEVERAGE,466.52,2012,AP,Accounts payable,488834,JOE RAGAN'S COFFEE LTD
,OFFICE OF THE SPEAKER,2012Q3,SUPPLIES AND MATERIALS,2019-07-17,JOE RAGAN'S COFFEE LTD,2012-06-14,2012-06-14,FOOD & BEVERAGE,424.78,2012,AP,Accounts payable,488837,JOE RAGAN'S COFFEE LTD
,OFFICE OF THE SPEAKER,2012Q3,SUPPLIES AND MATERIALS,2019-07-17,JOE RAGAN'S COFFEE LTD,2012-06-21,2012-06-21,FOOD & BEVERAGE,406.56,2012,AP,Accounts payable,488841,JOE RAGAN'S COFFEE LTD
,OFFICE OF THE SPEAKER,2012Q3,SUPPLIES AND MATERIALS,2019-07-17,JOE RAGAN'S COFFEE LTD,2012-06-27,2012-06-27,FOOD & BEVERAGE,711.19,2012,AP,Accounts payable,488847,JOE RAGAN'S COFFEE LTD
,OFFICE OF THE SPEAKER,2012Q3,SUPPLIES AND MATERIALS,2019-07-18,CITIBANK P CARD,2012-05-29,2012-06-28,FOOD & BEVERAGE,"4,435.65",2012,AP,Accounts payable,492994,CITIBANK P CARD
,OFFICE OF THE SPEAKER,2012Q3,SUPPLIES AND MATERIALS,2019-07-18,CITIBANK P CARD,2012-05-29,2012-06-28,HABITATION EXPENSE,470.76,2012,AP,Accounts payable,492994,CITIBANK P CARD
,OFFICE OF THE SPEAKER,2012Q3,SUPPLIES AND MATERIALS,2019-07-30,COCA-COLA REFRESHMENTS,2012-07-24,2012-07-24,FOOD & BEVERAGE,147.84,2012,AP,Accounts payable,499176,COCA-COLA REFRESHMENTS
,OFFICE OF THE SPEAKER,2012Q3,SUPPLIES AND MATERIALS,2019-08-07,JOE RAGAN'S COFFEE LTD,2012-07-09,2012-07-09,FOOD & BEVERAGE,435.37,2012,AP,Accounts payable,503293,JOE RAGAN'S COFFEE LTD
,OFFICE OF THE SPEAKER,2012Q3,SUPPLIES AND MATERIALS,2019-08-07,JOE RAGAN'S COFFEE LTD,2012-07-12,2012-07-12,FOOD & BEVERAGE,353.72,2012,AP,Accounts payable,503294,JOE RAGAN'S COFFEE LTD
,OFFICE OF THE SPEAKER,2012Q3,SUPPLIES AND MATERIALS,2019-08-07,JOE RAGAN'S COFFEE LTD,2012-07-19,2012-07-19,FOOD & BEVERAGE,513.82,2012,AP,Accounts payable,503295,JOE RAGAN'S COFFEE LTD
,OFFICE OF THE SPEAKER,2012Q3,SUPPLIES AND MATERIALS,2019-08-07,JOE RAGAN'S COFFEE LTD,2012-07-26,2012-07-26,FOOD & BEVERAGE,599.29,2012,AP,Accounts payable,503296,JOE RAGAN'S COFFEE LTD
,OFFICE OF THE SPEAKER,2012Q3,SUPPLIES AND MATERIALS,2019-08-09,JOE RAGAN'S COFFEE LTD,2012-07-02,2012-07-02,FOOD & BEVERAGE,115.5,2012,AP,Accounts payable,503292,JOE RAGAN'S COFFEE LTD
,OFFICE OF THE SPEAKER,2012Q3,SUPPLIES AND MATERIALS,2019-08-14,HAGUE QUALITY WATER OF MD INC,2012-08-04,2012-08-04,WATER,252,2012,AP,Accounts payable,506409,HAGUE QUALITY WATER OF MD INC
,OFFICE OF THE SPEAKER,2012Q3,SUPPLIES AND MATERIALS,2019-08-14,LEXIS-NEXIS,2012-05-01,2013-04-30,PUBLICATIONS/REFERENCE MAT'L,"7,514.00",2012,AP,Accounts payable,506410,LEXIS-NEXIS
,OFFICE OF THE SPEAKER,2012Q3,SUPPLIES AND MATERIALS,2019-08-20,COCA-COLA REFRESHMENTS,2012-07-31,2012-07-31,FOOD & BEVERAGE,121.2,2012,AP,Accounts payable,511345,COCA-COLA REFRESHMENTS
,OFFICE OF THE SPEAKER,2012Q3,SUPPLIES AND MATERIALS,2019-08-20,CITIBANK P CARD,2012-06-29,2012-07-28,FOOD & BEVERAGE,"2,805.17",2012,AP,Accounts payable,514287,CITIBANK P CARD
,OFFICE OF THE SPEAKER,2012Q3,SUPPLIES AND MATERIALS,2019-08-20,CITIBANK P CARD,2012-06-29,2012-07-28,HABITATION EXPENSE,39.12,2012,AP,Accounts payable,514287,CITIBANK P CARD
,OFFICE OF THE SPEAKER,2012Q3,SUPPLIES AND MATERIALS,2019-09-11,HAGUE QUALITY WATER OF MD INC,2012-09-04,2012-09-04,WATER,252,2012,AP,Accounts payable,524812,HAGUE QUALITY WATER OF MD INC
,OFFICE OF THE SPEAKER,2012Q3,SUPPLIES AND MATERIALS,2019-09-11,JOE RAGAN'S COFFEE LTD,2012-07-31,2012-07-31,FOOD & BEVERAGE,384.3,2012,AP,Accounts payable,524816,JOE RAGAN'S COFFEE LTD
,OFFICE OF THE SPEAKER,2012Q3,SUPPLIES AND MATERIALS,2019-09-11,JOE RAGAN'S COFFEE LTD,2012-08-07,2012-08-07,FOOD & BEVERAGE,300.61,2012,AP,Accounts payable,524817,JOE RAGAN'S COFFEE LTD
,OFFICE OF THE SPEAKER,2012Q3,SUPPLIES AND MATERIALS,2019-09-11,JOE RAGAN'S COFFEE LTD,2012-08-14,2012-08-14,FOOD & BEVERAGE,199.53,2012,AP,Accounts payable,524820,JOE RAGAN'S COFFEE LTD
,OFFICE OF THE SPEAKER,2012Q3,SUPPLIES AND MATERIALS,2019-09-11,JOE RAGAN'S COFFEE LTD,2012-08-21,2012-08-21,FOOD & BEVERAGE,396,2012,AP,Accounts payable,524821,JOE RAGAN'S COFFEE LTD
,OFFICE OF THE SPEAKER,2012Q3,SUPPLIES AND MATERIALS,2019-09-12,CQ ROLL CALL,2012-09-29,2013-09-28,PUBLICATIONS/REFERENCE MAT'L,"19,500.00",2012,AP,Accounts payable,524988,CQ ROLL CALL
,OFFICE OF THE SPEAKER,2012Q3,SUPPLIES AND MATERIALS,2019-09-19,CITIBANK P CARD,2012-07-29,2012-08-28,FOOD & BEVERAGE,"1,040.74",2012,AP,Accounts payable,534090,CITIBANK P CARD
,OFFICE OF THE SPEAKER,2012Q3,SUPPLIES AND MATERIALS,2019-09-20,COCA-COLA REFRESHMENTS,2012-09-11,2012-09-11,FOOD & BEVERAGE,110.4,2012,AP,Accounts payable,533871,COCA-COLA REFRESHMENTS
,OFFICE OF THE SPEAKER,2012Q3,SUPPLIES AND MATERIALS,2019-09-20,COCA-COLA REFRESHMENTS,2012-08-22,2012-08-22,FOOD & BEVERAGE,139.04,2012,AP,Accounts payable,533873,COCA-COLA REFRESHMENTS
,OFFICE OF THE SPEAKER,2012Q3,SUPPLIES AND MATERIALS,2019-09-21,FORWARD THINKING STRATEGIES,2012-09-17,2012-09-17,HABITATION EXPENSE,"6,150.00",2012,AP,Accounts payable,535026,FORWARD THINKING STRATEGIES
,OFFICE OF THE MAJORITY LEADER,2012Q3,FRANKED MAIL,2019-09-06,UNITED STATES POSTAL SERVICE,2012-01-03,2012-01-31,FRANKED MAIL,-28.97,2012,AP,Accounts payable,522478,UNITED STATES POSTAL SERVICE
,OFFICE OF THE MAJORITY LEADER,2012Q3,FRANKED MAIL,2019-09-06,UNITED STATES POSTAL SERVICE,2012-03-01,2012-03-31,FRANKED MAIL,-32.87,2012,AP,Accounts payable,522484,UNITED STATES POSTAL SERVICE
,OFFICE OF THE MAJORITY LEADER,2012Q3,FRANKED MAIL,2019-09-06,UNITED STATES POSTAL SERVICE,2012-02-01,2012-02-29,FRANKED MAIL,-49.55,2012,AP,Accounts payable,522492,UNITED STATES POSTAL SERVICE
,OFFICE OF THE MAJORITY LEADER,2012Q3,FRANKED MAIL,2019-09-06,UNITED STATES POSTAL SERVICE,2012-04-01,2012-04-30,FRANKED MAIL,-11.93,2012,AP,Accounts payable,522501,UNITED STATES POSTAL SERVICE
,OFFICE OF THE MAJORITY LEADER,2012Q3,PERSONNEL COMPENSATION,,"BARRERA,AMY D",2012-07-01,2012-09-30,DIRECTOR OF ADMINISTRATION,"3,750.00",2012,,,,"BARRERA,AMY D"
,OFFICE OF THE MAJORITY LEADER,2012Q3,PERSONNEL COMPENSATION,,"BRADLEY, NEIL L",2012-07-01,2012-09-30,DEPUTY CHEIF OF STAFF,"43,125.00",2012,,,,"BRADLEY, NEIL L"
,OFFICE OF THE MAJORITY LEADER,2012Q3,PERSONNEL COMPENSATION,,"BRAVO, MATTHEW",2012-07-01,2012-07-28,FLOOR ASSISTANT/SPECIAL ASSIST,"3,500.00",2012,,,,"BRAVO, MATTHEW"
,OFFICE OF THE MAJORITY LEADER,2012Q3,PERSONNEL COMPENSATION,,"CHRISTENSEN, AUTUMN",2012-07-01,2012-09-30,SHARED EMPLOYEE,"3,000.00",2012,,,,"CHRISTENSEN, AUTUMN"
,OFFICE OF THE MAJORITY LEADER,2012Q3,PERSONNEL COMPENSATION,,"COOPER,RORY S",2012-09-10,2012-09-30,DIRECTOR OF COMMUNICATIONS,"8,458.33",2012,,,,"COOPER,RORY S"
,OFFICE OF THE MAJORITY LEADER,2012Q3,PERSONNEL COMPENSATION,,"CUMMINGS,TIMOTHY P",2012-07-01,2012-09-30,STAFF ASSISTANT,"6,000.00",2012,,,,"CUMMINGS,TIMOTHY P"
,OFFICE OF THE MAJORITY LEADER,2012Q3,PERSONNEL COMPENSATION,,"DOLBOW, WILLIAM R",2012-07-01,2012-09-30,SENIOR ADVISOR,"43,125.00",2012,,,,"DOLBOW, WILLIAM R"
,OFFICE OF THE MAJORITY LEADER,2012Q3,PERSONNEL COMPENSATION,,"FALLON,LAENA E",2012-07-01,2012-07-20,COMMUNICATIONS DIRECTOR,"7,222.22",2012,,,,"FALLON,LAENA E"
,OFFICE OF THE MAJORITY LEADER,2012Q3,PERSONNEL COMPENSATION,,"FALLON,LAENA E",2012-07-01,2012-07-20,COMMUNICATIONS DIRECTOR (OTHER COMPENSATION),"5,958.33",2012,,,,"FALLON,LAENA E"
,OFFICE OF THE MAJORITY LEADER,2012Q3,PERSONNEL COMPENSATION,,"FARRAR,KATHARINE D",2012-07-01,2012-09-30,STAFF ASSISTANT,"6,249.99",2012,,,,"FARRAR,KATHARINE D"
,OFFICE OF THE MAJORITY LEADER,2012Q3,PERSONNEL COMPENSATION,,"FERENCE, MICHAEL J",2012-07-01,2012-09-30,DIRECTOR OF OUTREACH,"42,102.75",2012,,,,"FERENCE, MICHAEL J"
,OFFICE OF THE MAJORITY LEADER,2012Q3,PERSONNEL COMPENSATION,,"GUSTAFSON,NICOLE M",2012-07-01,2012-09-30,POLICY ADVISOR/COUNSEL,"12,833.34",2012,,,,"GUSTAFSON,NICOLE M"
,OFFICE OF THE MAJORITY LEADER,2012Q3,PERSONNEL COMPENSATION,,"HEYE,DOUGLAS R",2012-07-01,2012-09-30,DEPUTY CHIEF OF STAFF-COMMUNIC,"42,000.00",2012,,,,"HEYE,DOUGLAS R"
,OFFICE OF THE MAJORITY LEADER,2012Q3,PERSONNEL COMPENSATION,,"JAEGER, CHERYL L",2012-07-01,2012-09-30,SENIOR POLICY ADVISOR,"18,149.99",2012,,,,"JAEGER, CHERYL L"
,OFFICE OF THE MAJORITY LEADER,2012Q3,PERSONNEL COMPENSATION,,"JOSEPH,COURTNEY E",2012-07-01,2012-09-30,CONGRESSIONAL STAFF,"7,500.00",2012,,,,"JOSEPH,COURTNEY E"
,OFFICE OF THE MAJORITY LEADER,2012Q3,PERSONNEL COMPENSATION,,"KAREM,ROBERT S",2012-07-01,2012-09-30,SENIOR POLICY ADVISOR,"29,250.00",2012,,,,"KAREM,ROBERT S"
,OFFICE OF THE MAJORITY LEADER,2012Q3,PERSONNEL COMPENSATION,,"KEECH,EMILY H",2012-07-01,2012-09-30,DEPUTY DIRECTOR OF MEMBER SVCS,"7,500.00",2012,,,,"KEECH,EMILY H"
,OFFICE OF THE MAJORITY LEADER,2012Q3,PERSONNEL COMPENSATION,,"KISH,SARAH M",2012-07-01,2012-09-30,FLOOR ASSISTANT,"9,444.45",2012,,,,"KISH,SARAH M"
,OFFICE OF THE MAJORITY LEADER,2012Q3,PERSONNEL COMPENSATION,,"LIRA,MATHEW L",2012-07-01,2012-08-31,DIRECTOR OF DIGITAL MEDIA,"12,930.56",2012,,,,"LIRA,MATHEW L"
,OFFICE OF THE MAJORITY LEADER,2012Q3,PERSONNEL COMPENSATION,,"MAHAN,ROGER A",2012-07-01,2012-09-30,POLICY ADVISOR,"11,875.01",2012,,,,"MAHAN,ROGER A"
,OFFICE OF THE MAJORITY LEADER,2012Q3,PERSONNEL COMPENSATION,,"NELSON, VALERIE S",2012-07-01,2012-09-30,DIR OF MEMBER SERVICES,"28,749.99",2012,,,,"NELSON, VALERIE S"
,OFFICE OF THE MAJORITY LEADER,2012Q3,PERSONNEL COMPENSATION,,"NEVINS, KYLE W",2012-07-01,2012-09-30,DEPUTY CHIEF OF STAFF,"43,125.00",2012,,,,"NEVINS, KYLE W"
,OFFICE OF THE MAJORITY LEADER,2012Q3,PERSONNEL COMPENSATION,,"STOMBRES, STEVEN C",2012-07-01,2012-09-30,CHIEF OF STAFF,"43,125.00",2012,,,,"STOMBRES, STEVEN C"
,OFFICE OF THE MAJORITY LEADER,2012Q3,PERSONNEL COMPENSATION,,"STRAUS,JESSICA",2012-07-01,2012-09-30,ASSISTANT PRESS SECRETARY,"13,500.00",2012,,,,"STRAUS,JESSICA"
,OFFICE OF THE MAJORITY LEADER,2012Q3,PERSONNEL COMPENSATION,,"VIESON, CHRISTOPHER W",2012-07-01,2012-09-30,DEPUTY DIRECTOR OF FLOOR OPERA,"29,250.00",2012,,,,"VIESON, CHRISTOPHER W"
,OFFICE OF THE MAJORITY LEADER,2012Q3,PERSONNEL COMPENSATION,,"WALSH,WILLIAM C",2012-07-01,2012-09-30,DEPUTY DIR OF DIGITAL SERVICES,"9,999.99",2012,,,,"WALSH,WILLIAM C"
,OFFICE OF THE MAJORITY LEADER,2012Q3,PERSONNEL COMPENSATION,,"WILLIAMS, KELLY K",2012-07-01,2012-09-30,FINANCIAL ADMINISTRATOR,"7,000.00",2012,,,,"WILLIAMS, KELLY K"
,OFFICE OF THE MAJORITY LEADER,2012Q3,PERSONNEL COMPENSATION,,"ZACKON,MATTHEW R",2012-07-01,2012-09-30,SPECIAL ASSISTANT,"6,249.99",2012,,,,"ZACKON,MATTHEW R"
,OFFICE OF THE MAJORITY LEADER,2012Q3,TRAVEL,2019-07-24,"CUMMINGS, TIMOTHY P",2012-06-18,2012-07-19,PRIVATE AUTO MILEAGE,24.24,2012,AP,Accounts payable,496493,"CUMMINGS, TIMOTHY P"
,OFFICE OF THE MAJORITY LEADER,2012Q3,TRAVEL,2019-07-24,"JAEGER, CHERYL L",2012-07-11,2012-07-11,TAXI/PARKING/TOLLS,20,2012,AP,Accounts payable,496517,"JAEGER, CHERYL L"
,OFFICE OF THE MAJORITY LEADER,2012Q3,TRAVEL,2019-07-26,"FARRAR, KATHARINE D",2012-06-25,2012-07-16,PRIVATE AUTO MILEAGE,11.62,2012,AP,Accounts payable,498045,"FARRAR, KATHARINE D"
,OFFICE OF THE MAJORITY LEADER,2012Q3,TRAVEL,2019-07-27,"JAEGER, CHERYL L",2012-06-22,2012-06-23,PRIVATE AUTO MILEAGE,248.46,2012,AP,Accounts payable,498189,"JAEGER, CHERYL L"
,OFFICE OF THE MAJORITY LEADER,2012Q3,TRAVEL,2019-08-14,"NELSON, VALERIE S",2012-06-27,2012-07-17,TAXI/PARKING/TOLLS,60,2012,AP,Accounts payable,506415,"NELSON, VALERIE S"
,OFFICE OF THE MAJORITY LEADER,2012Q3,TRAVEL,2019-09-28,"KEECH, EMILY H",2012-09-12,2012-09-12,PRIVATE AUTO MILEAGE,12.12,2012,AP,Accounts payable,538702,"KEECH, EMILY H"
,OFFICE OF THE MAJORITY LEADER,2012Q3,PRINTING AND REPRODUCTION,2019-07-13,CITIBANK P CARD,2012-03-29,2012-04-28,PRINTING & REPRODUCTION,-49,2012,AP,Accounts payable,486546,CITIBANK P CARD
,OFFICE OF THE MAJORITY LEADER,2012Q3,PRINTING AND REPRODUCTION,2019-07-26,,2012-07-01,2012-07-31,PHOTOGRAPHIC (TRANSFER),58.8,2012,GL,General ledger,PIX0021110,
,OFFICE OF THE MAJORITY LEADER,2012Q3,PRINTING AND REPRODUCTION,2019-08-20,CITIBANK P CARD,2012-06-29,2012-07-28,ADVERTISEMENTS,29.99,2012,AP,Accounts payable,514287,CITIBANK P CARD
,OFFICE OF THE MAJORITY LEADER,2012Q3,PRINTING AND REPRODUCTION,2019-08-28,,2012-08-01,2012-08-31,PHOTOGRAPHIC (TRANSFER),68.5,2012,GL,General ledger,PIX0022012,
,OFFICE OF THE MAJORITY LEADER,2012Q3,PRINTING AND REPRODUCTION,2019-09-20,SHARP ELECTRONICS CORPORATION,2012-07-01,2012-07-01,PRINTING & REPRODUCTION,165.36,2012,AP,Accounts payable,533860,SHARP ELECTRONICS CORPORATION
,OFFICE OF THE MAJORITY LEADER,2012Q3,PRINTING AND REPRODUCTION,2019-09-28,,2012-09-01,2012-09-30,PHOTOGRAPHIC (TRANSFER),19.2,2012,GL,General ledger,PIX0022997,
,OFFICE OF THE MAJORITY LEADER,2012Q3,OTHER SERVICES,2019-07-27,CRAFT MEDIA DIGITAL,2012-08-01,2012-08-31,"WEB DEV HST,EMAIL & RLTD SERV","2,500.00",2012,AP,Accounts payable,498184,CRAFT MEDIA DIGITAL
,OFFICE OF THE MAJORITY LEADER,2012Q3,OTHER SERVICES,2019-08-20,CITIBANK P CARD,2012-06-29,2012-07-28,"WEB DEV HST,EMAIL & RLTD SERV","1,057.71",2012,AP,Accounts payable,514287,CITIBANK P CARD
,OFFICE OF THE MAJORITY LEADER,2012Q3,SUPPLIES AND MATERIALS,2019-07-18,CITIBANK P CARD,2012-05-29,2012-06-28,WATER,420.97,2012,AP,Accounts payable,492994,CITIBANK P CARD
,OFFICE OF THE MAJORITY LEADER,2012Q3,SUPPLIES AND MATERIALS,2019-07-18,CITIBANK P CARD,2012-05-29,2012-06-28,FOOD & BEVERAGE,"1,121.89",2012,AP,Accounts payable,492994,CITIBANK P CARD
,OFFICE OF THE MAJORITY LEADER,2012Q3,SUPPLIES AND MATERIALS,2019-07-18,CITIBANK P CARD,2012-05-29,2012-06-28,PUBLICATIONS/REFERENCE MAT'L,367.11,2012,AP,Accounts payable,492994,CITIBANK P CARD
,OFFICE OF THE MAJORITY LEADER,2012Q3,SUPPLIES AND MATERIALS,2019-07-20,DEER PARK WATER,2012-06-27,2012-07-26,FOOD & BEVERAGE,71.48,2012,AP,Accounts payable,494916,DEER PARK WATER
,OFFICE OF THE MAJORITY LEADER,2012Q3,SUPPLIES AND MATERIALS,2019-07-24,CANTEEN / HIGHLAND ESTATES COFFEE TRADER,2012-07-06,2012-07-06,FOOD & BEVERAGE,972.46,2012,AP,Accounts payable,496496,CANTEEN / HIGHLAND ESTATES COFFEE TRADER
,OFFICE OF THE MAJORITY LEADER,2012Q3,SUPPLIES AND MATERIALS,2019-07-24,LEXIS-NEXIS,2012-06-01,2012-06-30,PUBLICATIONS/REFERENCE MAT'L,625,2012,AP,Accounts payable,496520,LEXIS-NEXIS
,OFFICE OF THE MAJORITY LEADER,2012Q3,SUPPLIES AND MATERIALS,2019-07-24,CITIBANK P CARD,2012-05-29,2012-06-28,PUBLICATIONS/REFERENCE MAT'L,-169.09,2012,AP,Accounts payable,496821,CITIBANK P CARD
,OFFICE OF THE MAJORITY LEADER,2012Q3,SUPPLIES AND MATERIALS,2019-08-20,CITIBANK P CARD,2012-06-29,2012-07-28,WATER,71.48,2012,AP,Accounts payable,514287,CITIBANK P CARD
,OFFICE OF THE MAJORITY LEADER,2012Q3,SUPPLIES AND MATERIALS,2019-08-20,CITIBANK P CARD,2012-06-29,2012-07-28,FOOD & BEVERAGE,937.92,2012,AP,Accounts payable,514287,CITIBANK P CARD
,OFFICE OF THE MAJORITY LEADER,2012Q3,SUPPLIES AND MATERIALS,2019-08-20,CITIBANK P CARD,2012-06-29,2012-07-28,PUBLICATIONS/REFERENCE MAT'L,436,2012,AP,Accounts payable,514287,CITIBANK P CARD
,OFFICE OF THE MAJORITY LEADER,2012Q3,SUPPLIES AND MATERIALS,2019-09-19,CITIBANK P CARD,2012-07-29,2012-08-28,WATER,766.24,2012,AP,Accounts payable,534090,CITIBANK P CARD
,OFFICE OF THE MAJORITY LEADER,2012Q3,SUPPLIES AND MATERIALS,2019-09-19,CITIBANK P CARD,2012-07-29,2012-08-28,FOOD & BEVERAGE,214.92,2012,AP,Accounts payable,534090,CITIBANK P CARD
,OFFICE OF THE MAJORITY LEADER,2012Q3,SUPPLIES AND MATERIALS,2019-09-20,DEER PARK WATER,2012-06-27,2012-07-26,FOOD & BEVERAGE,766.24,2012,AP,Accounts payable,533855,DEER PARK WATER
,OFFICE OF THE MAJORITY LEADER,2012Q3,SUPPLIES AND MATERIALS,2019-09-24,CANTEEN / HIGHLAND ESTATES COFFEE TRADER,2012-09-04,2012-09-04,FOOD & BEVERAGE,503.72,2012,AP,Accounts payable,534745,CANTEEN / HIGHLAND ESTATES COFFEE TRADER
,OFFICE OF THE MAJORITY LEADER,2012Q3,SUPPLIES AND MATERIALS,2019-09-24,DEER PARK WATER,2012-07-27,2012-08-26,FOOD & BEVERAGE,339.97,2012,AP,Accounts payable,534747,DEER PARK WATER
,OFFICE OF THE MAJORITY LEADER,2012Q3,SUPPLIES AND MATERIALS,2019-09-24,"CUMMINGS, TIMOTHY P",2012-09-04,2012-09-04,FOOD & BEVERAGE,8.18,2012,AP,Accounts payable,534749,"CUMMINGS, TIMOTHY P"
,OFFICE OF THE MINORITY LEADER,2012Q3,FRANKED MAIL,2019-09-06,UNITED STATES POSTAL SERVICE,2012-01-03,2012-01-31,FRANKED MAIL,-68.23,2012,AP,Accounts payable,522478,UNITED STATES POSTAL SERVICE
,OFFICE OF THE MINORITY LEADER,2012Q3,FRANKED MAIL,2019-09-06,UNITED STATES POSTAL SERVICE,2012-03-01,2012-03-31,FRANKED MAIL,-23.15,2012,AP,Accounts payable,522484,UNITED STATES POSTAL SERVICE
,OFFICE OF THE MINORITY LEADER,2012Q3,FRANKED MAIL,2019-09-06,UNITED STATES POSTAL SERVICE,2012-02-01,2012-02-29,FRANKED MAIL,-35.34,2012,AP,Accounts payable,522492,UNITED STATES POSTAL SERVICE
,OFFICE OF THE MINORITY LEADER,2012Q3,FRANKED MAIL,2019-09-06,UNITED STATES POSTAL SERVICE,2012-04-01,2012-04-30,FRANKED MAIL,-75.27,2012,AP,Accounts payable,522501,UNITED STATES POSTAL SERVICE
,OFFICE OF THE MINORITY LEADER,2012Q3,PERSONNEL COMPENSATION,,"ABOUCHAR, KEITH S",2012-07-01,2012-09-30,SENIOR POLICY ADVISOR,"32,700.00",2012,,,,"ABOUCHAR, KEITH S"
,OFFICE OF THE MINORITY LEADER,2012Q3,PERSONNEL COMPENSATION,,"BARRY,MARY K",2012-07-01,2012-09-30,DEPUTY DIRECTOR OF ADVANCE,"18,750.00",2012,,,,"BARRY,MARY K"
,OFFICE OF THE MINORITY LEADER,2012Q3,PERSONNEL COMPENSATION,,"BLOOM, MICHAEL T",2012-07-01,2012-09-30,DEPUTY POLICY DIRECTOR,"19,340.76",2012,,,,"BLOOM, MICHAEL T"
,OFFICE OF THE MINORITY LEADER,2012Q3,PERSONNEL COMPENSATION,,"BURNES, AUSTIN W",2012-07-01,2012-07-31,DIR. OF LEGISLATIVE OPERATIONS,"9,900.00",2012,,,,"BURNES, AUSTIN W"
,OFFICE OF THE MINORITY LEADER,2012Q3,PERSONNEL COMPENSATION,,"CAPRON, MARGARET W",2012-07-01,2012-09-30,SENIOR ADV POLICY & COMM,"31,924.26",2012,,,,"CAPRON, MARGARET W"
,OFFICE OF THE MINORITY LEADER,2012Q3,PERSONNEL COMPENSATION,,"CASHMAN,MARY D",2012-07-01,2012-09-30,ASST TO THE CHIEF OF STAFF,"18,000.00",2012,,,,"CASHMAN,MARY D"
,OFFICE OF THE MINORITY LEADER,2012Q3,PERSONNEL COMPENSATION,,"CHARVILLE,BRIDGET F",2012-07-01,2012-09-30,DIRECTOR OF PROTOCOL,"29,466.75",2012,,,,"CHARVILLE,BRIDGET F"
,OFFICE OF THE MINORITY LEADER,2012Q3,PERSONNEL COMPENSATION,,"CHERRY,STEPHANIE",2012-07-01,2012-09-30,PRESS ADVISOR,"17,962.26",2012,,,,"CHERRY,STEPHANIE"
,OFFICE OF THE MINORITY LEADER,2012Q3,PERSONNEL COMPENSATION,,"COVEY-BRANDT, ALEXIS",2012-07-01,2012-09-30,FLOOR DIRECTOR,"42,825.00",2012,,,,"COVEY-BRANDT, ALEXIS"
,OFFICE OF THE MINORITY LEADER,2012Q3,PERSONNEL COMPENSATION,,"DAY,TAMIKA K",2012-07-01,2012-09-30,SR STAFF ASST SYS ADMIN,"12,500.01",2012,,,,"DAY,TAMIKA K"
,OFFICE OF THE MINORITY LEADER,2012Q3,PERSONNEL COMPENSATION,,"DEGRAFF, KENNETH B",2012-07-01,2012-09-30,SENIOR POLICY ADVISOR,"28,749.99",2012,,,,"DEGRAFF, KENNETH B"
,OFFICE OF THE MINORITY LEADER,2012Q3,PERSONNEL COMPENSATION,,"DEVLIN, PATRICK J",2012-07-01,2012-09-30,COMMUNICATIONS DIRECTOR,"31,250.01",2012,,,,"DEVLIN, PATRICK J"
,OFFICE OF THE MINORITY LEADER,2012Q3,PERSONNEL COMPENSATION,,"DEWHIRST, DIANE",2012-07-01,2012-09-30,SENIOR ADVISOR,"29,499.99",2012,,,,"DEWHIRST, DIANE"
,OFFICE OF THE MINORITY LEADER,2012Q3,PERSONNEL COMPENSATION,,"ELLISON,MATTHEW B",2012-07-01,2012-09-30,RESEARCH ASSISTANT,"7,500.00",2012,,,,"ELLISON,MATTHEW B"
,OFFICE OF THE MINORITY LEADER,2012Q3,PERSONNEL COMPENSATION,,"ELSHAMI,NADEEM",2012-07-01,2012-09-30,COMM DIR/SENIOR ADVISOR (STAT),"43,125.00",2012,,,,"ELSHAMI,NADEEM"
,OFFICE OF THE MINORITY LEADER,2012Q3,PERSONNEL COMPENSATION,,"FISCHER JR, ROBERT V",2012-07-01,2012-09-30,ASST FLOOR CHIEF,"33,289.50",2012,,,,"FISCHER JR, ROBERT V"
,OFFICE OF THE MINORITY LEADER,2012Q3,PERSONNEL COMPENSATION,,"GEORGE,EVANGELINE M",2012-07-01,2012-09-30,PRESS ADVISOR,"13,875.00",2012,,,,"GEORGE,EVANGELINE M"
,OFFICE OF THE MINORITY LEADER,2012Q3,PERSONNEL COMPENSATION,,"GREENER, APRIL L",2012-07-01,2012-09-30,RESEARCH DIRECTOR,"21,249.99",2012,,,,"GREENER, APRIL L"
,OFFICE OF THE MINORITY LEADER,2012Q3,PERSONNEL COMPENSATION,,"HAMMILL, ANDREW T",2012-07-01,2012-09-30,PRESS SEC & DEPUTY COMM DIR,"40,968.00",2012,,,,"HAMMILL, ANDREW T"
,OFFICE OF THE MINORITY LEADER,2012Q3,PERSONNEL COMPENSATION,,"HARTZ, JERRY",2012-07-01,2012-09-30,DIRECTOR OF FLOOR OPERATIONS,"43,125.00",2012,,,,"HARTZ, JERRY"
,OFFICE OF THE MINORITY LEADER,2012Q3,PERSONNEL COMPENSATION,,"HAYNES JR, WILFRED J",2012-07-01,2012-09-30,IT DIRECTOR,"24,530.49",2012,,,,"HAYNES JR, WILFRED J"
,OFFICE OF THE MINORITY LEADER,2012Q3,PERSONNEL COMPENSATION,,"HUGHES,JOHN C",2012-07-01,2012-09-30,SENIOR POLICY ADVISOR,"32,199.99",2012,,,,"HUGHES,JOHN C"
,OFFICE OF THE MINORITY LEADER,2012Q3,PERSONNEL COMPENSATION,,"IVESTER, WREN",2012-07-01,2012-09-30,ASST FLOOR CHIEF,"29,974.50",2012,,,,"IVESTER, WREN"
,OFFICE OF THE MINORITY LEADER,2012Q3,PERSONNEL COMPENSATION,,"JUDGE, KRISTINE A",2012-07-01,2012-09-30,SENIOR ADVISOR/POLICY COMM,"31,924.26",2012,,,,"JUDGE, KRISTINE A"
,OFFICE OF THE MINORITY LEADER,2012Q3,PERSONNEL COMPENSATION,,"KEITA,KAMILAH Z",2012-07-01,2012-09-30,DEPUTY INFOMATION TECH. DIRECT,"22,283.01",2012,,,,"KEITA,KAMILAH Z"
,OFFICE OF THE MINORITY LEADER,2012Q3,PERSONNEL COMPENSATION,,"KING,RYAN M",2012-07-01,2012-09-30,PRESS ASSISTANT,"8,250.00",2012,,,,"KING,RYAN M"
,OFFICE OF THE MINORITY LEADER,2012Q3,PERSONNEL COMPENSATION,,"KING,RYAN M",2012-06-01,2012-08-31,PRESS ASSISTANT (OVERTIME),"3,212.70",2012,,,,"KING,RYAN M"
,OFFICE OF THE MINORITY LEADER,2012Q3,PERSONNEL COMPENSATION,,"KUNDANIS, GEORGE",2012-07-01,2012-09-30,DEPUTY CHIEF OF STAFF,"43,125.00",2012,,,,"KUNDANIS, GEORGE"
,OFFICE OF THE MINORITY LEADER,2012Q3,PERSONNEL COMPENSATION,,"LAWRENCE, JOHN A",2012-07-01,2012-09-30,CHIEF OF STAFF,"43,125.00",2012,,,,"LAWRENCE, JOHN A"
,OFFICE OF THE MINORITY LEADER,2012Q3,PERSONNEL COMPENSATION,,"LIZARRAGA, JAIME E",2012-07-01,2012-09-30,SR ADV & DIR OF MEMBER SVC,"39,905.49",2012,,,,"LIZARRAGA, JAIME E"
,OFFICE OF THE MINORITY LEADER,2012Q3,PERSONNEL COMPENSATION,,"LONG,MICHAEL G",2012-07-01,2012-09-30,DEPUTY DIRECTOR OF MEMBER SVCS,"18,750.00",2012,,,,"LONG,MICHAEL G"
,OFFICE OF THE MINORITY LEADER,2012Q3,PERSONNEL COMPENSATION,,"MAHR,THOMAS",2012-08-01,2012-09-30,POLICY DIRECTOR,"19,800.00",2012,,,,"MAHR,THOMAS"
,OFFICE OF THE MINORITY LEADER,2012Q3,PERSONNEL COMPENSATION,,"MANGRUM, PEARL J",2012-07-01,2012-09-30,FINANCIAL ADMINISTRATOR,"12,875.01",2012,,,,"MANGRUM, PEARL J"
,OFFICE OF THE MINORITY LEADER,2012Q3,PERSONNEL COMPENSATION,,"MEDLIN,MELINDA L",2012-07-01,2012-09-30,DIRECTOR OF SCHEDULING,"35,847.00",2012,,,,"MEDLIN,MELINDA L"
,OFFICE OF THE MINORITY LEADER,2012Q3,PERSONNEL COMPENSATION,,"MELTZER,RICHARD",2012-07-01,2012-09-30,POLICY DIRECTOR,"43,125.00",2012,,,,"MELTZER,RICHARD"
,OFFICE OF THE MINORITY LEADER,2012Q3,PERSONNEL COMPENSATION,,"MILLER,AMY M",2012-07-01,2012-09-30,SENIOR ADVISOR,"24,999.99",2012,,,,"MILLER,AMY M"
,OFFICE OF THE MINORITY LEADER,2012Q3,PERSONNEL COMPENSATION,,"O'NEILL, CATLIN W",2012-07-01,2012-09-30,CHIEF OF STAFF,"18,750.00",2012,,,,"O'NEILL, CATLIN W"
,OFFICE OF THE MINORITY LEADER,2012Q3,PERSONNEL COMPENSATION,,"PARDUE, LAURA E",2012-08-06,2012-09-30,DEPUTY DIR. - FLOOR OPERATIONS,"19,097.23",2012,,,,"PARDUE, LAURA E"
,OFFICE OF THE MINORITY LEADER,2012Q3,PERSONNEL COMPENSATION,,"PARKER, WYNDEE R",2012-07-01,2012-09-30,SENIOR POLICY ADVISOR,"43,125.00",2012,,,,"PARKER, WYNDEE R"
,OFFICE OF THE MINORITY LEADER,2012Q3,PERSONNEL COMPENSATION,,"PATTI,VERNA A",2012-07-01,2012-09-30,DISTRICT SCHEDULER,"3,000.00",2012,,,,"PATTI,VERNA A"
,OFFICE OF THE MINORITY LEADER,2012Q3,PERSONNEL COMPENSATION,,"PEPPER, LORI J",2012-07-01,2012-08-03,DEPUTY DIR. - FLOOR OPERATIONS,"11,458.34",2012,,,,"PEPPER, LORI J"
,OFFICE OF THE MINORITY LEADER,2012Q3,PERSONNEL COMPENSATION,,"PEPPER, LORI J",2012-08-01,2012-08-03,DEPUTY DIR. - FLOOR OPERATIONS (OTHER COMPENSATION),"10,416.67",2012,,,,"PEPPER, LORI J"
,OFFICE OF THE MINORITY LEADER,2012Q3,PERSONNEL COMPENSATION,,"POWELL,JONATHAN M",2012-07-01,2012-09-30,DEPUTY SPEECHWRITER,"20,000.01",2012,,,,"POWELL,JONATHAN M"
,OFFICE OF THE MINORITY LEADER,2012Q3,PERSONNEL COMPENSATION,,"PRICE, REVA B",2012-07-01,2012-09-30,OUTREACH DIRECTOR & ADVISOR,"31,924.26",2012,,,,"PRICE, REVA B"
,OFFICE OF THE MINORITY LEADER,2012Q3,PERSONNEL COMPENSATION,,"PRIMUS, WENDELL E",2012-07-01,2012-09-30,SENIOR POLICY ADVISOR,"43,125.00",2012,,,,"PRIMUS, WENDELL E"
,OFFICE OF THE MINORITY LEADER,2012Q3,PERSONNEL COMPENSATION,,"REPKO,MARY F",2012-07-01,2012-09-30,SENIOR POLICY ADVISOR,"32,949.99",2012,,,,"REPKO,MARY F"
,OFFICE OF THE MINORITY LEADER,2012Q3,PERSONNEL COMPENSATION,,"ROLLAND,STACEY L",2012-07-01,2012-09-30,POLICY ADVISOR - TAX,"30,000.00",2012,,,,"ROLLAND,STACEY L"
,OFFICE OF THE MINORITY LEADER,2012Q3,PERSONNEL COMPENSATION,,"ROMICK, BRIAN",2012-07-01,2012-09-30,MEMBER SERVICES DIRECTOR,"35,949.99",2012,,,,"ROMICK, BRIAN"
,OFFICE OF THE MINORITY LEADER,2012Q3,PERSONNEL COMPENSATION,,"SANCHEZ, CARLOS S",2012-07-01,2012-09-30,PRESS ADVISOR,"20,000.01",2012,,,,"SANCHEZ, CARLOS S"
,OFFICE OF THE MINORITY LEADER,2012Q3,PERSONNEL COMPENSATION,,"SCHMIDT, AARON",2012-07-01,2012-09-30,POLICY ADVISOR,"22,500.00",2012,,,,"SCHMIDT, AARON"
,OFFICE OF THE MINORITY LEADER,2012Q3,PERSONNEL COMPENSATION,,"SCHULTZ, AMY R",2012-09-01,2012-09-30,SENIOR POLICY ADVISOR (OTHER COMPENSATION),"-3,000.00",2012,,,,"SCHULTZ, AMY R"
,OFFICE OF THE MINORITY LEADER,2012Q3,PERSONNEL COMPENSATION,,"SCHULTZ, AMY R",2012-09-01,2012-09-30,SENIOR POLICY ADVISOR (OTHER COMPENSATION),"3,000.00",2012,,,,"SCHULTZ, AMY R"
,OFFICE OF THE MINORITY LEADER,2012Q3,PERSONNEL COMPENSATION,,"SHAKIR,FAIZ R",2012-07-01,2012-09-30,DIR OF NEW MEDIA & SENIOR ADV,"33,750.00",2012,,,,"SHAKIR,FAIZ R"
,OFFICE OF THE MINORITY LEADER,2012Q3,PERSONNEL COMPENSATION,,"SINGLETARY, BARVETTA",2012-07-01,2012-09-30,POLICY DIRECTOR,"33,249.99",2012,,,,"SINGLETARY, BARVETTA"
,OFFICE OF THE MINORITY LEADER,2012Q3,PERSONNEL COMPENSATION,,"SKEWES-COX,CHRISTINA J",2012-07-01,2012-09-30,ADVANCE DIRECTOR,"20,000.01",2012,,,,"SKEWES-COX,CHRISTINA J"
,OFFICE OF THE MINORITY LEADER,2012Q3,PERSONNEL COMPENSATION,,"SMITH,KELSEY L",2012-07-01,2012-09-30,DEPUTY DIRECTOR OF SCHEDULING,"11,375.01",2012,,,,"SMITH,KELSEY L"
,OFFICE OF THE MINORITY LEADER,2012Q3,PERSONNEL COMPENSATION,,"SMITH,KELSEY L",2012-06-01,2012-08-31,DEPUTY DIRECTOR OF SCHEDULING (OVERTIME),"4,068.70",2012,,,,"SMITH,KELSEY L"
,OFFICE OF THE MINORITY LEADER,2012Q3,PERSONNEL COMPENSATION,,"STIVERS, JONATHAN",2012-07-01,2012-09-30,SENIOR ADVISOR,"35,000.01",2012,,,,"STIVERS, JONATHAN"
,OFFICE OF THE MINORITY LEADER,2012Q3,PERSONNEL COMPENSATION,,"SULLIVAN, BARRY K",2012-07-01,2012-09-30,CHIEF FLOOR SERVICE (MIN),"43,125.00",2012,,,,"SULLIVAN, BARRY K"
,OFFICE OF THE MINORITY LEADER,2012Q3,PERSONNEL COMPENSATION,,"SURGEON,BINA G",2012-07-01,2012-09-30,SPECIAL ASST TO THE LEADER,"17,499.99",2012,,,,"SURGEON,BINA G"
,OFFICE OF THE MINORITY LEADER,2012Q3,PERSONNEL COMPENSATION,,"TECKLENBURG, MICHAEL H",2012-07-01,2012-09-30,COUNSEL,"32,499.99",2012,,,,"TECKLENBURG, MICHAEL H"
,OFFICE OF THE MINORITY LEADER,2012Q3,PERSONNEL COMPENSATION,,"UENG,STEPHANIE L",2012-07-01,2012-09-30,OUTREACH ADVISOR,"13,681.50",2012,,,,"UENG,STEPHANIE L"
,OFFICE OF THE MINORITY LEADER,2012Q3,PERSONNEL COMPENSATION,,"VEITCH, ALEXANDRA N",2012-07-01,2012-09-30,DIRECTOR OF SPEECHWRITING,"28,165.50",2012,,,,"VEITCH, ALEXANDRA N"
,OFFICE OF THE MINORITY LEADER,2012Q3,PERSONNEL COMPENSATION,,"WATKINS, YELBERTON R",2012-07-01,2012-09-30,CHIEF OF STAFF,"41,250.00",2012,,,,"WATKINS, YELBERTON R"
,OFFICE OF THE MINORITY LEADER,2012Q3,PERSONNEL COMPENSATION,,"WEST,JULIUS L",2012-07-01,2012-09-30,DISTRICT ASSISTANT,"11,250.00",2012,,,,"WEST,JULIUS L"
,OFFICE OF THE MINORITY LEADER,2012Q3,PERSONNEL COMPENSATION,,"WILEDEN,LYDIA",2012-07-01,2012-09-30,STAFF ASST/PERSONAL CORR,"8,250.00",2012,,,,"WILEDEN,LYDIA"
,OFFICE OF THE MINORITY LEADER,2012Q3,PERSONNEL COMPENSATION,,"WILEDEN,LYDIA",2012-06-01,2012-06-30,STAFF ASSISTANT (OVERTIME),"1,701.54",2012,,,,"WILEDEN,LYDIA"
,OFFICE OF THE MINORITY LEADER,2012Q3,PERSONNEL COMPENSATION,,"WILEDEN,LYDIA",2012-07-01,2012-08-31,STAFF ASST/PERSONAL CORR (OVERTIME),"2,480.92",2012,,,,"WILEDEN,LYDIA"
,OFFICE OF THE MINORITY LEADER,2012Q3,PERSONNEL COMPENSATION,,"WOLTERS, KATE",2012-07-01,2012-09-30,PERSONAL ASSISTANT,"34,646.49",2012,,,,"WOLTERS, KATE"
,OFFICE OF THE MINORITY LEADER,2012Q3,TRAVEL,2019-07-03,"STIVERS, JONATHAN",2012-06-05,2012-06-05,TRAVEL SUBSISTENCE,-58.8,2012,AR,Accounts receivable,AC-06018,"STIVERS, JONATHAN"
,OFFICE OF THE MINORITY LEADER,2012Q3,TRAVEL,2019-07-05,"WILEDEN, LYDIA",2012-06-13,2012-06-13,TAXI/PARKING/TOLLS,50,2012,AP,Accounts payable,481776,"WILEDEN, LYDIA"
,OFFICE OF THE MINORITY LEADER,2012Q3,TRAVEL,2019-07-05,"BARRY, MARY-KATE",2012-06-22,2012-06-22,TAXI/PARKING/TOLLS,20,2012,AP,Accounts payable,481778,"BARRY, MARY-KATE"
,OFFICE OF THE MINORITY LEADER,2012Q3,TRAVEL,2019-07-10,CITIBANK GOV CARD SERVICE,2012-05-21,2012-05-27,TRAVEL SUBSISTENCE,"1,014.56",2012,AP,Accounts payable,483913,CITIBANK GOV CARD SERVICE
,OFFICE OF THE MINORITY LEADER,2012Q3,TRAVEL,2019-07-10,CITIBANK GOV CARD SERVICE,2012-05-23,2012-05-29,TRAVEL SUBSISTENCE,"1,302.34",2012,AP,Accounts payable,483914,CITIBANK GOV CARD SERVICE
,OFFICE OF THE MINORITY LEADER,2012Q3,TRAVEL,2019-07-11,CITIBANK GOV CARD SERVICE,2012-06-04,2012-06-05,TRAVEL SUBSISTENCE,783.34,2012,AP,Accounts payable,484343,CITIBANK GOV CARD SERVICE
,OFFICE OF THE MINORITY LEADER,2012Q3,TRAVEL,2019-07-11,"SANCHEZ, CARLOS S",2012-05-21,2012-05-30,TRAVEL SUBSISTENCE,401.12,2012,AP,Accounts payable,484361,"SANCHEZ, CARLOS S"
,OFFICE OF THE MINORITY LEADER,2012Q3,TRAVEL,2019-07-16,"UENG, STEPHANIE L",2012-05-19,2012-05-27,TRAVEL SUBSISTENCE,"1,019.78",2012,AP,Accounts payable,487021,"UENG, STEPHANIE L"
,OFFICE OF THE MINORITY LEADER,2012Q3,TRAVEL,2019-07-16,"UENG, STEPHANIE L",2012-05-08,2012-05-31,TAXI/PARKING/TOLLS,58.07,2012,AP,Accounts payable,487027,"UENG, STEPHANIE L"
,OFFICE OF THE MINORITY LEADER,2012Q3,TRAVEL,2019-07-17,"SKEWES-COX,CHRISTINA J",2012-06-03,2012-06-26,TAXI/PARKING/TOLLS,38,2012,AP,Accounts payable,488860,"SKEWES-COX,CHRISTINA J"
,OFFICE OF THE MINORITY LEADER,2012Q3,TRAVEL,2019-07-17,"SKEWES-COX,CHRISTINA J",2012-05-20,2012-05-20,PRIVATE AUTO MILEAGE,6.6,2012,AP,Accounts payable,488865,"SKEWES-COX,CHRISTINA J"
,OFFICE OF THE MINORITY LEADER,2012Q3,TRAVEL,2019-07-18,CITIBANK GOV CARD SERVICE,2012-06-08,2012-06-08,TRAVEL SUBSISTENCE,29.47,2012,AP,Accounts payable,493004,CITIBANK GOV CARD SERVICE
,OFFICE OF THE MINORITY LEADER,2012Q3,TRAVEL,2019-07-18,CITIBANK GOV CARD SERVICE,2012-06-08,2012-06-18,TRAVEL SUBSISTENCE,"2,051.25",2012,AP,Accounts payable,493006,CITIBANK GOV CARD SERVICE
,OFFICE OF THE MINORITY LEADER,2012Q3,TRAVEL,2019-07-20,CITIBANK GOV CARD SERVICE,2012-06-04,2012-06-30,COMMERCIAL TRANSPORTATION,"5,190.00",2012,AP,Accounts payable,494185,CITIBANK GOV CARD SERVICE
,OFFICE OF THE MINORITY LEADER,2012Q3,TRAVEL,2019-07-26,"VEITCH, ALEXANDRA N",2012-07-17,2012-07-17,TAXI/PARKING/TOLLS,30,2012,AP,Accounts payable,497357,"VEITCH, ALEXANDRA N"
,OFFICE OF THE MINORITY LEADER,2012Q3,TRAVEL,2019-07-26,"SKEWES-COX,CHRISTINA J",2012-07-10,2012-07-18,TAXI/PARKING/TOLLS,28,2012,AP,Accounts payable,497363,"SKEWES-COX,CHRISTINA J"
,OFFICE OF THE MINORITY LEADER,2012Q3,TRAVEL,2019-08-01,"BARRY, MARY-KATE",2012-07-21,2012-07-21,TAXI/PARKING/TOLLS,22,2012,AP,Accounts payable,500874,"BARRY, MARY-KATE"
,OFFICE OF THE MINORITY LEADER,2012Q3,TRAVEL,2019-08-09,"PATTI, VERNA A",2012-06-18,2012-07-16,TAXI/PARKING/TOLLS,169.5,2012,AP,Accounts payable,504926,"PATTI, VERNA A"
,OFFICE OF THE MINORITY LEADER,2012Q3,TRAVEL,2019-08-10,"SKEWES-COX,CHRISTINA J",2012-05-21,2012-05-21,PRIVATE AUTO MILEAGE,29.7,2012,AP,Accounts payable,506077,"SKEWES-COX,CHRISTINA J"
,OFFICE OF THE MINORITY LEADER,2012Q3,TRAVEL,2019-08-16,CITIBANK GOV CARD SERVICE,2012-08-03,2012-08-03,COMMERCIAL TRANSPORTATION,177.8,2012,AP,Accounts payable,508497,CITIBANK GOV CARD SERVICE
,OFFICE OF THE MINORITY LEADER,2012Q3,TRAVEL,2019-08-16,CITIBANK GOV CARD SERVICE,2012-07-09,2012-08-04,COMMERCIAL TRANSPORTATION,412.5,2012,AP,Accounts payable,508621,CITIBANK GOV CARD SERVICE
,OFFICE OF THE MINORITY LEADER,2012Q3,TRAVEL,2019-08-16,CITIBANK GOV CARD SERVICE,2012-07-11,2012-07-13,TRAVEL SUBSISTENCE,"1,212.51",2012,AP,Accounts payable,510761,CITIBANK GOV CARD SERVICE
,OFFICE OF THE MINORITY LEADER,2012Q3,TRAVEL,2019-08-20,"SKEWES-COX,CHRISTINA J",2012-07-12,2012-07-12,TRAVEL SUBSISTENCE,28.3,2012,AP,Accounts payable,511367,"SKEWES-COX,CHRISTINA J"
,OFFICE OF THE MINORITY LEADER,2012Q3,TRAVEL,2019-08-20,"SKEWES-COX,CHRISTINA J",2012-07-26,2012-07-26,TAXI/PARKING/TOLLS,24,2012,AP,Accounts payable,511370,"SKEWES-COX,CHRISTINA J"
,OFFICE OF THE MINORITY LEADER,2012Q3,TRAVEL,2019-08-20,"SKEWES-COX,CHRISTINA J",2012-07-11,2012-07-26,PRIVATE AUTO MILEAGE,11,2012,AP,Accounts payable,511374,"SKEWES-COX,CHRISTINA J"
,OFFICE OF THE MINORITY LEADER,2012Q3,TRAVEL,2019-08-20,"STIVERS, JONATHAN",2012-07-10,2012-07-26,TAXI/PARKING/TOLLS,63,2012,AP,Accounts payable,511377,"STIVERS, JONATHAN"
,OFFICE OF THE MINORITY LEADER,2012Q3,TRAVEL,2019-08-21,"SURGEON,BINA G",2012-06-27,2012-08-07,TAXI/PARKING/TOLLS,97,2012,AP,Accounts payable,514423,"SURGEON,BINA G"
,OFFICE OF THE MINORITY LEADER,2012Q3,TRAVEL,2019-08-21,"SANCHEZ, CARLOS S",2012-08-03,2012-08-04,TRAVEL SUBSISTENCE,227.42,2012,AP,Accounts payable,514428,"SANCHEZ, CARLOS S"
,OFFICE OF THE MINORITY LEADER,2012Q3,TRAVEL,2019-09-06,"SANCHEZ, CARLOS S",2012-08-16,2012-08-17,TAXI/PARKING/TOLLS,90,2012,AP,Accounts payable,522273,"SANCHEZ, CARLOS S"
,OFFICE OF THE MINORITY LEADER,2012Q3,TRAVEL,2019-09-06,"SANCHEZ, CARLOS S",2012-08-20,2012-08-22,TRAVEL SUBSISTENCE,132.79,2012,AP,Accounts payable,522277,"SANCHEZ, CARLOS S"
,OFFICE OF THE MINORITY LEADER,2012Q3,TRAVEL,2019-09-06,"BARRY, MARY-KATE",2012-08-19,2012-08-24,TRAVEL SUBSISTENCE,146.05,2012,AP,Accounts payable,522282,"BARRY, MARY-KATE"
,OFFICE OF THE MINORITY LEADER,2012Q3,TRAVEL,2019-09-07,CITIBANK GOV CARD SERVICE,2012-08-02,2012-08-20,TRAVEL SUBSISTENCE,"2,451.01",2012,AP,Accounts payable,523235,CITIBANK GOV CARD SERVICE
,OFFICE OF THE MINORITY LEADER,2012Q3,TRAVEL,2019-09-12,"SURGEON,BINA G",2012-08-14,2012-08-16,TRAVEL SUBSISTENCE,63.35,2012,AP,Accounts payable,524905,"SURGEON,BINA G"
,OFFICE OF THE MINORITY LEADER,2012Q3,TRAVEL,2019-09-12,"SURGEON,BINA G",2012-08-14,2012-08-28,TAXI/PARKING/TOLLS,24,2012,AP,Accounts payable,524906,"SURGEON,BINA G"
,OFFICE OF THE MINORITY LEADER,2012Q3,TRAVEL,2019-09-13,CITIBANK GOV CARD SERVICE,2012-07-30,2012-08-29,COMMERCIAL TRANSPORTATION,"1,139.10",2012,AP,Accounts payable,525797,CITIBANK GOV CARD SERVICE
,OFFICE OF THE MINORITY LEADER,2012Q3,TRAVEL,2019-09-14,CITIBANK GOV CARD SERVICE,2012-08-01,2012-08-06,TRAVEL SUBSISTENCE,"2,007.22",2012,AP,Accounts payable,528387,CITIBANK GOV CARD SERVICE
,OFFICE OF THE MINORITY LEADER,2012Q3,TRAVEL,2019-09-17,"WOLTERS, KATE",2012-08-21,2012-08-27,TRAVEL SUBSISTENCE,"1,535.18",2012,AP,Accounts payable,529147,"WOLTERS, KATE"
,OFFICE OF THE MINORITY LEADER,2012Q3,TRAVEL,2019-09-18,CITIBANK GOV CARD SERVICE,2012-08-16,2012-08-23,TRAVEL SUBSISTENCE,"2,064.97",2012,AP,Accounts payable,529627,CITIBANK GOV CARD SERVICE
,OFFICE OF THE MINORITY LEADER,2012Q3,TRAVEL,2019-09-18,CITIBANK GOV CARD SERVICE,2012-08-03,2012-08-18,TRAVEL SUBSISTENCE,"1,238.60",2012,AP,Accounts payable,529632,CITIBANK GOV CARD SERVICE
,OFFICE OF THE MINORITY LEADER,2012Q3,TRAVEL,2019-09-18,"LIZARRAGA, JAIME E",2012-08-20,2012-08-22,TRAVEL SUBSISTENCE,671.46,2012,AP,Accounts payable,529754,"LIZARRAGA, JAIME E"
,OFFICE OF THE MINORITY LEADER,2012Q3,TRAVEL,2019-09-18,"PATTI, VERNA A",2012-08-29,2012-08-29,MEALS,25,2012,AP,Accounts payable,529759,"PATTI, VERNA A"
,OFFICE OF THE MINORITY LEADER,2012Q3,TRAVEL,2019-09-20,"SKEWES-COX,CHRISTINA J",2012-08-03,2012-08-04,TRAVEL SUBSISTENCE,12.75,2012,AP,Accounts payable,533878,"SKEWES-COX,CHRISTINA J"
,OFFICE OF THE MINORITY LEADER,2012Q3,TRAVEL,2019-09-20,"BARRY, MARY-KATE",2012-09-08,2012-09-08,TAXI/PARKING/TOLLS,22,2012,AP,Accounts payable,533881,"BARRY, MARY-KATE"
,OFFICE OF THE MINORITY LEADER,2012Q3,TRAVEL,2019-09-24,"WILEDEN, LYDIA",2012-09-11,2012-09-11,TAXI/PARKING/TOLLS,23.38,2012,AP,Accounts payable,535629,"WILEDEN, LYDIA"
,OFFICE OF THE MINORITY LEADER,2012Q3,TRAVEL,2019-09-24,"LIZARRAGA, JAIME E",2012-09-13,2012-09-13,TAXI/PARKING/TOLLS,9,2012,AP,Accounts payable,535901,"LIZARRAGA, JAIME E"
,OFFICE OF THE MINORITY LEADER,2012Q3,TRAVEL,2019-09-28,"WOLTERS, KATE",2012-09-14,2012-09-19,TRAVEL SUBSISTENCE,"2,615.36",2012,AP,Accounts payable,538714,"WOLTERS, KATE"
,OFFICE OF THE MINORITY LEADER,2012Q3,TRAVEL,2019-09-28,"HAMMILL, ANDREW T",2012-09-18,2012-09-19,TRAVEL SUBSISTENCE,"1,165.32",2012,AP,Accounts payable,538724,"HAMMILL, ANDREW T"
,OFFICE OF THE MINORITY LEADER,2012Q3,"RENT, COMMUNICATION, UTILITIES",2019-07-17,FEDEX,2012-06-11,2012-06-12,POSTAGE / COURIER / BOX RENTAL,13.96,2012,AP,Accounts payable,488878,FEDEX
,OFFICE OF THE MINORITY LEADER,2012Q3,"RENT, COMMUNICATION, UTILITIES",2019-07-18,CITIBANK P CARD,2012-05-29,2012-06-28,RECORDING (OUTSIDE),45.38,2012,AP,Accounts payable,492994,CITIBANK P CARD
,OFFICE OF THE MINORITY LEADER,2012Q3,"RENT, COMMUNICATION, UTILITIES",2019-07-26,FEDEX,2012-06-26,2012-06-27,POSTAGE / COURIER / BOX RENTAL,13.31,2012,AP,Accounts payable,497387,FEDEX
,OFFICE OF THE MINORITY LEADER,2012Q3,"RENT, COMMUNICATION, UTILITIES",2019-08-01,FEDEX,2012-06-29,2012-06-29,POSTAGE / COURIER / BOX RENTAL,22.87,2012,AP,Accounts payable,500846,FEDEX
,OFFICE OF THE MINORITY LEADER,2012Q3,"RENT, COMMUNICATION, UTILITIES",2019-08-01,FEDEX,2012-07-02,2012-07-02,POSTAGE / COURIER / BOX RENTAL,7.61,2012,AP,Accounts payable,500848,FEDEX
,OFFICE OF THE MINORITY LEADER,2012Q3,"RENT, COMMUNICATION, UTILITIES",2019-08-20,FEDEX,2012-07-11,2012-07-11,POSTAGE / COURIER / BOX RENTAL,52.05,2012,AP,Accounts payable,511350,FEDEX
,OFFICE OF THE MINORITY LEADER,2012Q3,"RENT, COMMUNICATION, UTILITIES",2019-08-20,FEDEX,2012-07-18,2012-07-18,POSTAGE / COURIER / BOX RENTAL,5.92,2012,AP,Accounts payable,511351,FEDEX
,OFFICE OF THE MINORITY LEADER,2012Q3,"RENT, COMMUNICATION, UTILITIES",2019-08-20,CITIBANK P CARD,2012-06-29,2012-07-28,RECORDING (OUTSIDE),45.38,2012,AP,Accounts payable,514287,CITIBANK P CARD
,OFFICE OF THE MINORITY LEADER,2012Q3,"RENT, COMMUNICATION, UTILITIES",2019-09-18,FEDEX,2012-08-17,2012-08-23,POSTAGE / COURIER / BOX RENTAL,167.91,2012,AP,Accounts payable,529765,FEDEX
,OFFICE OF THE MINORITY LEADER,2012Q3,"RENT, COMMUNICATION, UTILITIES",2019-09-18,FEDEX,2012-08-21,2012-08-23,POSTAGE / COURIER / BOX RENTAL,25.42,2012,AP,Accounts payable,529767,FEDEX
,OFFICE OF THE MINORITY LEADER,2012Q3,"RENT, COMMUNICATION, UTILITIES",2019-09-19,CITIBANK P CARD,2012-07-29,2012-08-28,RECORDING (OUTSIDE),45.38,2012,AP,Accounts payable,534090,CITIBANK P CARD
,OFFICE OF THE MINORITY LEADER,2012Q3,"RENT, COMMUNICATION, UTILITIES",2019-09-24,FEDEX,2012-08-23,2012-08-24,POSTAGE / COURIER / BOX RENTAL,18.51,2012,AP,Accounts payable,535630,FEDEX
,OFFICE OF THE MINORITY LEADER,2012Q3,PRINTING AND REPRODUCTION,2019-07-17,"SKEWES-COX,CHRISTINA J",2012-06-17,2012-06-17,PRINTING & REPRODUCTION,51,2012,AP,Accounts payable,488862,"SKEWES-COX,CHRISTINA J"
,OFFICE OF THE MINORITY LEADER,2012Q3,PRINTING AND REPRODUCTION,2019-07-18,DAVID L. ANDRUKITUS INC,2012-07-05,2012-07-05,PRINTING & REPRODUCTION,397.5,2012,AP,Accounts payable,492770,DAVID L. ANDRUKITUS INC
,OFFICE OF THE MINORITY LEADER,2012Q3,PRINTING AND REPRODUCTION,2019-07-26,,2012-07-01,2012-07-31,PHOTOGRAPHIC (TRANSFER),440.16,2012,GL,General ledger,PIX0021110,
,OFFICE OF THE MINORITY LEADER,2012Q3,PRINTING AND REPRODUCTION,2019-08-20,DOYLE PRINTING & OFFSET CO INC,2012-07-31,2012-07-31,PRINTING & REPRODUCTION,640,2012,AP,Accounts payable,514383,DOYLE PRINTING & OFFSET CO INC
,OFFICE OF THE MINORITY LEADER,2012Q3,PRINTING AND REPRODUCTION,2019-08-28,,2012-08-01,2012-08-31,PHOTOGRAPHIC (TRANSFER),259.85,2012,GL,General ledger,PIX0022012,
,OFFICE OF THE MINORITY LEADER,2012Q3,PRINTING AND REPRODUCTION,2019-09-18,"PATTI, VERNA A",2012-08-28,2012-08-28,PRINTING & REPRODUCTION,19.82,2012,AP,Accounts payable,529757,"PATTI, VERNA A"
,OFFICE OF THE MINORITY LEADER,2012Q3,PRINTING AND REPRODUCTION,2019-09-24,"SURGEON,BINA G",2012-08-15,2012-08-15,PRINTING & REPRODUCTION,47.25,2012,AP,Accounts payable,535897,"SURGEON,BINA G"
,OFFICE OF THE MINORITY LEADER,2012Q3,PRINTING AND REPRODUCTION,2019-09-28,,2012-09-01,2012-09-30,PHOTOGRAPHIC (TRANSFER),294.3,2012,GL,General ledger,PIX0022997,
,OFFICE OF THE MINORITY LEADER,2012Q3,OTHER SERVICES,2019-07-05,BERNARD RAIMO,2012-06-01,2012-06-30,CONSULTANT CONTRACT SERVICE,"7,628.00",2012,AP,Accounts payable,481769,BERNARD RAIMO
,OFFICE OF THE MINORITY LEADER,2012Q3,OTHER SERVICES,2019-07-05,NEAL R. GROSS & CO INC,2012-06-20,2012-06-20,STENOGRAPHIC REPORTING,"1,500.00",2012,AP,Accounts payable,481785,NEAL R. GROSS & CO INC
,OFFICE OF THE MINORITY LEADER,2012Q3,OTHER SERVICES,2019-08-01,BERNARD RAIMO,2012-07-01,2012-07-31,CONSULTANT CONTRACT SERVICE,"7,628.00",2012,AP,Accounts payable,500877,BERNARD RAIMO
,OFFICE OF THE MINORITY LEADER,2012Q3,OTHER SERVICES,2019-08-31,BERNARD RAIMO,2012-08-01,2012-08-31,CONSULTANT CONTRACT SERVICE,"7,628.00",2012,AP,Accounts payable,519828,BERNARD RAIMO
,OFFICE OF THE MINORITY LEADER,2012Q3,OTHER SERVICES,2019-09-27,BERNARD RAIMO,2012-09-01,2012-09-30,CONSULTANT CONTRACT SERVICE,"7,628.00",2012,AP,Accounts payable,537849,BERNARD RAIMO
,OFFICE OF THE MINORITY LEADER,2012Q3,SUPPLIES AND MATERIALS,2019-07-03,PANERA BREAD COMPANY,2012-03-09,2012-03-09,FOOD & BEVERAGE,95.34,2012,AP,Accounts payable,480576,PANERA BREAD COMPANY
,OFFICE OF THE MINORITY LEADER,2012Q3,SUPPLIES AND MATERIALS,2019-07-03,PANERA BREAD COMPANY,2012-03-20,2012-03-20,FOOD & BEVERAGE,95.88,2012,AP,Accounts payable,480581,PANERA BREAD COMPANY
,OFFICE OF THE MINORITY LEADER,2012Q3,SUPPLIES AND MATERIALS,2019-07-03,PANERA BREAD COMPANY,2012-03-20,2012-03-20,FOOD & BEVERAGE,96.47,2012,AP,Accounts payable,480583,PANERA BREAD COMPANY
,OFFICE OF THE MINORITY LEADER,2012Q3,SUPPLIES AND MATERIALS,2019-07-03,PANERA BREAD COMPANY,2012-03-21,2012-03-21,FOOD & BEVERAGE,155.89,2012,AP,Accounts payable,480586,PANERA BREAD COMPANY
,OFFICE OF THE MINORITY LEADER,2012Q3,SUPPLIES AND MATERIALS,2019-07-03,PANERA BREAD COMPANY,2012-03-23,2012-03-23,FOOD & BEVERAGE,99.34,2012,AP,Accounts payable,480588,PANERA BREAD COMPANY
,OFFICE OF THE MINORITY LEADER,2012Q3,SUPPLIES AND MATERIALS,2019-07-03,PANERA BREAD COMPANY,2012-03-27,2012-03-27,FOOD & BEVERAGE,92.94,2012,AP,Accounts payable,480589,PANERA BREAD COMPANY
,OFFICE OF THE MINORITY LEADER,2012Q3,SUPPLIES AND MATERIALS,2019-07-03,PANERA BREAD COMPANY,2012-03-30,2012-03-30,FOOD & BEVERAGE,99.34,2012,AP,Accounts payable,480591,PANERA BREAD COMPANY
,OFFICE OF THE MINORITY LEADER,2012Q3,SUPPLIES AND MATERIALS,2019-07-05,"WOLTERS, KATE",2012-06-26,2012-06-26,FOOD & BEVERAGE,105.79,2012,AP,Accounts payable,481771,"WOLTERS, KATE"
,OFFICE OF THE MINORITY LEADER,2012Q3,SUPPLIES AND MATERIALS,2019-07-16,"HAMMILL, ANDREW T",2012-03-10,2012-05-01,PUBLICATIONS/REFERENCE MAT'L,80.73,2012,AP,Accounts payable,486776,"HAMMILL, ANDREW T"
,OFFICE OF THE MINORITY LEADER,2012Q3,SUPPLIES AND MATERIALS,2019-07-17,HELEN OLIVIA,2012-06-26,2012-06-26,HABITATION EXPENSE,249,2012,AP,Accounts payable,488870,HELEN OLIVIA
,OFFICE OF THE MINORITY LEADER,2012Q3,SUPPLIES AND MATERIALS,2019-07-17,HELEN OLIVIA,2012-07-09,2012-07-09,HABITATION EXPENSE,249,2012,AP,Accounts payable,488873,HELEN OLIVIA
,OFFICE OF THE MINORITY LEADER,2012Q3,SUPPLIES AND MATERIALS,2019-07-17,BURRELLESLUCE,2012-06-01,2012-06-30,PUBLICATIONS/REFERENCE MAT'L,378.18,2012,AP,Accounts payable,488880,BURRELLESLUCE
,OFFICE OF THE MINORITY LEADER,2012Q3,SUPPLIES AND MATERIALS,2019-07-17,CAPITOLHOST,2012-06-06,2012-06-06,FOOD & BEVERAGE,33,2012,AP,Accounts payable,488883,CAPITOLHOST
,OFFICE OF THE MINORITY LEADER,2012Q3,SUPPLIES AND MATERIALS,2019-07-18,CRYSTAL SPRINGS,2012-06-01,2012-06-30,FOOD & BEVERAGE,"1,529.93",2012,AP,Accounts payable,488875,CRYSTAL SPRINGS
,OFFICE OF THE MINORITY LEADER,2012Q3,SUPPLIES AND MATERIALS,2019-07-18,CITIBANK P CARD,2012-05-29,2012-06-28,FOOD & BEVERAGE,"1,525.56",2012,AP,Accounts payable,492994,CITIBANK P CARD
,OFFICE OF THE MINORITY LEADER,2012Q3,SUPPLIES AND MATERIALS,2019-07-26,HELEN OLIVIA,2012-07-17,2012-07-17,HABITATION EXPENSE,249,2012,AP,Accounts payable,497366,HELEN OLIVIA
,OFFICE OF THE MINORITY LEADER,2012Q3,SUPPLIES AND MATERIALS,2019-07-26,CAPITOLHOST,2012-06-19,2012-06-19,FOOD & BEVERAGE,33,2012,AP,Accounts payable,497373,CAPITOLHOST
,OFFICE OF THE MINORITY LEADER,2012Q3,SUPPLIES AND MATERIALS,2019-07-26,CAPITOLHOST,2012-06-20,2012-06-20,FOOD & BEVERAGE,49.5,2012,AP,Accounts payable,497377,CAPITOLHOST
,OFFICE OF THE MINORITY LEADER,2012Q3,SUPPLIES AND MATERIALS,2019-07-26,CAPITOLHOST,2012-06-27,2012-06-27,FOOD & BEVERAGE,33,2012,AP,Accounts payable,497383,CAPITOLHOST
,OFFICE OF THE MINORITY LEADER,2012Q3,SUPPLIES AND MATERIALS,2019-07-26,HAGUE QUALITY WATER OF MD INC,2012-07-01,2012-07-31,WATER,378,2012,AP,Accounts payable,497389,HAGUE QUALITY WATER OF MD INC
,OFFICE OF THE MINORITY LEADER,2012Q3,SUPPLIES AND MATERIALS,2019-08-09,CAPITOLHOST,2012-07-18,2012-07-18,FOOD & BEVERAGE,33,2012,AP,Accounts payable,504922,CAPITOLHOST
,OFFICE OF THE MINORITY LEADER,2012Q3,SUPPLIES AND MATERIALS,2019-08-09,"CASHMAN,MARY D",2012-07-29,2012-07-29,FOOD & BEVERAGE,1.91,2012,AP,Accounts payable,504932,"CASHMAN,MARY D"
,OFFICE OF THE MINORITY LEADER,2012Q3,SUPPLIES AND MATERIALS,2019-08-09,HELEN OLIVIA,2012-07-23,2012-07-23,HABITATION EXPENSE,249,2012,AP,Accounts payable,504936,HELEN OLIVIA
,OFFICE OF THE MINORITY LEADER,2012Q3,SUPPLIES AND MATERIALS,2019-08-09,HELEN OLIVIA,2012-07-31,2012-07-31,HABITATION EXPENSE,249,2012,AP,Accounts payable,504941,HELEN OLIVIA
,OFFICE OF THE MINORITY LEADER,2012Q3,SUPPLIES AND MATERIALS,2019-08-09,BURRELLESLUCE,2012-07-01,2012-07-31,PUBLICATIONS/REFERENCE MAT'L,531.42,2012,AP,Accounts payable,504954,BURRELLESLUCE
,OFFICE OF THE MINORITY LEADER,2012Q3,SUPPLIES AND MATERIALS,2019-08-20,CAPITOLHOST,2012-07-25,2012-07-25,FOOD & BEVERAGE,33,2012,AP,Accounts payable,511111,CAPITOLHOST
,OFFICE OF THE MINORITY LEADER,2012Q3,SUPPLIES AND MATERIALS,2019-08-20,NATIONAL NEWS,2012-10-01,2012-12-31,PUBLICATIONS/REFERENCE MAT'L,567.3,2012,AP,Accounts payable,511348,NATIONAL NEWS
,OFFICE OF THE MINORITY LEADER,2012Q3,SUPPLIES AND MATERIALS,2019-08-20,CAPITOLHOST,2012-07-11,2012-07-11,FOOD & BEVERAGE,33,2012,AP,Accounts payable,511349,CAPITOLHOST
,OFFICE OF THE MINORITY LEADER,2012Q3,SUPPLIES AND MATERIALS,2019-08-20,CITIBANK P CARD,2012-06-29,2012-07-28,FOOD & BEVERAGE,618.34,2012,AP,Accounts payable,514287,CITIBANK P CARD
,OFFICE OF THE MINORITY LEADER,2012Q3,SUPPLIES AND MATERIALS,2019-08-21,CRYSTAL SPRINGS,2012-07-01,2012-07-31,WATER,75.5,2012,AP,Accounts payable,511347,CRYSTAL SPRINGS
,OFFICE OF THE MINORITY LEADER,2012Q3,SUPPLIES AND MATERIALS,2019-08-21,"SURGEON,BINA G",2012-08-06,2012-08-06,PUBLICATIONS/REFERENCE MAT'L,2.65,2012,AP,Accounts payable,514425,"SURGEON,BINA G"
,OFFICE OF THE MINORITY LEADER,2012Q3,SUPPLIES AND MATERIALS,2019-08-29,OCCASIONS CATERERS,2012-07-23,2012-07-23,FOOD & BEVERAGE,"15,062.10",2012,AP,Accounts payable,518377,OCCASIONS CATERERS
,OFFICE OF THE MINORITY LEADER,2012Q3,SUPPLIES AND MATERIALS,2019-08-31,CAPITOLHOST,2012-08-01,2012-08-01,FOOD & BEVERAGE,33,2012,AP,Accounts payable,519847,CAPITOLHOST
,OFFICE OF THE MINORITY LEADER,2012Q3,SUPPLIES AND MATERIALS,2019-08-31,HAGUE QUALITY WATER OF MD INC,2012-08-15,2012-09-14,WATER,378,2012,AP,Accounts payable,519850,HAGUE QUALITY WATER OF MD INC
,OFFICE OF THE MINORITY LEADER,2012Q3,SUPPLIES AND MATERIALS,2019-08-31,SOUTHWEST DISTRIBUTION INC,2012-10-01,2012-12-31,PUBLICATIONS/REFERENCE MAT'L,"3,804.90",2012,AP,Accounts payable,519855,SOUTHWEST DISTRIBUTION INC
,OFFICE OF THE MINORITY LEADER,2012Q3,SUPPLIES AND MATERIALS,2019-09-17,CRYSTAL SPRINGS,2012-08-01,2012-08-31,FOOD & BEVERAGE,194.3,2012,AP,Accounts payable,529149,CRYSTAL SPRINGS
,OFFICE OF THE MINORITY LEADER,2012Q3,SUPPLIES AND MATERIALS,2019-09-17,BURRELLESLUCE,2012-08-01,2012-08-31,PUBLICATIONS/REFERENCE MAT'L,378.18,2012,AP,Accounts payable,529156,BURRELLESLUCE
,OFFICE OF THE MINORITY LEADER,2012Q3,SUPPLIES AND MATERIALS,2019-09-17,HELEN OLIVIA,2012-09-10,2012-09-10,HABITATION EXPENSE,249,2012,AP,Accounts payable,529157,HELEN OLIVIA
,OFFICE OF THE MINORITY LEADER,2012Q3,SUPPLIES AND MATERIALS,2019-09-19,"KING, RYAN M",2012-09-11,2012-09-11,PUBLICATIONS/REFERENCE MAT'L,22.31,2012,AP,Accounts payable,533562,"KING, RYAN M"
,OFFICE OF THE MINORITY LEADER,2012Q3,SUPPLIES AND MATERIALS,2019-09-19,CITIBANK P CARD,2012-07-29,2012-08-28,FOOD & BEVERAGE,202.25,2012,AP,Accounts payable,534090,CITIBANK P CARD
,OFFICE OF THE MINORITY LEADER,2012Q3,SUPPLIES AND MATERIALS,2019-09-24,HAGUE QUALITY WATER OF MD INC,2012-09-01,2012-09-30,WATER,378,2012,AP,Accounts payable,535631,HAGUE QUALITY WATER OF MD INC
,OFFICE OF THE MINORITY LEADER,2012Q3,SUPPLIES AND MATERIALS,2019-09-28,HELEN OLIVIA,2012-09-18,2012-09-18,HABITATION EXPENSE,249,2012,AP,Accounts payable,538703,HELEN OLIVIA
,OFFICE OF THE MAJORITY WHIP,2012Q3,PERSONNEL COMPENSATION,,"BARNES,FREDERIC W",2012-07-01,2012-09-30,FLOOR ASSISTANT,"11,500.00",2012,,,,"BARNES,FREDERIC W"
,OFFICE OF THE MAJORITY WHIP,2012Q3,PERSONNEL COMPENSATION,,"BERRY,TIMOTHY J",2012-07-01,2012-09-30,CHIEF OF STAFF,"43,125.00",2012,,,,"BERRY,TIMOTHY J"
,OFFICE OF THE MAJORITY WHIP,2012Q3,PERSONNEL COMPENSATION,,"BUCHANAN,NATALIE L",2012-07-01,2012-09-30,DIR OF MEMBER SERVICES,"20,500.00",2012,,,,"BUCHANAN,NATALIE L"
,OFFICE OF THE MAJORITY WHIP,2012Q3,PERSONNEL COMPENSATION,,"CAREY,BRITTANY M",2012-07-01,2012-09-30,STAFF ASSISTANT,"9,250.00",2012,,,,"CAREY,BRITTANY M"
,OFFICE OF THE MAJORITY WHIP,2012Q3,PERSONNEL COMPENSATION,,"DIXON, KELLY A",2012-07-01,2012-09-30,DEPUTY DIRECTOR OF FLOOR OPERA,"23,500.00",2012,,,,"DIXON, KELLY A"
,OFFICE OF THE MAJORITY WHIP,2012Q3,PERSONNEL COMPENSATION,,"ELLIOTT,ERICA L",2012-07-01,2012-09-30,DIRECTOR OF COMMUNICATIONS,"31,000.00",2012,,,,"ELLIOTT,ERICA L"
,OFFICE OF THE MAJORITY WHIP,2012Q3,PERSONNEL COMPENSATION,,"HENEHAN, EMILY A",2012-07-01,2012-09-30,POLICY ADVISOR,"23,500.00",2012,,,,"HENEHAN, EMILY A"
,OFFICE OF THE MAJORITY WHIP,2012Q3,PERSONNEL COMPENSATION,,"HOWARD,BENJAMIN R",2012-07-01,2012-09-30,FLOOR ASSISTANT,"11,500.00",2012,,,,"HOWARD,BENJAMIN R"
,OFFICE OF THE MAJORITY WHIP,2012Q3,PERSONNEL COMPENSATION,,"LOFRANCO, JUSTIN V",2012-07-01,2012-09-30,DIGITAL DIRECTOR,"18,450.00",2012,,,,"LOFRANCO, JUSTIN V"
,OFFICE OF THE MAJORITY WHIP,2012Q3,PERSONNEL COMPENSATION,,"LONG,MICHAEL P",2012-07-01,2012-09-30,DEPUTY PRESS SECRETARY,"11,500.00",2012,,,,"LONG,MICHAEL P"
,OFFICE OF THE MAJORITY WHIP,2012Q3,PERSONNEL COMPENSATION,,"MCCLELLAND, WESLEY R",2012-07-01,2012-09-30,POLICY ADVISOR,"23,500.00",2012,,,,"MCCLELLAND, WESLEY R"
,OFFICE OF THE MAJORITY WHIP,2012Q3,PERSONNEL COMPENSATION,,"METTLER,ASHLEY",2012-07-01,2012-09-30,SENIOR STAFF ASSISTANT,"10,000.00",2012,,,,"METTLER,ASHLEY"
,OFFICE OF THE MAJORITY WHIP,2012Q3,PERSONNEL COMPENSATION,,"MIN, JAMES B",2012-07-01,2012-09-30,DEPUTY CHIEF OF STAFF,"33,000.00",2012,,,,"MIN, JAMES B"
,OFFICE OF THE MAJORITY WHIP,2012Q3,PERSONNEL COMPENSATION,,"MOORE,STEVEN E",2012-07-01,2012-09-30,CHIEF OF STAFF TO THE DEP WHIP,"15,000.00",2012,,,,"MOORE,STEVEN E"
,OFFICE OF THE MAJORITY WHIP,2012Q3,PERSONNEL COMPENSATION,,"PATAKI,TIMOTHY A",2012-07-01,2012-09-30,SPECIAL ASST TO CHIEF DEPUTY W,"8,500.00",2012,,,,"PATAKI,TIMOTHY A"
,OFFICE OF THE MAJORITY WHIP,2012Q3,PERSONNEL COMPENSATION,,"PINKOS,STEPHEN M",2012-07-01,2012-09-30,POLICY DIR AND GENERAL COUNSEL,"38,500.00",2012,,,,"PINKOS,STEPHEN M"
,OFFICE OF THE MAJORITY WHIP,2012Q3,PERSONNEL COMPENSATION,,"SPARKS, MATTHEW E",2012-06-01,2012-09-30,PRESS AIDE,"12,500.00",2012,,,,"SPARKS, MATTHEW E"
,OFFICE OF THE MAJORITY WHIP,2012Q3,PERSONNEL COMPENSATION,,"STIPICEVIC, JOHN A",2012-07-01,2012-09-30,DIRECTOR OF FLOOR OPERATIONS,"31,000.00",2012,,,,"STIPICEVIC, JOHN A"
,OFFICE OF THE MAJORITY WHIP,2012Q3,PERSONNEL COMPENSATION,,"THOMSON, KRISTIN",2012-07-01,2012-09-30,SHARED EMPLOYEE,"16,000.00",2012,,,,"THOMSON, KRISTIN"
,OFFICE OF THE MAJORITY WHIP,2012Q3,PERSONNEL COMPENSATION,,"WORTH,BRIAN A",2012-07-01,2012-09-30,DIRECTOR OF COALITIONS,"34,750.00",2012,,,,"WORTH,BRIAN A"
,OFFICE OF THE MAJORITY WHIP,2012Q3,TRAVEL,2019-07-05,"PINKOS, STEPHEN",2012-05-23,2012-05-23,TAXI/PARKING/TOLLS,20,2012,AP,Accounts payable,481723,"PINKOS, STEPHEN"
,OFFICE OF THE MAJORITY WHIP,2012Q3,TRAVEL,2019-07-05,"PINKOS, STEPHEN",2012-05-24,2012-05-24,TAXI/PARKING/TOLLS,10,2012,AP,Accounts payable,481727,"PINKOS, STEPHEN"
,OFFICE OF THE MAJORITY WHIP,2012Q3,TRAVEL,2019-07-05,"PINKOS, STEPHEN",2012-05-24,2012-05-24,TAXI/PARKING/TOLLS,19,2012,AP,Accounts payable,481731,"PINKOS, STEPHEN"
,OFFICE OF THE MAJORITY WHIP,2012Q3,TRAVEL,2019-07-05,"PINKOS, STEPHEN",2012-04-26,2012-04-26,TAXI/PARKING/TOLLS,7.5,2012,AP,Accounts payable,481736,"PINKOS, STEPHEN"
,OFFICE OF THE MAJORITY WHIP,2012Q3,TRAVEL,2019-07-05,"PINKOS, STEPHEN",2012-04-25,2012-04-25,TAXI/PARKING/TOLLS,14.29,2012,AP,Accounts payable,481739,"PINKOS, STEPHEN"
,OFFICE OF THE MAJORITY WHIP,2012Q3,TRAVEL,2019-07-05,"PINKOS, STEPHEN",2012-04-26,2012-04-26,TAXI/PARKING/TOLLS,9.75,2012,AP,Accounts payable,481742,"PINKOS, STEPHEN"
,OFFICE OF THE MAJORITY WHIP,2012Q3,TRAVEL,2019-07-05,"HENEHAN, EMILY A",2012-03-07,2012-03-07,TAXI/PARKING/TOLLS,13,2012,AP,Accounts payable,481745,"HENEHAN, EMILY A"
,OFFICE OF THE MAJORITY WHIP,2012Q3,TRAVEL,2019-07-05,"HENEHAN, EMILY A",2012-03-09,2012-03-09,TAXI/PARKING/TOLLS,8,2012,AP,Accounts payable,481747,"HENEHAN, EMILY A"
,OFFICE OF THE MAJORITY WHIP,2012Q3,TRAVEL,2019-07-05,"HENEHAN, EMILY A",2012-03-09,2012-03-09,TAXI/PARKING/TOLLS,8,2012,AP,Accounts payable,481749,"HENEHAN, EMILY A"
,OFFICE OF THE MAJORITY WHIP,2012Q3,TRAVEL,2019-07-05,"HENEHAN, EMILY A",2012-03-05,2012-03-05,TAXI/PARKING/TOLLS,6,2012,AP,Accounts payable,481751,"HENEHAN, EMILY A"
,OFFICE OF THE MAJORITY WHIP,2012Q3,TRAVEL,2019-07-05,"HENEHAN, EMILY A",2012-03-13,2012-03-13,TAXI/PARKING/TOLLS,12,2012,AP,Accounts payable,481754,"HENEHAN, EMILY A"
,OFFICE OF THE MAJORITY WHIP,2012Q3,TRAVEL,2019-07-05,"LOFRANCO, JUSTIN V",2012-05-23,2012-05-25,TRAVEL SUBSISTENCE,291.36,2012,AP,Accounts payable,481758,"LOFRANCO, JUSTIN V"
,OFFICE OF THE MAJORITY WHIP,2012Q3,TRAVEL,2019-07-05,"LOFRANCO, JUSTIN V",2012-06-10,2012-06-12,TRAVEL SUBSISTENCE,629.42,2012,AP,Accounts payable,481760,"LOFRANCO, JUSTIN V"
,OFFICE OF THE MAJORITY WHIP,2012Q3,TRAVEL,2019-07-30,"LOFRANCO, JUSTIN V",2012-07-04,2012-07-05,TRAVEL SUBSISTENCE,204.61,2012,AP,Accounts payable,498168,"LOFRANCO, JUSTIN V"
,OFFICE OF THE MAJORITY WHIP,2012Q3,TRAVEL,2019-08-20,CITIBANK P CARD,2012-06-29,2012-07-28,COMMERCIAL TRANSPORTATION,371.2,2012,AP,Accounts payable,514287,CITIBANK P CARD
,OFFICE OF THE MAJORITY WHIP,2012Q3,TRAVEL,2019-08-20,CITIBANK P CARD,2012-06-29,2012-07-28,LODGING,256.38,2012,AP,Accounts payable,514287,CITIBANK P CARD
,OFFICE OF THE MAJORITY WHIP,2012Q3,TRAVEL,2019-09-20,"LOFRANCO, JUSTIN V",2012-07-18,2012-07-19,TRAVEL SUBSISTENCE,415.02,2012,AP,Accounts payable,533883,"LOFRANCO, JUSTIN V"
,OFFICE OF THE MAJORITY WHIP,2012Q3,PRINTING AND REPRODUCTION,2019-07-27,,2012-06-01,2012-06-30,PHOTOGRAPHIC (TRANSFER),252.5,2012,GL,General ledger,HRS0021151,
,OFFICE OF THE MAJORITY WHIP,2012Q3,PRINTING AND REPRODUCTION,2019-08-28,,2012-08-01,2012-08-31,PHOTOGRAPHIC (TRANSFER),40.95,2012,GL,General ledger,PIX0022012,
,OFFICE OF THE MAJORITY WHIP,2012Q3,PRINTING AND REPRODUCTION,2019-09-11,SHARP ELECTRONICS CORPORATION,2012-07-01,2012-08-01,PRINTING & REPRODUCTION,354.59,2012,AP,Accounts payable,524688,SHARP ELECTRONICS CORPORATION
,OFFICE OF THE MAJORITY WHIP,2012Q3,PRINTING AND REPRODUCTION,2019-09-17,SHARP ELECTRONICS CORP,2012-04-01,2012-05-01,PRINTING & REPRODUCTION,52.3,2012,AP,Accounts payable,525924,SHARP ELECTRONICS CORP
,OFFICE OF THE MAJORITY WHIP,2012Q3,OTHER SERVICES,2019-09-13,CRAFT MEDIA DIGITAL,2012-05-01,2012-05-31,"WEB DEV HST,EMAIL & RLTD SERV","-3,000.00",2012,AP,Accounts payable,439530,CRAFT MEDIA DIGITAL
,OFFICE OF THE MAJORITY WHIP,2012Q3,SUPPLIES AND MATERIALS,2019-07-05,"CAREY, BRITTANY M",2012-06-22,2012-06-22,FOOD & BEVERAGE,333.44,2012,AP,Accounts payable,481763,"CAREY, BRITTANY M"
,OFFICE OF THE MAJORITY WHIP,2012Q3,SUPPLIES AND MATERIALS,2019-07-16,BLOOMBERG FINANCE LP,2012-07-05,2012-07-05,PUBLICATIONS/REFERENCE MAT'L,"4,419.99",2012,AP,Accounts payable,486900,BLOOMBERG FINANCE LP
,OFFICE OF THE MAJORITY WHIP,2012Q3,SUPPLIES AND MATERIALS,2019-07-16,DEER PARK WATER,2012-05-27,2012-06-26,WATER,312.74,2012,AP,Accounts payable,486908,DEER PARK WATER
,OFFICE OF THE MAJORITY WHIP,2012Q3,SUPPLIES AND MATERIALS,2019-07-18,CITIBANK P CARD,2012-05-29,2012-06-28,FOOD & BEVERAGE,"16,414.01",2012,AP,Accounts payable,492994,CITIBANK P CARD
,OFFICE OF THE MAJORITY WHIP,2012Q3,SUPPLIES AND MATERIALS,2019-07-18,CITIBANK P CARD,2012-05-29,2012-06-28,OFFICE SUPPLIES (OUTSIDE),199.45,2012,AP,Accounts payable,492994,CITIBANK P CARD
,OFFICE OF THE MAJORITY WHIP,2012Q3,SUPPLIES AND MATERIALS,2019-07-18,CITIBANK P CARD,2012-05-29,2012-06-28,PUBLICATIONS/REFERENCE MAT'L,257.03,2012,AP,Accounts payable,492994,CITIBANK P CARD
,OFFICE OF THE MAJORITY WHIP,2012Q3,SUPPLIES AND MATERIALS,2019-07-30,"CAREY, BRITTANY M",2012-07-24,2012-07-24,FOOD & BEVERAGE,212.53,2012,AP,Accounts payable,498176,"CAREY, BRITTANY M"
,OFFICE OF THE MAJORITY WHIP,2012Q3,SUPPLIES AND MATERIALS,2019-08-20,DEER PARK WATER,2012-06-27,2012-07-26,WATER,304.49,2012,AP,Accounts payable,511379,DEER PARK WATER
,OFFICE OF THE MAJORITY WHIP,2012Q3,SUPPLIES AND MATERIALS,2019-08-20,CITIBANK P CARD,2012-06-29,2012-07-28,FOOD & BEVERAGE,"12,083.95",2012,AP,Accounts payable,514287,CITIBANK P CARD
,OFFICE OF THE MAJORITY WHIP,2012Q3,SUPPLIES AND MATERIALS,2019-08-20,CITIBANK P CARD,2012-06-29,2012-07-28,PUBLICATIONS/REFERENCE MAT'L,1.05,2012,AP,Accounts payable,514287,CITIBANK P CARD
,OFFICE OF THE MAJORITY WHIP,2012Q3,SUPPLIES AND MATERIALS,2019-09-14,"CAREY, BRITTANY M",2012-09-09,2012-09-09,FOOD & BEVERAGE,191.85,2012,AP,Accounts payable,525928,"CAREY, BRITTANY M"
,OFFICE OF THE MAJORITY WHIP,2012Q3,SUPPLIES AND MATERIALS,2019-09-19,CITIBANK P CARD,2012-07-29,2012-08-28,FOOD & BEVERAGE,"4,681.20",2012,AP,Accounts payable,534090,CITIBANK P CARD
,OFFICE OF THE MAJORITY WHIP,2012Q3,SUPPLIES AND MATERIALS,2019-09-20,DEER PARK WATER,2012-07-27,2012-08-26,WATER,345.41,2012,AP,Accounts payable,533887,DEER PARK WATER
,OFFICE OF THE MAJORITY WHIP,2012Q3,SUPPLIES AND MATERIALS,2019-09-20,BLOOMBERG FINANCE LP,2012-06-28,2012-12-31,PUBLICATIONS/REFERENCE MAT'L,"2,876.25",2012,AP,Accounts payable,534239,BLOOMBERG FINANCE LP
,OFFICE OF THE MINORITY WHIP,2012Q3,FRANKED MAIL,2019-09-06,UNITED STATES POSTAL SERVICE,2012-01-03,2012-01-31,FRANKED MAIL,-23.88,2012,AP,Accounts payable,522478,UNITED STATES POSTAL SERVICE
,OFFICE OF THE MINORITY WHIP,2012Q3,PERSONNEL COMPENSATION,,"ABOUCHAR, KEITH S",2012-07-01,2012-09-30,SENIOR POLICY ADVISOR,"3,500.91",2012,,,,"ABOUCHAR, KEITH S"
,OFFICE OF THE MINORITY WHIP,2012Q3,PERSONNEL COMPENSATION,,"AVILES,DANIELLE R",2012-07-01,2012-09-30,EXECUTIVE ASST OFFICE MANAGER,"11,000.01",2012,,,,"AVILES,DANIELLE R"
,OFFICE OF THE MINORITY WHIP,2012Q3,PERSONNEL COMPENSATION,,"AVILES,DANIELLE R",2012-08-01,2012-08-31,EXECUTIVE ASST OFFICE MANAGER (OTHER COMPENSATION),"3,000.00",2012,,,,"AVILES,DANIELLE R"
,OFFICE OF THE MINORITY WHIP,2012Q3,PERSONNEL COMPENSATION,,"BOHANAN JR, JOHN L",2012-04-01,2012-09-30,CONSTITUENT LIAISON,"2,000.00",2012,,,,"BOHANAN JR, JOHN L"
,OFFICE OF THE MINORITY WHIP,2012Q3,PERSONNEL COMPENSATION,,"BURNES, AUSTIN W",2012-07-01,2012-09-30,DIR. OF LEGISLATIVE OPERATIONS,"20,100.00",2012,,,,"BURNES, AUSTIN W"
,OFFICE OF THE MINORITY WHIP,2012Q3,PERSONNEL COMPENSATION,,"BURNES, AUSTIN W",2012-08-01,2012-09-30,DIR. OF LEGISLATIVE OPERATIONS (OTHER COMPENSATION),"6,000.00",2012,,,,"BURNES, AUSTIN W"
,OFFICE OF THE MINORITY WHIP,2012Q3,PERSONNEL COMPENSATION,,"COBIA, LINDSEY G",2012-07-01,2012-09-30,STAFF ASSISTANT,"6,249.99",2012,,,,"COBIA, LINDSEY G"
,OFFICE OF THE MINORITY WHIP,2012Q3,PERSONNEL COMPENSATION,,"COBIA, LINDSEY G",2012-06-01,2012-08-31,STAFF ASSISTANT (OVERTIME),"2,487.95",2012,,,,"COBIA, LINDSEY G"
,OFFICE OF THE MINORITY WHIP,2012Q3,PERSONNEL COMPENSATION,,"COLLINS, MICHAEL E",2012-07-01,2012-09-30,CHIEF DEPUTY WHIP,"10,625.01",2012,,,,"COLLINS, MICHAEL E"
,OFFICE OF THE MINORITY WHIP,2012Q3,PERSONNEL COMPENSATION,,"COVEY-BRANDT, ALEXIS",2012-07-01,2012-09-30,CHIEF OF STAFF,300,2012,,,,"COVEY-BRANDT, ALEXIS"
,OFFICE OF THE MINORITY WHIP,2012Q3,PERSONNEL COMPENSATION,,"DEBOSIER, CHRISTOPHER M",2012-07-01,2012-09-30,DIR OF MEM SERVICES & OUTREACH,"21,875.01",2012,,,,"DEBOSIER, CHRISTOPHER M"
,OFFICE OF THE MINORITY WHIP,2012Q3,PERSONNEL COMPENSATION,,"DEBOSIER, CHRISTOPHER M",2012-08-01,2012-08-31,DIR OF MEM SERVICES & OUTREACH (OTHER COMPENSATION),"3,000.00",2012,,,,"DEBOSIER, CHRISTOPHER M"
,OFFICE OF THE MINORITY WHIP,2012Q3,PERSONNEL COMPENSATION,,"DWYER, STEPHEN",2012-08-01,2012-09-30,DIGITAL DIR & POLICY ADV,"15,000.00",2012,,,,"DWYER, STEPHEN"
,OFFICE OF THE MINORITY WHIP,2012Q3,PERSONNEL COMPENSATION,,"DWYER, STEPHEN",2012-08-01,2012-08-31,DIGITAL DIR & POLICY ADV (OTHER COMPENSATION),"3,000.00",2012,,,,"DWYER, STEPHEN"
,OFFICE OF THE MINORITY WHIP,2012Q3,PERSONNEL COMPENSATION,,"EISENBERG,MICHAEL",2012-07-01,2012-08-24,WHIP COORDINATOR,"9,000.00",2012,,,,"EISENBERG,MICHAEL"
,OFFICE OF THE MINORITY WHIP,2012Q3,PERSONNEL COMPENSATION,,"FRY,COURTNEY",2012-07-01,2012-09-30,MEMBER SRVS AND OUTREACH COORD,"17,499.99",2012,,,,"FRY,COURTNEY"
,OFFICE OF THE MINORITY WHIP,2012Q3,PERSONNEL COMPENSATION,,"FRY,COURTNEY",2012-08-01,2012-08-31,MEMBER SRVS AND OUTREACH COORD (OTHER COMPENSATION),"3,000.00",2012,,,,"FRY,COURTNEY"
,OFFICE OF THE MINORITY WHIP,2012Q3,PERSONNEL COMPENSATION,,"GENSEMER,ELLIOT J",2012-07-01,2012-09-30,STAFF ASSISTANT,"6,999.99",2012,,,,"GENSEMER,ELLIOT J"
,OFFICE OF THE MINORITY WHIP,2012Q3,PERSONNEL COMPENSATION,,"GENSEMER,ELLIOT J",2012-06-01,2012-08-31,STAFF ASSISTANT (OVERTIME),"3,210.54",2012,,,,"GENSEMER,ELLIOT J"
,OFFICE OF THE MINORITY WHIP,2012Q3,PERSONNEL COMPENSATION,,"GENSEMER,ELLIOT J",2012-08-01,2012-08-31,STAFF ASSISTANT (OTHER COMPENSATION),"2,000.00",2012,,,,"GENSEMER,ELLIOT J"
,OFFICE OF THE MINORITY WHIP,2012Q3,PERSONNEL COMPENSATION,,"GHOSH,APRATIM",2012-07-01,2012-09-30,SPECIAL ASSISTANT,"9,999.99",2012,,,,"GHOSH,APRATIM"
,OFFICE OF THE MINORITY WHIP,2012Q3,PERSONNEL COMPENSATION,,"GHOSH,APRATIM",2012-08-01,2012-08-31,SPECIAL ASSISTANT (OTHER COMPENSATION),"2,000.00",2012,,,,"GHOSH,APRATIM"
,OFFICE OF THE MINORITY WHIP,2012Q3,PERSONNEL COMPENSATION,,"GOFF,SHUWANZA R",2012-07-01,2012-09-30,DEPUTY DIR LEG OPERATIONS,"17,499.99",2012,,,,"GOFF,SHUWANZA R"
,OFFICE OF THE MINORITY WHIP,2012Q3,PERSONNEL COMPENSATION,,"GOFF,SHUWANZA R",2012-08-01,2012-08-31,DEPUTY DIR LEG OPERATIONS (OTHER COMPENSATION),"3,000.00",2012,,,,"GOFF,SHUWANZA R"
,OFFICE OF THE MINORITY WHIP,2012Q3,PERSONNEL COMPENSATION,,"GRANT,KATHRYN L",2012-07-01,2012-09-30,COMMUNICATIONS DIRECTOR,"27,500.01",2012,,,,"GRANT,KATHRYN L"
,OFFICE OF THE MINORITY WHIP,2012Q3,PERSONNEL COMPENSATION,,"GRANT,KATHRYN L",2012-08-01,2012-08-31,COMMUNICATIONS DIRECTOR (OTHER COMPENSATION),"6,000.00",2012,,,,"GRANT,KATHRYN L"
,OFFICE OF THE MINORITY WHIP,2012Q3,PERSONNEL COMPENSATION,,"HUGHES,JOHN C",2012-07-01,2012-09-30,SENIOR POLICY ADVISOR,"3,567.58",2012,,,,"HUGHES,JOHN C"
,OFFICE OF THE MINORITY WHIP,2012Q3,PERSONNEL COMPENSATION,,"LEUSCHEN, JAMES P",2012-07-01,2012-09-30,SENIOR POLICY ADVISOR,"28,749.99",2012,,,,"LEUSCHEN, JAMES P"
,OFFICE OF THE MINORITY WHIP,2012Q3,PERSONNEL COMPENSATION,,"LEUSCHEN, JAMES P",2012-07-01,2012-07-01,SENIOR POLICY ADVISOR (OTHER COMPENSATION),"5,000.00",2012,,,,"LEUSCHEN, JAMES P"
,OFFICE OF THE MINORITY WHIP,2012Q3,PERSONNEL COMPENSATION,,"MAHR,THOMAS",2012-07-09,2012-09-30,POLICY DIRECTOR,"16,644.44",2012,,,,"MAHR,THOMAS"
,OFFICE OF THE MINORITY WHIP,2012Q3,PERSONNEL COMPENSATION,,"MARTINEZ, JAVIER D",2012-08-01,2012-09-30,"PROF STAFF MBR, ECONOMIC OPP","21,458.33",2012,,,,"MARTINEZ, JAVIER D"
,OFFICE OF THE MINORITY WHIP,2012Q3,PERSONNEL COMPENSATION,,"MEDLEY, ANNA E",2012-07-01,2012-09-30,DIR OF SCHEDLNG & SPEC EVENTS,"17,499.99",2012,,,,"MEDLEY, ANNA E"
,OFFICE OF THE MINORITY WHIP,2012Q3,PERSONNEL COMPENSATION,,"MEDLEY, ANNA E",2012-08-01,2012-08-31,DIR OF SCHEDLNG & SPEC EVENTS (OTHER COMPENSATION),"3,000.00",2012,,,,"MEDLEY, ANNA E"
,OFFICE OF THE MINORITY WHIP,2012Q3,PERSONNEL COMPENSATION,,"MOORE, MIKAEL",2012-07-01,2012-09-30,CHIEF DEPUTY WHIP,"9,999.99",2012,,,,"MOORE, MIKAEL"
,OFFICE OF THE MINORITY WHIP,2012Q3,PERSONNEL COMPENSATION,,"MURRAY, ELIZABETH M",2012-07-01,2012-09-30,SENIOR POLICY ADVISOR,"33,249.99",2012,,,,"MURRAY, ELIZABETH M"
,OFFICE OF THE MINORITY WHIP,2012Q3,PERSONNEL COMPENSATION,,"MURRAY, ELIZABETH M",2012-08-01,2012-08-31,SENIOR POLICY ADVISOR (OTHER COMPENSATION),"2,950.92",2012,,,,"MURRAY, ELIZABETH M"
,OFFICE OF THE MINORITY WHIP,2012Q3,PERSONNEL COMPENSATION,,"OTT,AMANDA M",2012-07-01,2012-09-30,MIN STAFF CONS/SPECIAL PROJ (P,"9,999.99",2012,,,,"OTT,AMANDA M"
,OFFICE OF THE MINORITY WHIP,2012Q3,PERSONNEL COMPENSATION,,"REILLY,DANIEL W",2012-07-01,2012-08-24,PRESS SECRETARY,"1,500.00",2012,,,,"REILLY,DANIEL W"
,OFFICE OF THE MINORITY WHIP,2012Q3,PERSONNEL COMPENSATION,,"REPKO,MARY F",2012-07-01,2012-09-30,SENIOR POLICY ADVISOR,"3,250.92",2012,,,,"REPKO,MARY F"
,OFFICE OF THE MINORITY WHIP,2012Q3,PERSONNEL COMPENSATION,,"ROMICK, BRIAN",2012-07-01,2012-09-30,WHIP DIR AND SENIOR ADVISOR,"4,201.84",2012,,,,"ROMICK, BRIAN"
,OFFICE OF THE MINORITY WHIP,2012Q3,PERSONNEL COMPENSATION,,"SAEZ,MARIEL S",2012-07-01,2012-09-30,DEPUTY PRESS SECRETARY,"9,750.00",2012,,,,"SAEZ,MARIEL S"
,OFFICE OF THE MINORITY WHIP,2012Q3,PERSONNEL COMPENSATION,,"SAEZ,MARIEL S",2012-08-01,2012-08-31,DEPUTY PRESS SECRETARY (OTHER COMPENSATION),"3,000.00",2012,,,,"SAEZ,MARIEL S"
,OFFICE OF THE MINORITY WHIP,2012Q3,PERSONNEL COMPENSATION,,"SCHULTZ, AMY R",2012-09-01,2012-09-30,SENIOR POLICY ADVISOR,"5,316.67",2012,,,,"SCHULTZ, AMY R"
,OFFICE OF THE MINORITY WHIP,2012Q3,PERSONNEL COMPENSATION,,"SCHULTZ, AMY R",2012-09-01,2012-09-30,SENIOR POLICY ADVISOR (OTHER COMPENSATION),"3,000.00",2012,,,,"SCHULTZ, AMY R"
,OFFICE OF THE MINORITY WHIP,2012Q3,PERSONNEL COMPENSATION,,"SHOTT,DANIEL",2012-07-01,2012-09-30,FLOOR ASSISTANT,"12,500.01",2012,,,,"SHOTT,DANIEL"
,OFFICE OF THE MINORITY WHIP,2012Q3,PERSONNEL COMPENSATION,,"SHOTT,DANIEL",2012-08-01,2012-08-31,FLOOR ASSISTANT (OTHER COMPENSATION),"1,000.00",2012,,,,"SHOTT,DANIEL"
,OFFICE OF THE MINORITY WHIP,2012Q3,PERSONNEL COMPENSATION,,"SIXKILLER, MARIAH S",2012-07-01,2012-09-30,SENIOR POLICY ADVISOR,"17,333.33",2012,,,,"SIXKILLER, MARIAH S"
,OFFICE OF THE MINORITY WHIP,2012Q3,PERSONNEL COMPENSATION,,"SIXKILLER, MARIAH S",2012-08-01,2012-08-31,SENIOR POLICY ADVISOR (OTHER COMPENSATION),"2,950.92",2012,,,,"SIXKILLER, MARIAH S"
,OFFICE OF THE MINORITY WHIP,2012Q3,PERSONNEL COMPENSATION,,"WEISSMANN, ADAM",2012-07-01,2012-09-30,SPEECHWRITER,"13,749.99",2012,,,,"WEISSMANN, ADAM"
,OFFICE OF THE MINORITY WHIP,2012Q3,PERSONNEL COMPENSATION,,"WEISSMANN, ADAM",2012-08-01,2012-08-31,SPEECHWRITER (OTHER COMPENSATION),"2,000.00",2012,,,,"WEISSMANN, ADAM"
,OFFICE OF THE MINORITY WHIP,2012Q3,TRAVEL,2019-07-06,"AVILES,DANIELLE R",2012-06-19,2012-06-19,TAXI/PARKING/TOLLS,24,2012,AP,Accounts payable,482347,"AVILES,DANIELLE R"
,OFFICE OF THE MINORITY WHIP,2012Q3,TRAVEL,2019-07-06,"GHOSH,APRATIM",2012-06-20,2012-06-20,TAXI/PARKING/TOLLS,10.48,2012,AP,Accounts payable,482351,"GHOSH,APRATIM"
,OFFICE OF THE MINORITY WHIP,2012Q3,TRAVEL,2019-07-06,"GHOSH,APRATIM",2012-06-21,2012-06-21,TAXI/PARKING/TOLLS,11,2012,AP,Accounts payable,482355,"GHOSH,APRATIM"
,OFFICE OF THE MINORITY WHIP,2012Q3,TRAVEL,2019-07-06,"AVILES,DANIELLE R",2012-06-21,2012-06-21,TAXI/PARKING/TOLLS,23,2012,AP,Accounts payable,482360,"AVILES,DANIELLE R"
,OFFICE OF THE MINORITY WHIP,2012Q3,TRAVEL,2019-07-06,"GHOSH,APRATIM",2012-06-27,2012-06-27,TAXI/PARKING/TOLLS,10,2012,AP,Accounts payable,482370,"GHOSH,APRATIM"
,OFFICE OF THE MINORITY WHIP,2012Q3,TRAVEL,2019-07-06,"AVILES,DANIELLE R",2012-06-28,2012-06-28,TAXI/PARKING/TOLLS,21,2012,AP,Accounts payable,482379,"AVILES,DANIELLE R"
,OFFICE OF THE MINORITY WHIP,2012Q3,TRAVEL,2019-07-06,"GHOSH,APRATIM",2012-06-29,2012-06-29,TAXI/PARKING/TOLLS,10,2012,AP,Accounts payable,482435,"GHOSH,APRATIM"
,OFFICE OF THE MINORITY WHIP,2012Q3,TRAVEL,2019-07-09,"COBIA, LINDSEY G",2012-06-25,2012-06-25,TAXI/PARKING/TOLLS,10,2012,AP,Accounts payable,482493,"COBIA, LINDSEY G"
,OFFICE OF THE MINORITY WHIP,2012Q3,TRAVEL,2019-07-09,"AVILES,DANIELLE R",2012-06-26,2012-06-26,TAXI/PARKING/TOLLS,20,2012,AP,Accounts payable,482495,"AVILES,DANIELLE R"
,OFFICE OF THE MINORITY WHIP,2012Q3,TRAVEL,2019-07-09,"GHOSH,APRATIM",2012-06-26,2012-06-26,TAXI/PARKING/TOLLS,7.32,2012,AP,Accounts payable,482496,"GHOSH,APRATIM"
,OFFICE OF THE MINORITY WHIP,2012Q3,TRAVEL,2019-07-09,"GENSEMER, ELLIOT J",2012-06-26,2012-06-26,TAXI/PARKING/TOLLS,19,2012,AP,Accounts payable,482499,"GENSEMER, ELLIOT J"
,OFFICE OF THE MINORITY WHIP,2012Q3,TRAVEL,2019-07-13,"GHOSH,APRATIM",2012-06-28,2012-06-28,TAXI/PARKING/TOLLS,10,2012,AP,Accounts payable,482413,"GHOSH,APRATIM"
,OFFICE OF THE MINORITY WHIP,2012Q3,TRAVEL,2019-07-19,"AVILES,DANIELLE R",2012-07-04,2012-07-04,TAXI/PARKING/TOLLS,38,2012,AP,Accounts payable,492721,"AVILES,DANIELLE R"
,OFFICE OF THE MINORITY WHIP,2012Q3,TRAVEL,2019-07-19,"GHOSH,APRATIM",2012-07-09,2012-07-09,TAXI/PARKING/TOLLS,12,2012,AP,Accounts payable,492722,"GHOSH,APRATIM"
,OFFICE OF THE MINORITY WHIP,2012Q3,TRAVEL,2019-07-19,"AVILES,DANIELLE R",2012-07-12,2012-07-12,TAXI/PARKING/TOLLS,24,2012,AP,Accounts payable,492724,"AVILES,DANIELLE R"
,OFFICE OF THE MINORITY WHIP,2012Q3,TRAVEL,2019-07-19,"AVILES,DANIELLE R",2012-07-03,2012-07-03,TAXI/PARKING/TOLLS,10,2012,AP,Accounts payable,492728,"AVILES,DANIELLE R"
,OFFICE OF THE MINORITY WHIP,2012Q3,TRAVEL,2019-07-19,"AVILES,DANIELLE R",2012-07-04,2012-07-04,TAXI/PARKING/TOLLS,25.27,2012,AP,Accounts payable,492730,"AVILES,DANIELLE R"
,OFFICE OF THE MINORITY WHIP,2012Q3,TRAVEL,2019-07-19,"GENSEMER, ELLIOT J",2012-07-04,2012-07-04,TAXI/PARKING/TOLLS,20,2012,AP,Accounts payable,492732,"GENSEMER, ELLIOT J"
,OFFICE OF THE MINORITY WHIP,2012Q3,TRAVEL,2019-07-19,"GENSEMER, ELLIOT J",2012-07-04,2012-07-04,TAXI/PARKING/TOLLS,18,2012,AP,Accounts payable,492733,"GENSEMER, ELLIOT J"
,OFFICE OF THE MINORITY WHIP,2012Q3,TRAVEL,2019-07-26,"COBIA, LINDSEY G",2012-07-17,2012-07-17,TAXI/PARKING/TOLLS,11,2012,AP,Accounts payable,498258,"COBIA, LINDSEY G"
,OFFICE OF THE MINORITY WHIP,2012Q3,TRAVEL,2019-07-26,"GHOSH,APRATIM",2012-07-18,2012-07-18,TAXI/PARKING/TOLLS,10,2012,AP,Accounts payable,498276,"GHOSH,APRATIM"
,OFFICE OF THE MINORITY WHIP,2012Q3,TRAVEL,2019-07-26,"GENSEMER, ELLIOT J",2012-07-18,2012-07-18,TAXI/PARKING/TOLLS,18,2012,AP,Accounts payable,498291,"GENSEMER, ELLIOT J"
,OFFICE OF THE MINORITY WHIP,2012Q3,TRAVEL,2019-07-27,"MAHR, THOMAS",2012-07-17,2012-07-17,TAXI/PARKING/TOLLS,10,2012,AP,Accounts payable,498267,"MAHR, THOMAS"
,OFFICE OF THE MINORITY WHIP,2012Q3,TRAVEL,2019-07-27,"MAHR, THOMAS",2012-07-17,2012-07-17,TAXI/PARKING/TOLLS,11,2012,AP,Accounts payable,498270,"MAHR, THOMAS"
,OFFICE OF THE MINORITY WHIP,2012Q3,TRAVEL,2019-07-27,"GHOSH,APRATIM",2012-07-20,2012-07-20,TAXI/PARKING/TOLLS,7,2012,AP,Accounts payable,499000,"GHOSH,APRATIM"
,OFFICE OF THE MINORITY WHIP,2012Q3,TRAVEL,2019-07-27,"GHOSH,APRATIM",2012-07-24,2012-07-24,TAXI/PARKING/TOLLS,8,2012,AP,Accounts payable,499003,"GHOSH,APRATIM"
,OFFICE OF THE MINORITY WHIP,2012Q3,TRAVEL,2019-07-27,"GHOSH,APRATIM",2012-07-19,2012-07-19,TAXI/PARKING/TOLLS,10,2012,AP,Accounts payable,499008,"GHOSH,APRATIM"
,OFFICE OF THE MINORITY WHIP,2012Q3,TRAVEL,2019-07-27,"DEBOSIER, CHRISTOPHER M",2012-07-19,2012-07-19,TAXI/PARKING/TOLLS,12,2012,AP,Accounts payable,499011,"DEBOSIER, CHRISTOPHER M"
,OFFICE OF THE MINORITY WHIP,2012Q3,TRAVEL,2019-07-27,"AVILES,DANIELLE R",2012-07-19,2012-07-19,TAXI/PARKING/TOLLS,21,2012,AP,Accounts payable,499013,"AVILES,DANIELLE R"
,OFFICE OF THE MINORITY WHIP,2012Q3,TRAVEL,2019-07-27,"DEBOSIER, CHRISTOPHER M",2012-07-19,2012-07-19,TAXI/PARKING/TOLLS,12,2012,AP,Accounts payable,499015,"DEBOSIER, CHRISTOPHER M"
,OFFICE OF THE MINORITY WHIP,2012Q3,TRAVEL,2019-07-27,"AVILES,DANIELLE R",2012-07-19,2012-07-19,TAXI/PARKING/TOLLS,23,2012,AP,Accounts payable,499018,"AVILES,DANIELLE R"
,OFFICE OF THE MINORITY WHIP,2012Q3,TRAVEL,2019-07-27,"GENSEMER, ELLIOT J",2012-07-10,2012-07-10,TAXI/PARKING/TOLLS,18,2012,AP,Accounts payable,499021,"GENSEMER, ELLIOT J"
,OFFICE OF THE MINORITY WHIP,2012Q3,TRAVEL,2019-07-27,"GHOSH,APRATIM",2012-07-10,2012-07-10,TAXI/PARKING/TOLLS,8,2012,AP,Accounts payable,499025,"GHOSH,APRATIM"
,OFFICE OF THE MINORITY WHIP,2012Q3,TRAVEL,2019-07-27,"COBIA, LINDSEY G",2012-07-13,2012-07-13,TAXI/PARKING/TOLLS,7,2012,AP,Accounts payable,499027,"COBIA, LINDSEY G"
,OFFICE OF THE MINORITY WHIP,2012Q3,TRAVEL,2019-07-27,"GHOSH,APRATIM",2012-07-17,2012-07-17,TAXI/PARKING/TOLLS,10,2012,AP,Accounts payable,499031,"GHOSH,APRATIM"
,OFFICE OF THE MINORITY WHIP,2012Q3,TRAVEL,2019-08-28,"AVILES,DANIELLE R",2012-08-02,2012-08-02,TAXI/PARKING/TOLLS,22,2012,AP,Accounts payable,517922,"AVILES,DANIELLE R"
,OFFICE OF THE MINORITY WHIP,2012Q3,TRAVEL,2019-08-28,"GENSEMER, ELLIOT J",2012-08-03,2012-08-03,TAXI/PARKING/TOLLS,20,2012,AP,Accounts payable,517924,"GENSEMER, ELLIOT J"
,OFFICE OF THE MINORITY WHIP,2012Q3,TRAVEL,2019-08-28,"AVILES,DANIELLE R",2012-08-22,2012-08-22,TAXI/PARKING/TOLLS,24,2012,AP,Accounts payable,517927,"AVILES,DANIELLE R"
,OFFICE OF THE MINORITY WHIP,2012Q3,TRAVEL,2019-08-28,"GENSEMER, ELLIOT J",2012-07-25,2012-07-25,TAXI/PARKING/TOLLS,20,2012,AP,Accounts payable,517929,"GENSEMER, ELLIOT J"
,OFFICE OF THE MINORITY WHIP,2012Q3,TRAVEL,2019-08-28,"GHOSH,APRATIM",2012-07-25,2012-07-25,TAXI/PARKING/TOLLS,20,2012,AP,Accounts payable,517932,"GHOSH,APRATIM"
,OFFICE OF THE MINORITY WHIP,2012Q3,TRAVEL,2019-08-28,"AVILES,DANIELLE R",2012-07-26,2012-07-26,TAXI/PARKING/TOLLS,20,2012,AP,Accounts payable,517935,"AVILES,DANIELLE R"
,OFFICE OF THE MINORITY WHIP,2012Q3,TRAVEL,2019-08-28,"GENSEMER, ELLIOT J",2012-05-31,2012-05-31,TAXI/PARKING/TOLLS,14,2012,AP,Accounts payable,517937,"GENSEMER, ELLIOT J"
,OFFICE OF THE MINORITY WHIP,2012Q3,TRAVEL,2019-08-28,"AVILES,DANIELLE R",2012-07-31,2012-07-31,TAXI/PARKING/TOLLS,19,2012,AP,Accounts payable,517939,"AVILES,DANIELLE R"
,OFFICE OF THE MINORITY WHIP,2012Q3,TRAVEL,2019-08-28,"GHOSH,APRATIM",2012-07-31,2012-07-31,TAXI/PARKING/TOLLS,20,2012,AP,Accounts payable,517943,"GHOSH,APRATIM"
,OFFICE OF THE MINORITY WHIP,2012Q3,TRAVEL,2019-09-28,"COBIA, LINDSEY G",2012-09-20,2012-09-20,TAXI/PARKING/TOLLS,15,2012,AP,Accounts payable,538418,"COBIA, LINDSEY G"
,OFFICE OF THE MINORITY WHIP,2012Q3,TRAVEL,2019-09-28,"AVILES,DANIELLE R",2012-09-20,2012-09-20,TAXI/PARKING/TOLLS,25,2012,AP,Accounts payable,538420,"AVILES,DANIELLE R"
,OFFICE OF THE MINORITY WHIP,2012Q3,TRAVEL,2019-09-28,"COBIA, LINDSEY G",2012-08-31,2012-08-31,TAXI/PARKING/TOLLS,10,2012,AP,Accounts payable,538424,"COBIA, LINDSEY G"
,OFFICE OF THE MINORITY WHIP,2012Q3,TRAVEL,2019-09-28,"AVILES,DANIELLE R",2012-09-13,2012-09-13,TAXI/PARKING/TOLLS,22,2012,AP,Accounts payable,538429,"AVILES,DANIELLE R"
,OFFICE OF THE MINORITY WHIP,2012Q3,TRAVEL,2019-09-28,"AVILES,DANIELLE R",2012-09-14,2012-09-14,TAXI/PARKING/TOLLS,24,2012,AP,Accounts payable,538431,"AVILES,DANIELLE R"
,OFFICE OF THE MINORITY WHIP,2012Q3,"RENT, COMMUNICATION, UTILITIES",2019-08-16,"DWYER, STEPHEN",2012-05-15,2012-05-15,POSTAGE / COURIER / BOX RENTAL,-5.15,2012,AP,Accounts payable,508674,"DWYER, STEPHEN"
,OFFICE OF THE MINORITY WHIP,2012Q3,"RENT, COMMUNICATION, UTILITIES",2019-08-20,"DWYER, STEPHEN",2012-05-15,2012-05-15,POSTAGE / COURIER / BOX RENTAL,-5.15,2012,AP,Accounts payable,513963,"DWYER, STEPHEN"
,OFFICE OF THE MINORITY WHIP,2012Q3,PRINTING AND REPRODUCTION,2019-07-06,DAVID L. ANDRUKITUS INC,2012-06-01,2012-06-11,PRINTING & REPRODUCTION,115,2012,AP,Accounts payable,482344,DAVID L. ANDRUKITUS INC
,OFFICE OF THE MINORITY WHIP,2012Q3,PRINTING AND REPRODUCTION,2019-07-06,DAVID L. ANDRUKITUS INC,2012-06-28,2012-06-28,PRINTING & REPRODUCTION,157.5,2012,AP,Accounts payable,482384,DAVID L. ANDRUKITUS INC
,OFFICE OF THE MINORITY WHIP,2012Q3,PRINTING AND REPRODUCTION,2019-07-06,DAVID L. ANDRUKITUS INC,2012-06-28,2012-06-28,PRINTING & REPRODUCTION,127.5,2012,AP,Accounts payable,482404,DAVID L. ANDRUKITUS INC
,OFFICE OF THE MINORITY WHIP,2012Q3,PRINTING AND REPRODUCTION,2019-07-27,DAVID L. ANDRUKITUS INC,2012-07-19,2012-07-19,PRINTING & REPRODUCTION,127.5,2012,AP,Accounts payable,498997,DAVID L. ANDRUKITUS INC
,OFFICE OF THE MINORITY WHIP,2012Q3,PRINTING AND REPRODUCTION,2019-07-27,DAVID L. ANDRUKITUS INC,2012-07-16,2012-07-16,PRINTING & REPRODUCTION,40,2012,AP,Accounts payable,499029,DAVID L. ANDRUKITUS INC
,OFFICE OF THE MINORITY WHIP,2012Q3,PRINTING AND REPRODUCTION,2019-08-28,,2012-08-01,2012-08-31,PHOTOGRAPHIC (TRANSFER),85.4,2012,GL,General ledger,PIX0022012,
,OFFICE OF THE MINORITY WHIP,2012Q3,PRINTING AND REPRODUCTION,2019-09-28,DAVID L. ANDRUKITUS INC,2012-09-17,2012-09-17,PRINTING & REPRODUCTION,40,2012,AP,Accounts payable,538434,DAVID L. ANDRUKITUS INC
,OFFICE OF THE MINORITY WHIP,2012Q3,OTHER SERVICES,2019-07-12,TRANSLATIONS INTERNATIONAL INC,2012-03-29,2012-03-29,TRANSLATN AND INTERPRET SERV,299.6,2012,AP,Accounts payable,484176,TRANSLATIONS INTERNATIONAL INC
,OFFICE OF THE MINORITY WHIP,2012Q3,OTHER SERVICES,2019-07-18,CITIBANK P CARD,2012-05-29,2012-06-28,LAUNDRY SERVICES,254.64,2012,AP,Accounts payable,492994,CITIBANK P CARD
,OFFICE OF THE MINORITY WHIP,2012Q3,OTHER SERVICES,2019-08-20,CITIBANK P CARD,2012-06-29,2012-07-28,LAUNDRY SERVICES,190.98,2012,AP,Accounts payable,514287,CITIBANK P CARD
,OFFICE OF THE MINORITY WHIP,2012Q3,OTHER SERVICES,2019-09-19,CITIBANK P CARD,2012-07-29,2012-08-28,LAUNDRY SERVICES,63.66,2012,AP,Accounts payable,534090,CITIBANK P CARD
,OFFICE OF THE MINORITY WHIP,2012Q3,SUPPLIES AND MATERIALS,2019-07-05,TV EYES INC,2012-07-01,2013-06-30,PUBLICATIONS/REFERENCE MAT'L,"1,200.00",2012,AP,Accounts payable,481154,TV EYES INC
,OFFICE OF THE MINORITY WHIP,2012Q3,SUPPLIES AND MATERIALS,2019-07-09,CAPITOLHOST,2012-06-28,2012-06-28,FOOD & BEVERAGE,28.2,2012,AP,Accounts payable,483382,CAPITOLHOST
,OFFICE OF THE MINORITY WHIP,2012Q3,SUPPLIES AND MATERIALS,2019-07-09,PANERA BREAD COMPANY,2012-06-28,2012-06-28,FOOD & BEVERAGE,66.96,2012,AP,Accounts payable,483396,PANERA BREAD COMPANY
,OFFICE OF THE MINORITY WHIP,2012Q3,SUPPLIES AND MATERIALS,2019-07-09,CAPITOLHOST,2012-06-21,2012-06-21,FOOD & BEVERAGE,28.2,2012,AP,Accounts payable,483399,CAPITOLHOST
,OFFICE OF THE MINORITY WHIP,2012Q3,SUPPLIES AND MATERIALS,2019-07-09,CAPITOLHOST,2012-06-22,2012-06-22,FOOD & BEVERAGE,42.3,2012,AP,Accounts payable,483403,CAPITOLHOST
,OFFICE OF THE MINORITY WHIP,2012Q3,SUPPLIES AND MATERIALS,2019-07-09,PANERA BREAD COMPANY,2012-06-22,2012-06-22,FOOD & BEVERAGE,99.34,2012,AP,Accounts payable,483405,PANERA BREAD COMPANY
,OFFICE OF THE MINORITY WHIP,2012Q3,SUPPLIES AND MATERIALS,2019-07-09,CAPITOLHOST,2012-06-27,2012-06-27,FOOD & BEVERAGE,89.99,2012,AP,Accounts payable,483408,CAPITOLHOST
,OFFICE OF THE MINORITY WHIP,2012Q3,SUPPLIES AND MATERIALS,2019-07-09,PANERA BREAD COMPANY,2012-06-27,2012-06-27,FOOD & BEVERAGE,106.95,2012,AP,Accounts payable,483412,PANERA BREAD COMPANY
,OFFICE OF THE MINORITY WHIP,2012Q3,SUPPLIES AND MATERIALS,2019-07-09,PANERA BREAD COMPANY,2012-06-08,2012-06-08,FOOD & BEVERAGE,99.34,2012,AP,Accounts payable,483415,PANERA BREAD COMPANY
,OFFICE OF THE MINORITY WHIP,2012Q3,SUPPLIES AND MATERIALS,2019-07-09,CAPITOLHOST,2012-06-08,2012-06-08,FOOD & BEVERAGE,42.3,2012,AP,Accounts payable,483419,CAPITOLHOST
,OFFICE OF THE MINORITY WHIP,2012Q3,SUPPLIES AND MATERIALS,2019-07-09,CAPITOLHOST,2012-06-20,2012-06-20,FOOD & BEVERAGE,89.99,2012,AP,Accounts payable,483424,CAPITOLHOST
,OFFICE OF THE MINORITY WHIP,2012Q3,SUPPLIES AND MATERIALS,2019-07-09,CAPITOLHOST,2012-06-20,2012-06-20,FOOD & BEVERAGE,44.99,2012,AP,Accounts payable,483428,CAPITOLHOST
,OFFICE OF THE MINORITY WHIP,2012Q3,SUPPLIES AND MATERIALS,2019-07-09,PANERA BREAD COMPANY,2012-06-20,2012-06-20,FOOD & BEVERAGE,122.93,2012,AP,Accounts payable,483432,PANERA BREAD COMPANY
,OFFICE OF THE MINORITY WHIP,2012Q3,SUPPLIES AND MATERIALS,2019-07-09,PANERA BREAD COMPANY,2012-06-01,2012-06-01,FOOD & BEVERAGE,99.34,2012,AP,Accounts payable,483436,PANERA BREAD COMPANY
,OFFICE OF THE MINORITY WHIP,2012Q3,SUPPLIES AND MATERIALS,2019-07-09,PANERA BREAD COMPANY,2012-06-06,2012-06-06,FOOD & BEVERAGE,442.36,2012,AP,Accounts payable,483441,PANERA BREAD COMPANY
,OFFICE OF THE MINORITY WHIP,2012Q3,SUPPLIES AND MATERIALS,2019-07-09,CAPITOLHOST,2012-06-06,2012-06-06,FOOD & BEVERAGE,89.99,2012,AP,Accounts payable,483445,CAPITOLHOST
,OFFICE OF THE MINORITY WHIP,2012Q3,SUPPLIES AND MATERIALS,2019-07-09,CAPITOLHOST,2012-06-07,2012-06-07,FOOD & BEVERAGE,28.2,2012,AP,Accounts payable,483448,CAPITOLHOST
,OFFICE OF THE MINORITY WHIP,2012Q3,SUPPLIES AND MATERIALS,2019-07-09,PANERA BREAD COMPANY,2012-06-07,2012-06-07,FOOD & BEVERAGE,66.96,2012,AP,Accounts payable,483451,PANERA BREAD COMPANY
,OFFICE OF THE MINORITY WHIP,2012Q3,SUPPLIES AND MATERIALS,2019-07-12,"GENSEMER, ELLIOT J",2012-05-23,2012-05-23,OFFICE SUPPLIES (OUTSIDE),33.81,2012,AP,Accounts payable,484184,"GENSEMER, ELLIOT J"
,OFFICE OF THE MINORITY WHIP,2012Q3,SUPPLIES AND MATERIALS,2019-07-12,"GENSEMER, ELLIOT J",2012-05-23,2012-05-23,OFFICE SUPPLIES (OUTSIDE),14.8,2012,AP,Accounts payable,484186,"GENSEMER, ELLIOT J"
,OFFICE OF THE MINORITY WHIP,2012Q3,SUPPLIES AND MATERIALS,2019-07-12,"GENSEMER, ELLIOT J",2012-05-23,2012-05-23,FOOD & BEVERAGE,39.85,2012,AP,Accounts payable,484189,"GENSEMER, ELLIOT J"
,OFFICE OF THE MINORITY WHIP,2012Q3,SUPPLIES AND MATERIALS,2019-07-12,PANERA BREAD COMPANY,2012-04-18,2012-04-18,FOOD & BEVERAGE,177.9,2012,AP,Accounts payable,485399,PANERA BREAD COMPANY
,OFFICE OF THE MINORITY WHIP,2012Q3,SUPPLIES AND MATERIALS,2019-07-12,PANERA BREAD COMPANY,2012-04-25,2012-04-25,FOOD & BEVERAGE,68.96,2012,AP,Accounts payable,485400,PANERA BREAD COMPANY
,OFFICE OF THE MINORITY WHIP,2012Q3,SUPPLIES AND MATERIALS,2019-07-18,CITIBANK P CARD,2012-05-29,2012-06-28,FOOD & BEVERAGE,"3,981.14",2012,AP,Accounts payable,492994,CITIBANK P CARD
,OFFICE OF THE MINORITY WHIP,2012Q3,SUPPLIES AND MATERIALS,2019-07-18,CITIBANK P CARD,2012-05-29,2012-06-28,PUBLICATIONS/REFERENCE MAT'L,37.1,2012,AP,Accounts payable,492994,CITIBANK P CARD
,OFFICE OF THE MINORITY WHIP,2012Q3,SUPPLIES AND MATERIALS,2019-07-19,"COBIA, LINDSEY G",2012-07-13,2012-07-13,FOOD & BEVERAGE,40.22,2012,AP,Accounts payable,492725,"COBIA, LINDSEY G"
,OFFICE OF THE MINORITY WHIP,2012Q3,SUPPLIES AND MATERIALS,2019-07-20,PANERA BREAD COMPANY,2012-06-22,2012-06-22,FOOD & BEVERAGE,10,2012,AP,Accounts payable,494247,PANERA BREAD COMPANY
,OFFICE OF THE MINORITY WHIP,2012Q3,SUPPLIES AND MATERIALS,2019-07-20,PANERA BREAD COMPANY,2012-06-28,2012-06-28,FOOD & BEVERAGE,8,2012,AP,Accounts payable,494249,PANERA BREAD COMPANY
,OFFICE OF THE MINORITY WHIP,2012Q3,SUPPLIES AND MATERIALS,2019-08-08,PANERA BREAD COMPANY,2012-07-11,2012-07-11,FOOD & BEVERAGE,94.46,2012,AP,Accounts payable,503717,PANERA BREAD COMPANY
,OFFICE OF THE MINORITY WHIP,2012Q3,SUPPLIES AND MATERIALS,2019-08-08,CAPITOLHOST,2012-07-11,2012-07-11,FOOD & BEVERAGE,89.99,2012,AP,Accounts payable,503719,CAPITOLHOST
,OFFICE OF THE MINORITY WHIP,2012Q3,SUPPLIES AND MATERIALS,2019-08-08,CAPITOLHOST,2012-07-12,2012-07-12,FOOD & BEVERAGE,28.2,2012,AP,Accounts payable,503720,CAPITOLHOST
,OFFICE OF THE MINORITY WHIP,2012Q3,SUPPLIES AND MATERIALS,2019-08-08,PANERA BREAD COMPANY,2012-07-13,2012-07-13,FOOD & BEVERAGE,136.52,2012,AP,Accounts payable,503721,PANERA BREAD COMPANY
,OFFICE OF THE MINORITY WHIP,2012Q3,SUPPLIES AND MATERIALS,2019-08-08,CAPITOLHOST,2012-07-18,2012-07-18,FOOD & BEVERAGE,90,2012,AP,Accounts payable,503722,CAPITOLHOST
,OFFICE OF THE MINORITY WHIP,2012Q3,SUPPLIES AND MATERIALS,2019-08-08,CAPITOLHOST,2012-07-25,2012-07-25,FOOD & BEVERAGE,90,2012,AP,Accounts payable,503723,CAPITOLHOST
,OFFICE OF THE MINORITY WHIP,2012Q3,SUPPLIES AND MATERIALS,2019-08-08,PANERA BREAD COMPANY,2012-07-25,2012-07-25,FOOD & BEVERAGE,120.44,2012,AP,Accounts payable,503724,PANERA BREAD COMPANY
,OFFICE OF THE MINORITY WHIP,2012Q3,SUPPLIES AND MATERIALS,2019-08-08,CAPITOLHOST,2012-07-26,2012-07-26,FOOD & BEVERAGE,28.2,2012,AP,Accounts payable,503725,CAPITOLHOST
,OFFICE OF THE MINORITY WHIP,2012Q3,SUPPLIES AND MATERIALS,2019-08-08,CAPITOLHOST,2012-07-27,2012-07-27,FOOD & BEVERAGE,174.96,2012,AP,Accounts payable,503726,CAPITOLHOST
,OFFICE OF THE MINORITY WHIP,2012Q3,SUPPLIES AND MATERIALS,2019-08-08,PANERA BREAD COMPANY,2012-07-18,2012-07-18,FOOD & BEVERAGE,171.4,2012,AP,Accounts payable,503728,PANERA BREAD COMPANY
,OFFICE OF THE MINORITY WHIP,2012Q3,SUPPLIES AND MATERIALS,2019-08-08,CAPITOLHOST,2012-07-19,2012-07-19,FOOD & BEVERAGE,28.2,2012,AP,Accounts payable,503729,CAPITOLHOST
,OFFICE OF THE MINORITY WHIP,2012Q3,SUPPLIES AND MATERIALS,2019-08-08,CAPITOLHOST,2012-07-20,2012-07-20,FOOD & BEVERAGE,42.3,2012,AP,Accounts payable,503731,CAPITOLHOST
,OFFICE OF THE MINORITY WHIP,2012Q3,SUPPLIES AND MATERIALS,2019-08-08,PANERA BREAD COMPANY,2012-07-20,2012-07-20,FOOD & BEVERAGE,95.75,2012,AP,Accounts payable,503732,PANERA BREAD COMPANY
,OFFICE OF THE MINORITY WHIP,2012Q3,SUPPLIES AND MATERIALS,2019-08-08,PANERA BREAD COMPANY,2012-07-24,2012-07-24,FOOD & BEVERAGE,91.45,2012,AP,Accounts payable,503733,PANERA BREAD COMPANY
,OFFICE OF THE MINORITY WHIP,2012Q3,SUPPLIES AND MATERIALS,2019-08-20,TV EYES INC,2012-07-01,2013-06-30,PUBLICATIONS/REFERENCE MAT'L,"-1,200.00",2012,AP,Accounts payable,513960,TV EYES INC
,OFFICE OF THE MINORITY WHIP,2012Q3,SUPPLIES AND MATERIALS,2019-08-20,CITIBANK P CARD,2012-06-29,2012-07-28,FOOD & BEVERAGE,"6,956.27",2012,AP,Accounts payable,514287,CITIBANK P CARD
,OFFICE OF THE MINORITY WHIP,2012Q3,SUPPLIES AND MATERIALS,2019-08-20,CITIBANK P CARD,2012-06-29,2012-07-28,PUBLICATIONS/REFERENCE MAT'L,65.67,2012,AP,Accounts payable,514287,CITIBANK P CARD
,OFFICE OF THE MINORITY WHIP,2012Q3,SUPPLIES AND MATERIALS,2019-09-17,PANERA BREAD COMPANY,2012-08-01,2012-08-01,FOOD & BEVERAGE,133.93,2012,AP,Accounts payable,529047,PANERA BREAD COMPANY
,OFFICE OF THE MINORITY WHIP,2012Q3,SUPPLIES AND MATERIALS,2019-09-17,PANERA BREAD COMPANY,2012-08-03,2012-08-03,FOOD & BEVERAGE,95.75,2012,AP,Accounts payable,529048,PANERA BREAD COMPANY
,OFFICE OF THE MINORITY WHIP,2012Q3,SUPPLIES AND MATERIALS,2019-09-18,HAUTE ON THE HILL,2012-08-02,2012-08-02,FOOD & BEVERAGE,28.2,2012,AP,Accounts payable,529887,HAUTE ON THE HILL
,OFFICE OF THE MINORITY WHIP,2012Q3,SUPPLIES AND MATERIALS,2019-09-19,CITIBANK P CARD,2012-07-29,2012-08-28,FOOD & BEVERAGE,"10,492.01",2012,AP,Accounts payable,534090,CITIBANK P CARD
,OFFICE OF THE MINORITY WHIP,2012Q3,SUPPLIES AND MATERIALS,2019-09-19,CITIBANK P CARD,2012-07-29,2012-08-28,PUBLICATIONS/REFERENCE MAT'L,296.84,2012,AP,Accounts payable,534090,CITIBANK P CARD
,OFFICE OF THE MINORITY WHIP,2012Q3,SUPPLIES AND MATERIALS,2019-09-28,CAPITOLHOST,2012-04-19,2012-04-19,FOOD & BEVERAGE,175.5,2012,AP,Accounts payable,538423,CAPITOLHOST
,DEMOCRATIC CAUCUS,2012Q3,FRANKED MAIL,2019-09-06,UNITED STATES POSTAL SERVICE,2012-05-01,2012-05-31,FRANKED MAIL,-1.35,2012,AP,Accounts payable,522468,UNITED STATES POSTAL SERVICE
,DEMOCRATIC CAUCUS,2012Q3,FRANKED MAIL,2019-09-06,UNITED STATES POSTAL SERVICE,2012-01-03,2012-01-31,FRANKED MAIL,-11.96,2012,AP,Accounts payable,522478,UNITED STATES POSTAL SERVICE
,DEMOCRATIC CAUCUS,2012Q3,FRANKED MAIL,2019-09-06,UNITED STATES POSTAL SERVICE,2012-03-01,2012-03-31,FRANKED MAIL,-1.8,2012,AP,Accounts payable,522484,UNITED STATES POSTAL SERVICE
,DEMOCRATIC CAUCUS,2012Q3,PERSONNEL COMPENSATION,,"ANDRES,DON CHRIS M",2012-07-01,2012-09-30,STAFF ASSISTANT,"8,749.99",2012,,,,"ANDRES,DON CHRIS M"
,DEMOCRATIC CAUCUS,2012Q3,PERSONNEL COMPENSATION,,"AVERY,SAMUEL R",2012-06-11,2012-09-30,PRESS ASSISTANT,"10,472.21",2012,,,,"AVERY,SAMUEL R"
,DEMOCRATIC CAUCUS,2012Q3,PERSONNEL COMPENSATION,,"BANJAC,SRDAN",2012-07-01,2012-09-30,ASSISTANT TO THE CHAIRMAN,"13,666.67",2012,,,,"BANJAC,SRDAN"
,DEMOCRATIC CAUCUS,2012Q3,PERSONNEL COMPENSATION,,"BRACHMAN, ELLIS A",2012-07-01,2012-09-30,COMMUNICATIONS DIRECTOR,"31,224.67",2012,,,,"BRACHMAN, ELLIS A"
,DEMOCRATIC CAUCUS,2012Q3,PERSONNEL COMPENSATION,,"DAGADAKIS,STAMATIOS",2012-07-01,2012-09-30,DEPUTY EXEC DIRECTOR,"25,750.00",2012,,,,"DAGADAKIS,STAMATIOS"
,DEMOCRATIC CAUCUS,2012Q3,PERSONNEL COMPENSATION,,"DE PUY,GERALDINE M",2012-07-01,2012-09-30,CORRESPONDENCE ASSISTANT,"19,375.01",2012,,,,"DE PUY,GERALDINE M"
,DEMOCRATIC CAUCUS,2012Q3,PERSONNEL COMPENSATION,,"DELANEY, ERIC L",2012-07-01,2012-09-30,SR MBR OUTREACH ASST,"12,500.01",2012,,,,"DELANEY, ERIC L"
,DEMOCRATIC CAUCUS,2012Q3,PERSONNEL COMPENSATION,,"ESPARZA DIGGS,IRMA Y",2012-07-01,2012-08-31,EXECUTIVE DIRECTOR,"23,333.34",2012,,,,"ESPARZA DIGGS,IRMA Y"
,DEMOCRATIC CAUCUS,2012Q3,PERSONNEL COMPENSATION,,"ESPARZA DIGGS,IRMA Y",2012-09-01,2012-09-30,CASEWORKER,"13,474.67",2012,,,,"ESPARZA DIGGS,IRMA Y"
,DEMOCRATIC CAUCUS,2012Q3,PERSONNEL COMPENSATION,,"FRAZIER, MATTHEW",2012-07-01,2012-08-31,MEDIA FELLOW,"4,000.00",2012,,,,"FRAZIER, MATTHEW"
,DEMOCRATIC CAUCUS,2012Q3,PERSONNEL COMPENSATION,,"GLEESON,JAMES M",2012-07-01,2012-09-30,PRESS SEC FOR THE VICE CHAIR,"12,437.49",2012,,,,"GLEESON,JAMES M"
,DEMOCRATIC CAUCUS,2012Q3,PERSONNEL COMPENSATION,,"GRADY,KATHERINE K",2012-07-01,2012-09-30,POLICY & OUTREACH COORDINATOR,"13,999.99",2012,,,,"GRADY,KATHERINE K"
,DEMOCRATIC CAUCUS,2012Q3,PERSONNEL COMPENSATION,,"HAWES-SAUNDERS,DONNICA L",2012-07-01,2012-09-30,STAFF ASSISTANT,"8,749.99",2012,,,,"HAWES-SAUNDERS,DONNICA L"
,DEMOCRATIC CAUCUS,2012Q3,PERSONNEL COMPENSATION,,"HERRERA,DANIEL",2012-07-06,2012-09-30,PRESS SECRETARY,"10,625.00",2012,,,,"HERRERA,DANIEL"
,DEMOCRATIC CAUCUS,2012Q3,PERSONNEL COMPENSATION,,"JAWORSKI, KIMBERLY H",2012-07-01,2012-09-30,EVENTS AND PROJECTS COORDINATO,"19,200.01",2012,,,,"JAWORSKI, KIMBERLY H"
,DEMOCRATIC CAUCUS,2012Q3,PERSONNEL COMPENSATION,,"KISSINGER,JUSTIN A",2012-07-01,2012-09-30,COUNSEL,"29,375.34",2012,,,,"KISSINGER,JUSTIN A"
,DEMOCRATIC CAUCUS,2012Q3,PERSONNEL COMPENSATION,,"LAWSON, ANITA S",2012-07-01,2012-09-30,FINANCIAL ADMINISTRATOR,"6,249.99",2012,,,,"LAWSON, ANITA S"
,DEMOCRATIC CAUCUS,2012Q3,PERSONNEL COMPENSATION,,"LEE,SYLVIA",2012-07-01,2012-07-31,STAFF ASSISTANT,"1,250.00",2012,,,,"LEE,SYLVIA"
,DEMOCRATIC CAUCUS,2012Q3,PERSONNEL COMPENSATION,,"MARTINEZ, JAVIER D",2012-06-18,2012-07-31,"PROF STAFF MBR, ECONOMIC OPP","8,958.33",2012,,,,"MARTINEZ, JAVIER D"
,DEMOCRATIC CAUCUS,2012Q3,PERSONNEL COMPENSATION,,"MARTINEZ, JAVIER D",2012-08-01,2012-08-30,DEPUTY DISTRICT DIRECTOR,"-8,958.33",2012,,,,"MARTINEZ, JAVIER D"
,DEMOCRATIC CAUCUS,2012Q3,PERSONNEL COMPENSATION,,"MCCLUSKIE,SEAN E",2012-07-01,2012-09-30,STAFF DIR FOR THE VICE CHAIR,"19,097.00",2012,,,,"MCCLUSKIE,SEAN E"
,DEMOCRATIC CAUCUS,2012Q3,PERSONNEL COMPENSATION,,"MCMAHON,KYLE A",2012-07-01,2012-09-30,PRESS ASSISTANT,"10,750.01",2012,,,,"MCMAHON,KYLE A"
,DEMOCRATIC CAUCUS,2012Q3,PERSONNEL COMPENSATION,,"PEREZ-SANCHEZ,NOEL",2012-07-01,2012-09-30,MEMBER OUTREACH ASSISTANT,"9,999.99",2012,,,,"PEREZ-SANCHEZ,NOEL"
,DEMOCRATIC CAUCUS,2012Q3,PERSONNEL COMPENSATION,,"PERONACE,ANTONIO",2012-07-01,2012-09-30,CREATIVE DIRECTOR,"26,000.01",2012,,,,"PERONACE,ANTONIO"
,DEMOCRATIC CAUCUS,2012Q3,PERSONNEL COMPENSATION,,"PLATT,ANDREW J",2012-07-01,2012-09-30,RESEARCH & TECHNOLOGY ASST,"14,250.01",2012,,,,"PLATT,ANDREW J"
,DEMOCRATIC CAUCUS,2012Q3,PERSONNEL COMPENSATION,,"RESENDENZ,MARVENE R",2012-07-01,2012-08-10,EXECUTIVE ASSISTANT/SCHEDULER,"7,222.23",2012,,,,"RESENDENZ,MARVENE R"
,DEMOCRATIC CAUCUS,2012Q3,PERSONNEL COMPENSATION,,"RESENDENZ,MARVENE R",2012-08-01,2012-08-10,EXECUTIVE ASSISTANT/SCHEDULER (OTHER COMPENSATION),"2,527.78",2012,,,,"RESENDENZ,MARVENE R"
,DEMOCRATIC CAUCUS,2012Q3,PERSONNEL COMPENSATION,,"RUDD,DIANA",2012-07-01,2012-07-31,STAFF ASSISTANT,"2,708.33",2012,,,,"RUDD,DIANA"
,DEMOCRATIC CAUCUS,2012Q3,PERSONNEL COMPENSATION,,"RUDD,DIANA",2012-07-01,2012-07-31,STAFF ASSISTANT (OTHER COMPENSATION),902.78,2012,,,,"RUDD,DIANA"
,DEMOCRATIC CAUCUS,2012Q3,PERSONNEL COMPENSATION,,"SITCOVSKY,DAVID",2012-07-01,2012-09-30,SHARED EMPLOYEE,"9,791.99",2012,,,,"SITCOVSKY,DAVID"
,DEMOCRATIC CAUCUS,2012Q3,PERSONNEL COMPENSATION,,"SKILES, KATHLEE",2012-07-09,2012-09-30,PRESS SEC& DIR OF ONLINE STRAT,"12,527.77",2012,,,,"SKILES, KATHLEE"
,DEMOCRATIC CAUCUS,2012Q3,PERSONNEL COMPENSATION,,"SLATER,LEE",2012-07-01,2012-09-30,CHIEF OF STAFF,"29,974.67",2012,,,,"SLATER,LEE"
,DEMOCRATIC CAUCUS,2012Q3,TRAVEL,2019-09-26,"JAWORSKI, KIMBERLY H",2012-08-17,2012-09-10,TAXI/PARKING/TOLLS,91,2012,AP,Accounts payable,537318,"JAWORSKI, KIMBERLY H"
,DEMOCRATIC CAUCUS,2012Q3,PRINTING AND REPRODUCTION,2019-07-26,,2012-07-01,2012-07-31,PHOTOGRAPHIC (TRANSFER),6.4,2012,GL,General ledger,PIX0021110,
,DEMOCRATIC CAUCUS,2012Q3,PRINTING AND REPRODUCTION,2019-09-07,XEROX CORPORATION,2012-03-21,2012-06-21,PRINTING & REPRODUCTION,104.43,2012,AP,Accounts payable,521657,XEROX CORPORATION
,DEMOCRATIC CAUCUS,2012Q3,PRINTING AND REPRODUCTION,2019-09-19,CITIBANK P CARD,2012-07-29,2012-08-28,PRINTING & REPRODUCTION,80.2,2012,AP,Accounts payable,534090,CITIBANK P CARD
,DEMOCRATIC CAUCUS,2012Q3,OTHER SERVICES,2019-07-18,CITIBANK P CARD,2012-05-29,2012-06-28,LAUNDRY SERVICES,306.74,2012,AP,Accounts payable,492994,CITIBANK P CARD
,DEMOCRATIC CAUCUS,2012Q3,OTHER SERVICES,2019-08-14,BOX INC,2012-02-27,2012-02-27,JANITORIAL AND MAINT SERV,100,2012,AP,Accounts payable,506336,BOX INC
,DEMOCRATIC CAUCUS,2012Q3,OTHER SERVICES,2019-08-14,BOX INC,2012-03-27,2012-03-27,JANITORIAL AND MAINT SERV,100,2012,AP,Accounts payable,506383,BOX INC
,DEMOCRATIC CAUCUS,2012Q3,OTHER SERVICES,2019-08-14,BOX INC,2012-04-27,2012-04-27,JANITORIAL AND MAINT SERV,100,2012,AP,Accounts payable,506386,BOX INC
,DEMOCRATIC CAUCUS,2012Q3,OTHER SERVICES,2019-08-14,BOX INC,2012-05-27,2012-05-27,JANITORIAL AND MAINT SERV,100,2012,AP,Accounts payable,506389,BOX INC
,DEMOCRATIC CAUCUS,2012Q3,OTHER SERVICES,2019-08-14,BOX INC,2012-06-27,2012-06-27,JANITORIAL AND MAINT SERV,100,2012,AP,Accounts payable,506394,BOX INC
,DEMOCRATIC CAUCUS,2012Q3,OTHER SERVICES,2019-08-20,CITIBANK P CARD,2012-06-29,2012-07-28,LAUNDRY SERVICES,365,2012,AP,Accounts payable,514287,CITIBANK P CARD
,DEMOCRATIC CAUCUS,2012Q3,OTHER SERVICES,2019-09-19,CITIBANK P CARD,2012-07-29,2012-08-28,LAUNDRY SERVICES,415,2012,AP,Accounts payable,534090,CITIBANK P CARD
,DEMOCRATIC CAUCUS,2012Q3,SUPPLIES AND MATERIALS,2019-07-18,CITIBANK P CARD,2012-05-29,2012-06-28,FOOD & BEVERAGE,"1,221.88",2012,AP,Accounts payable,492994,CITIBANK P CARD
,DEMOCRATIC CAUCUS,2012Q3,SUPPLIES AND MATERIALS,2019-07-18,CITIBANK P CARD,2012-05-29,2012-06-28,OFFICE SUPPLIES (OUTSIDE),612,2012,AP,Accounts payable,492994,CITIBANK P CARD
,DEMOCRATIC CAUCUS,2012Q3,SUPPLIES AND MATERIALS,2019-08-20,CITIBANK P CARD,2012-06-29,2012-07-28,FOOD & BEVERAGE,"1,617.71",2012,AP,Accounts payable,514287,CITIBANK P CARD
,DEMOCRATIC CAUCUS,2012Q3,SUPPLIES AND MATERIALS,2019-08-20,CITIBANK P CARD,2012-06-29,2012-07-28,OFFICE SUPPLIES (OUTSIDE),"1,108.00",2012,AP,Accounts payable,514287,CITIBANK P CARD
,DEMOCRATIC CAUCUS,2012Q3,SUPPLIES AND MATERIALS,2019-08-23,CHANTILLY DONUTS,2012-03-20,2012-03-20,FOOD & BEVERAGE,37.15,2012,AP,Accounts payable,515212,CHANTILLY DONUTS
,DEMOCRATIC CAUCUS,2012Q3,SUPPLIES AND MATERIALS,2019-08-23,CHANTILLY DONUTS,2012-06-29,2012-06-29,FOOD & BEVERAGE,52.15,2012,AP,Accounts payable,515214,CHANTILLY DONUTS
,DEMOCRATIC CAUCUS,2012Q3,SUPPLIES AND MATERIALS,2019-09-06,CORCORAN CATERERS INC,2012-08-01,2012-08-01,FOOD & BEVERAGE,945.45,2012,AP,Accounts payable,521655,CORCORAN CATERERS INC
,DEMOCRATIC CAUCUS,2012Q3,SUPPLIES AND MATERIALS,2019-09-07,LEXIS-NEXIS,2012-07-01,2012-07-31,PUBLICATIONS/REFERENCE MAT'L,416.67,2012,AP,Accounts payable,521659,LEXIS-NEXIS
,DEMOCRATIC CAUCUS,2012Q3,SUPPLIES AND MATERIALS,2019-09-12,HYATT REGENCY CHESAPEAKE BAY,2012-01-24,2012-01-26,MISC. SUPPLIES & MATERIALS,"-71,280.21",2012,AP,Accounts payable,525426,HYATT REGENCY CHESAPEAKE BAY
,DEMOCRATIC CAUCUS,2012Q3,SUPPLIES AND MATERIALS,2019-09-19,CITIBANK P CARD,2012-07-29,2012-08-28,FOOD & BEVERAGE,759.64,2012,AP,Accounts payable,534090,CITIBANK P CARD
,DEMOCRATIC CAUCUS,2012Q3,SUPPLIES AND MATERIALS,2019-09-27,DEER PARK,2012-08-31,2012-08-31,WATER,78,2012,AP,Accounts payable,537223,DEER PARK
,REPUBLICAN CONFERENCE,2012Q3,PERSONNEL COMPENSATION,,"BAKER,GREGORY S",2012-07-01,2012-08-31,REGIONAL REPRESENTATIVE,"5,000.00",2012,,,,"BAKER,GREGORY S"
,REPUBLICAN CONFERENCE,2012Q3,PERSONNEL COMPENSATION,,"BAKER,GREGORY S",2012-09-01,2012-09-30,STAFF ASSISTANT,"2,500.00",2012,,,,"BAKER,GREGORY S"
,REPUBLICAN CONFERENCE,2012Q3,PERSONNEL COMPENSATION,,"BEDARD,EDWARD A",2012-07-01,2012-09-30,STAFF ASSISTANT,"7,500.00",2012,,,,"BEDARD,EDWARD A"
,REPUBLICAN CONFERENCE,2012Q3,PERSONNEL COMPENSATION,,"BROWN, CHELSEA E",2012-07-01,2012-08-31,DIR OPS/DEP DIR MBR SERV&EVENT,"14,166.66",2012,,,,"BROWN, CHELSEA E"
,REPUBLICAN CONFERENCE,2012Q3,PERSONNEL COMPENSATION,,"BROWN, CHELSEA E",2012-09-01,2012-09-30,DIRECTOR OF OPERATIONS,"7,083.33",2012,,,,"BROWN, CHELSEA E"
,REPUBLICAN CONFERENCE,2012Q3,PERSONNEL COMPENSATION,,"BUCHANAN, MICHAEL D",2012-07-01,2012-09-30,CHIEF OF STAFF (STATUTORY),"43,125.00",2012,,,,"BUCHANAN, MICHAEL D"
,REPUBLICAN CONFERENCE,2012Q3,PERSONNEL COMPENSATION,,"COLLIGAN,DYLAN H",2012-07-01,2012-09-30,STAFF ASSISTANT,"8,250.00",2012,,,,"COLLIGAN,DYLAN H"
,REPUBLICAN CONFERENCE,2012Q3,PERSONNEL COMPENSATION,,"COLLINS,LISA J",2012-09-05,2012-09-30,POLICY ADVISOR,"4,044.44",2012,,,,"COLLINS,LISA J"
,REPUBLICAN CONFERENCE,2012Q3,PERSONNEL COMPENSATION,,"HILER,JONATHAN D",2012-07-01,2012-09-30,POLICY ADVISOR,"13,250.01",2012,,,,"HILER,JONATHAN D"
,REPUBLICAN CONFERENCE,2012Q3,PERSONNEL COMPENSATION,,"KLINGLER,HANS J",2012-07-01,2012-09-30,DEPUTY CHIEF OF STAFF,"38,124.99",2012,,,,"KLINGLER,HANS J"
,REPUBLICAN CONFERENCE,2012Q3,PERSONNEL COMPENSATION,,"KOENIG,ANDREW D",2012-07-01,2012-07-15,DEPUTY POLICY DIRECTOR,"3,125.00",2012,,,,"KOENIG,ANDREW D"
,REPUBLICAN CONFERENCE,2012Q3,PERSONNEL COMPENSATION,,"KOENIG,ANDREW D",2012-07-16,2012-09-30,POLICY DIRECTOR,"16,666.67",2012,,,,"KOENIG,ANDREW D"
,REPUBLICAN CONFERENCE,2012Q3,PERSONNEL COMPENSATION,,"MAKIN, SARAH E",2012-07-01,2012-09-30,"SR POL ADV, DIR OF COALITIONS","16,749.99",2012,,,,"MAKIN, SARAH E"
,REPUBLICAN CONFERENCE,2012Q3,PERSONNEL COMPENSATION,,"MEEKS,DARIS",2012-07-01,2012-07-13,POLICY DIRECTOR,"3,611.11",2012,,,,"MEEKS,DARIS"
,REPUBLICAN CONFERENCE,2012Q3,PERSONNEL COMPENSATION,,"PATRU, KATHRYN M",2012-07-01,2012-09-30,DIR OF MEMBER SERVICES,"35,000.01",2012,,,,"PATRU, KATHRYN M"
,REPUBLICAN CONFERENCE,2012Q3,PERSONNEL COMPENSATION,,"PINEGAR,PHILLIP",2012-07-01,2012-09-30,STAFF ASSISTANT,"7,500.00",2012,,,,"PINEGAR,PHILLIP"
,REPUBLICAN CONFERENCE,2012Q3,PERSONNEL COMPENSATION,,"POPP, DAVID M",2012-07-01,2012-09-30,ACTING COMMUNICATIONS DIRECTOR,"17,062.50",2012,,,,"POPP, DAVID M"
,REPUBLICAN CONFERENCE,2012Q3,PERSONNEL COMPENSATION,,"QUALTERE,THOMAS A",2012-07-01,2012-09-30,SPEECHWRITER,"10,500.00",2012,,,,"QUALTERE,THOMAS A"
,REPUBLICAN CONFERENCE,2012Q3,PERSONNEL COMPENSATION,,"RABBITT,CAROLINE",2012-07-01,2012-09-30,DEPUTY PRESS SECRETARY,"10,500.00",2012,,,,"RABBITT,CAROLINE"
,REPUBLICAN CONFERENCE,2012Q3,TRAVEL,2019-07-03,"MAKIN, SARAH E",2012-06-13,2012-06-13,TAXI/PARKING/TOLLS,11,2012,AP,Accounts payable,480792,"MAKIN, SARAH E"
,REPUBLICAN CONFERENCE,2012Q3,TRAVEL,2019-07-03,"MAKIN, SARAH E",2012-06-20,2012-06-20,TAXI/PARKING/TOLLS,11,2012,AP,Accounts payable,480793,"MAKIN, SARAH E"
,REPUBLICAN CONFERENCE,2012Q3,TRAVEL,2019-07-03,"MAKIN, SARAH E",2012-06-20,2012-06-20,TAXI/PARKING/TOLLS,11,2012,AP,Accounts payable,480795,"MAKIN, SARAH E"
,REPUBLICAN CONFERENCE,2012Q3,TRAVEL,2019-07-03,"MAKIN, SARAH E",2012-06-21,2012-06-21,TAXI/PARKING/TOLLS,10,2012,AP,Accounts payable,480797,"MAKIN, SARAH E"
,REPUBLICAN CONFERENCE,2012Q3,TRAVEL,2019-07-03,"MAKIN, SARAH E",2012-06-21,2012-06-21,TAXI/PARKING/TOLLS,12,2012,AP,Accounts payable,480798,"MAKIN, SARAH E"
,REPUBLICAN CONFERENCE,2012Q3,TRAVEL,2019-07-25,"MAKIN, SARAH E",2012-07-11,2012-07-11,TAXI/PARKING/TOLLS,12,2012,AP,Accounts payable,496733,"MAKIN, SARAH E"
,REPUBLICAN CONFERENCE,2012Q3,TRAVEL,2019-07-25,"MAKIN, SARAH E",2012-07-11,2012-07-11,TAXI/PARKING/TOLLS,13,2012,AP,Accounts payable,496737,"MAKIN, SARAH E"
,REPUBLICAN CONFERENCE,2012Q3,TRAVEL,2019-07-25,"MAKIN, SARAH E",2012-07-18,2012-07-18,TAXI/PARKING/TOLLS,13,2012,AP,Accounts payable,496741,"MAKIN, SARAH E"
,REPUBLICAN CONFERENCE,2012Q3,TRAVEL,2019-07-25,"MAKIN, SARAH E",2012-07-18,2012-07-18,TAXI/PARKING/TOLLS,13,2012,AP,Accounts payable,496744,"MAKIN, SARAH E"
,REPUBLICAN CONFERENCE,2012Q3,TRAVEL,2019-08-06,"MAKIN, SARAH E",2012-07-20,2012-07-20,TAXI/PARKING/TOLLS,10,2012,AP,Accounts payable,502895,"MAKIN, SARAH E"
,REPUBLICAN CONFERENCE,2012Q3,TRAVEL,2019-08-06,"MAKIN, SARAH E",2012-07-25,2012-07-25,TAXI/PARKING/TOLLS,15,2012,AP,Accounts payable,502897,"MAKIN, SARAH E"
,REPUBLICAN CONFERENCE,2012Q3,TRAVEL,2019-08-06,"MAKIN, SARAH E",2012-07-25,2012-07-25,TAXI/PARKING/TOLLS,13,2012,AP,Accounts payable,502898,"MAKIN, SARAH E"
,REPUBLICAN CONFERENCE,2012Q3,TRAVEL,2019-08-06,"MAKIN, SARAH E",2012-08-01,2012-08-01,TAXI/PARKING/TOLLS,13,2012,AP,Accounts payable,502899,"MAKIN, SARAH E"
,REPUBLICAN CONFERENCE,2012Q3,TRAVEL,2019-08-06,"MAKIN, SARAH E",2012-08-01,2012-08-01,TAXI/PARKING/TOLLS,12,2012,AP,Accounts payable,502902,"MAKIN, SARAH E"
,REPUBLICAN CONFERENCE,2012Q3,TRAVEL,2019-09-20,"MAKIN, SARAH E",2012-09-12,2012-09-12,TAXI/PARKING/TOLLS,9,2012,AP,Accounts payable,533821,"MAKIN, SARAH E"
,REPUBLICAN CONFERENCE,2012Q3,TRAVEL,2019-09-21,"MAKIN, SARAH E",2012-09-12,2012-09-12,TAXI/PARKING/TOLLS,10,2012,AP,Accounts payable,533827,"MAKIN, SARAH E"
,REPUBLICAN CONFERENCE,2012Q3,"RENT, COMMUNICATION, UTILITIES",2019-08-06,KOAM,2012-06-09,2012-07-11,RECORDING (OUTSIDE),225,2012,AP,Accounts payable,502971,KOAM
,REPUBLICAN CONFERENCE,2012Q3,"RENT, COMMUNICATION, UTILITIES",2019-08-06,MOONEY MARKETING GROUP LLC,2012-07-11,2012-07-11,RECORDING (OUTSIDE),750,2012,AP,Accounts payable,502973,MOONEY MARKETING GROUP LLC
,REPUBLICAN CONFERENCE,2012Q3,OTHER SERVICES,2019-08-20,CITIBANK P CARD,2012-06-29,2012-07-28,NON-TECHNOLOGY SERVICE CONTR,5.95,2012,AP,Accounts payable,514287,CITIBANK P CARD
,REPUBLICAN CONFERENCE,2012Q3,OTHER SERVICES,2019-09-19,CITIBANK P CARD,2012-07-29,2012-08-28,NON-TECHNOLOGY SERVICE CONTR,255.95,2012,AP,Accounts payable,534090,CITIBANK P CARD
,REPUBLICAN CONFERENCE,2012Q3,SUPPLIES AND MATERIALS,2019-07-03,"CRAWFORD, CHRISTOPHER K",2012-06-06,2012-06-06,FOOD & BEVERAGE,31.93,2012,AP,Accounts payable,480800,"CRAWFORD, CHRISTOPHER K"
,REPUBLICAN CONFERENCE,2012Q3,SUPPLIES AND MATERIALS,2019-07-03,"KENDRICK, ALEXANDRA",2012-06-07,2012-06-07,FOOD & BEVERAGE,15.89,2012,AP,Accounts payable,480801,"KENDRICK, ALEXANDRA"
,REPUBLICAN CONFERENCE,2012Q3,SUPPLIES AND MATERIALS,2019-07-05,CAPITOLHOST,2012-06-06,2012-06-06,FOOD & BEVERAGE,740,2012,AP,Accounts payable,481068,CAPITOLHOST
,REPUBLICAN CONFERENCE,2012Q3,SUPPLIES AND MATERIALS,2019-07-18,CITIBANK P CARD,2012-05-29,2012-06-28,FOOD & BEVERAGE,"14,169.61",2012,AP,Accounts payable,492994,CITIBANK P CARD
,REPUBLICAN CONFERENCE,2012Q3,SUPPLIES AND MATERIALS,2019-07-18,CITIBANK P CARD,2012-05-29,2012-06-28,PUBLICATIONS/REFERENCE MAT'L,5.95,2012,AP,Accounts payable,492994,CITIBANK P CARD
,REPUBLICAN CONFERENCE,2012Q3,SUPPLIES AND MATERIALS,2019-07-20,"CRAWFORD, CHRISTOPHER K",2012-06-27,2012-06-27,FOOD & BEVERAGE,48.46,2012,AP,Accounts payable,494265,"CRAWFORD, CHRISTOPHER K"
,REPUBLICAN CONFERENCE,2012Q3,SUPPLIES AND MATERIALS,2019-07-20,"KENDRICK, ALEXANDRA",2012-06-28,2012-06-28,FOOD & BEVERAGE,17.97,2012,AP,Accounts payable,494268,"KENDRICK, ALEXANDRA"
,REPUBLICAN CONFERENCE,2012Q3,SUPPLIES AND MATERIALS,2019-07-20,"CRAWFORD, CHRISTOPHER K",2012-07-11,2012-07-11,FOOD & BEVERAGE,29.96,2012,AP,Accounts payable,494274,"CRAWFORD, CHRISTOPHER K"
,REPUBLICAN CONFERENCE,2012Q3,SUPPLIES AND MATERIALS,2019-07-20,"CRAWFORD, CHRISTOPHER K",2012-07-12,2012-07-12,FOOD & BEVERAGE,15.89,2012,AP,Accounts payable,494277,"CRAWFORD, CHRISTOPHER K"
,REPUBLICAN CONFERENCE,2012Q3,SUPPLIES AND MATERIALS,2019-07-31,CAPITOLHOST,2012-06-27,2012-06-27,FOOD & BEVERAGE,740,2012,AP,Accounts payable,500400,CAPITOLHOST
,REPUBLICAN CONFERENCE,2012Q3,SUPPLIES AND MATERIALS,2019-07-31,CAPITOLHOST,2012-07-10,2012-07-10,FOOD & BEVERAGE,740,2012,AP,Accounts payable,500405,CAPITOLHOST
,REPUBLICAN CONFERENCE,2012Q3,SUPPLIES AND MATERIALS,2019-07-31,CAPITOLHOST,2012-04-25,2012-04-25,FOOD & BEVERAGE,740,2012,AP,Accounts payable,500412,CAPITOLHOST
,REPUBLICAN CONFERENCE,2012Q3,SUPPLIES AND MATERIALS,2019-07-31,CAPITOLHOST,2012-05-31,2012-05-31,FOOD & BEVERAGE,740,2012,AP,Accounts payable,500416,CAPITOLHOST
,REPUBLICAN CONFERENCE,2012Q3,SUPPLIES AND MATERIALS,2019-08-06,"BROWN, CHELSEA E",2012-07-10,2012-07-10,FOOD & BEVERAGE,8.98,2012,AP,Accounts payable,502891,"BROWN, CHELSEA E"
,REPUBLICAN CONFERENCE,2012Q3,SUPPLIES AND MATERIALS,2019-08-06,"BROWN, CHELSEA E",2012-07-11,2012-07-11,FOOD & BEVERAGE,3,2012,AP,Accounts payable,502893,"BROWN, CHELSEA E"
,REPUBLICAN CONFERENCE,2012Q3,SUPPLIES AND MATERIALS,2019-08-06,"BROWN, CHELSEA E",2012-08-01,2012-08-01,FOOD & BEVERAGE,17.37,2012,AP,Accounts payable,502894,"BROWN, CHELSEA E"
,REPUBLICAN CONFERENCE,2012Q3,SUPPLIES AND MATERIALS,2019-08-06,"CRAWFORD, CHRISTOPHER K",2012-04-25,2012-04-25,FOOD & BEVERAGE,28.7,2012,AP,Accounts payable,502904,"CRAWFORD, CHRISTOPHER K"
,REPUBLICAN CONFERENCE,2012Q3,SUPPLIES AND MATERIALS,2019-08-06,"CRAWFORD, CHRISTOPHER K",2012-05-09,2012-05-09,FOOD & BEVERAGE,35.52,2012,AP,Accounts payable,502905,"CRAWFORD, CHRISTOPHER K"
,REPUBLICAN CONFERENCE,2012Q3,SUPPLIES AND MATERIALS,2019-08-06,"CRAWFORD, CHRISTOPHER K",2012-07-18,2012-07-18,FOOD & BEVERAGE,32.56,2012,AP,Accounts payable,502907,"CRAWFORD, CHRISTOPHER K"
,REPUBLICAN CONFERENCE,2012Q3,SUPPLIES AND MATERIALS,2019-08-06,"CRAWFORD, CHRISTOPHER K",2012-07-25,2012-07-25,FOOD & BEVERAGE,45.02,2012,AP,Accounts payable,502908,"CRAWFORD, CHRISTOPHER K"
,REPUBLICAN CONFERENCE,2012Q3,SUPPLIES AND MATERIALS,2019-08-09,"BROWN, CHELSEA E",2012-08-03,2012-08-03,FOOD & BEVERAGE,286.05,2012,AP,Accounts payable,504023,"BROWN, CHELSEA E"
,REPUBLICAN CONFERENCE,2012Q3,SUPPLIES AND MATERIALS,2019-08-20,CITIBANK P CARD,2012-06-29,2012-07-28,FOOD & BEVERAGE,"1,362.01",2012,AP,Accounts payable,514287,CITIBANK P CARD
,REPUBLICAN CONFERENCE,2012Q3,SUPPLIES AND MATERIALS,2019-08-20,CITIBANK P CARD,2012-06-29,2012-07-28,OFFICE SUPPLIES (OUTSIDE),"-6,210.57",2012,AP,Accounts payable,514287,CITIBANK P CARD
,REPUBLICAN CONFERENCE,2012Q3,SUPPLIES AND MATERIALS,2019-09-07,SHADOW TV INC,2012-10-01,2012-12-31,PUBLICATIONS/REFERENCE MAT'L,"1,500.00",2012,AP,Accounts payable,523490,SHADOW TV INC
,REPUBLICAN CONFERENCE,2012Q3,SUPPLIES AND MATERIALS,2019-09-07,"KENDRICK, ALEXANDRA",2012-04-19,2012-04-19,FOOD & BEVERAGE,15.89,2012,AP,Accounts payable,523493,"KENDRICK, ALEXANDRA"
,REPUBLICAN CONFERENCE,2012Q3,SUPPLIES AND MATERIALS,2019-09-07,"KENDRICK, ALEXANDRA",2012-07-19,2012-07-19,FOOD & BEVERAGE,12.72,2012,AP,Accounts payable,523496,"KENDRICK, ALEXANDRA"
,REPUBLICAN CONFERENCE,2012Q3,SUPPLIES AND MATERIALS,2019-09-07,"KENDRICK, ALEXANDRA",2012-07-26,2012-07-26,FOOD & BEVERAGE,12.72,2012,AP,Accounts payable,523500,"KENDRICK, ALEXANDRA"
,REPUBLICAN CONFERENCE,2012Q3,SUPPLIES AND MATERIALS,2019-09-07,"CRAWFORD, CHRISTOPHER K",2012-08-01,2012-08-01,FOOD & BEVERAGE,45.99,2012,AP,Accounts payable,523503,"CRAWFORD, CHRISTOPHER K"
,REPUBLICAN CONFERENCE,2012Q3,SUPPLIES AND MATERIALS,2019-09-07,"KENDRICK, ALEXANDRA",2012-08-02,2012-08-02,FOOD & BEVERAGE,14.79,2012,AP,Accounts payable,523504,"KENDRICK, ALEXANDRA"
,REPUBLICAN CONFERENCE,2012Q3,SUPPLIES AND MATERIALS,2019-09-14,"BUCHANAN, MICHAEL D",2012-09-07,2012-09-07,FOOD & BEVERAGE,198.2,2012,AP,Accounts payable,525917,"BUCHANAN, MICHAEL D"
,REPUBLICAN CONFERENCE,2012Q3,SUPPLIES AND MATERIALS,2019-09-18,THE WASHINGTON POST,2012-05-12,2013-05-12,PUBLICATIONS/REFERENCE MAT'L,862.67,2012,AP,Accounts payable,529952,THE WASHINGTON POST
,REPUBLICAN CONFERENCE,2012Q3,SUPPLIES AND MATERIALS,2019-09-18,THE NEW YORK TIMES,2012-06-24,2013-03-17,PUBLICATIONS/REFERENCE MAT'L,97.94,2012,AP,Accounts payable,529954,THE NEW YORK TIMES
,REPUBLICAN CONFERENCE,2012Q3,SUPPLIES AND MATERIALS,2019-09-19,CITIBANK P CARD,2012-07-29,2012-08-28,FOOD & BEVERAGE,"1,773.43",2012,AP,Accounts payable,534090,CITIBANK P CARD
,REPUBLICAN CONFERENCE,2012Q3,SUPPLIES AND MATERIALS,2019-09-19,CITIBANK P CARD,2012-07-29,2012-08-28,PUBLICATIONS/REFERENCE MAT'L,27.57,2012,AP,Accounts payable,534090,CITIBANK P CARD
,REPUBLICAN CONFERENCE,2012Q3,SUPPLIES AND MATERIALS,2019-09-20,"BROWN, CHELSEA E",2012-09-14,2012-09-14,FOOD & BEVERAGE,286.26,2012,AP,Accounts payable,533833,"BROWN, CHELSEA E"
,REPUBLICAN CONFERENCE,2012Q3,SUPPLIES AND MATERIALS,2019-09-20,"BROWN, CHELSEA E",2012-09-12,2012-09-12,FOOD & BEVERAGE,6.18,2012,AP,Accounts payable,533837,"BROWN, CHELSEA E"
,REPUBLICAN CONFERENCE,2012Q3,SUPPLIES AND MATERIALS,2019-09-26,"BUCHANAN, MICHAEL D",2012-09-21,2012-09-21,FOOD & BEVERAGE,222.27,2012,AP,Accounts payable,537324,"BUCHANAN, MICHAEL D"
,REPUBLICAN CONFERENCE,2012Q3,SUPPLIES AND MATERIALS,2019-09-26,"BROWN, CHELSEA E",2012-07-24,2012-07-24,FOOD & BEVERAGE,13.15,2012,AP,Accounts payable,537327,"BROWN, CHELSEA E"
,OFFICE OF THE SPEAKER,2012Q3,"RENT, COMMUNICATION, UTILITIES",2019-07-09,FEDERAL EXPRESS CORP,2012-06-29,2012-06-29,POSTAGE / COURIER / BOX RENTAL,4.85,FISCAL YEAR 2012,AP,Accounts payable,483578,FEDERAL EXPRESS CORP
,OFFICE OF THE SPEAKER,2012Q3,"RENT, COMMUNICATION, UTILITIES",2019-07-25,FEDERAL EXPRESS CORP,2012-07-17,2012-07-17,POSTAGE / COURIER / BOX RENTAL,5.62,FISCAL YEAR 2012,AP,Accounts payable,496046,FEDERAL EXPRESS CORP
,OFFICE OF THE SPEAKER,2012Q3,"RENT, COMMUNICATION, UTILITIES",2019-08-14,FEDERAL EXPRESS CORP,2012-07-16,2012-07-16,POSTAGE / COURIER / BOX RENTAL,5.1,FISCAL YEAR 2012,AP,Accounts payable,505680,FEDERAL EXPRESS CORP
,OFFICE OF THE SPEAKER,2012Q3,"RENT, COMMUNICATION, UTILITIES",2019-08-14,FEDERAL EXPRESS CORP,2012-07-23,2012-07-23,POSTAGE / COURIER / BOX RENTAL,11.73,FISCAL YEAR 2012,AP,Accounts payable,505680,FEDERAL EXPRESS CORP
,OFFICE OF THE SPEAKER,2012Q3,"RENT, COMMUNICATION, UTILITIES",2019-08-14,FEDERAL EXPRESS CORP,2012-07-24,2012-07-24,POSTAGE / COURIER / BOX RENTAL,5.62,FISCAL YEAR 2012,AP,Accounts payable,505680,FEDERAL EXPRESS CORP
,OFFICE OF THE SPEAKER,2012Q3,"RENT, COMMUNICATION, UTILITIES",2019-08-16,FEDERAL EXPRESS CORP,2012-08-07,2012-08-07,POSTAGE / COURIER / BOX RENTAL,6.94,FISCAL YEAR 2012,AP,Accounts payable,508820,FEDERAL EXPRESS CORP
,OFFICE OF THE SPEAKER,2012Q3,"RENT, COMMUNICATION, UTILITIES",2019-08-20,FEDERAL EXPRESS CORP,2012-08-10,2012-08-10,POSTAGE / COURIER / BOX RENTAL,62.79,FISCAL YEAR 2012,AP,Accounts payable,514308,FEDERAL EXPRESS CORP
,OFFICE OF THE SPEAKER,2012Q3,"RENT, COMMUNICATION, UTILITIES",2019-08-20,FEDERAL EXPRESS CORP,2012-08-14,2012-08-14,POSTAGE / COURIER / BOX RENTAL,6.03,FISCAL YEAR 2012,AP,Accounts payable,514308,FEDERAL EXPRESS CORP
,OFFICE OF THE SPEAKER,2012Q3,"RENT, COMMUNICATION, UTILITIES",2019-08-24,FEDERAL EXPRESS CORP,2012-08-17,2012-08-17,POSTAGE / COURIER / BOX RENTAL,15.13,FISCAL YEAR 2012,AP,Accounts payable,517051,FEDERAL EXPRESS CORP
,OFFICE OF THE SPEAKER,2012Q3,"RENT, COMMUNICATION, UTILITIES",2019-08-24,FEDERAL EXPRESS CORP,2012-08-21,2012-08-21,POSTAGE / COURIER / BOX RENTAL,12.4,FISCAL YEAR 2012,AP,Accounts payable,517051,FEDERAL EXPRESS CORP
,OFFICE OF THE SPEAKER,2012Q3,"RENT, COMMUNICATION, UTILITIES",2019-09-05,FEDERAL EXPRESS CORP,2012-08-24,2012-08-24,POSTAGE / COURIER / BOX RENTAL,14.5,FISCAL YEAR 2012,AP,Accounts payable,521698,FEDERAL EXPRESS CORP
,OFFICE OF THE SPEAKER,2012Q3,SUPPLIES AND MATERIALS,2019-09-26,HAGUE QUALITY WATER OF MD INC,2011-09-01,2011-09-30,WATER,252,FISCAL YEAR 2011,AP,Accounts payable,535939,HAGUE QUALITY WATER OF MD INC
,OFFICE OF THE MAJORITY LEADER,2012Q3,FRANKED MAIL,2019-09-06,UNITED STATES POSTAL SERVICE,2011-10-01,2011-10-31,FRANKED MAIL,-1.52,FISCAL YEAR 2012,AP,Accounts payable,522334,UNITED STATES POSTAL SERVICE
,OFFICE OF THE MAJORITY LEADER,2012Q3,PRINTING AND REPRODUCTION,2019-07-31,,2012-07-18,2012-07-18,REPRODUCTION OF FED/PUBLIC LAW,80,FISCAL YEAR 2012,GL,General ledger,LAW0021239,
,OFFICE OF THE MAJORITY LEADER,2012Q3,SUPPLIES AND MATERIALS,2019-07-26,"NELSON, VALERIE S",2011-12-16,2011-12-16,OFFICE SUPPLIES (OUTSIDE),60.5,FISCAL YEAR 2012,AP,Accounts payable,498135,"NELSON, VALERIE S"
,OFFICE OF THE MAJORITY WHIP,2012Q3,TRAVEL,2019-07-05,"HENEHAN, EMILY A",2011-10-18,2011-10-18,TAXI/PARKING/TOLLS,9,FISCAL YEAR 2012,AP,Accounts payable,481703,"HENEHAN, EMILY A"
,OFFICE OF THE MAJORITY WHIP,2012Q3,TRAVEL,2019-07-05,"HENEHAN, EMILY A",2011-10-18,2011-10-18,TAXI/PARKING/TOLLS,9,FISCAL YEAR 2012,AP,Accounts payable,481704,"HENEHAN, EMILY A"
,OFFICE OF THE MAJORITY WHIP,2012Q3,TRAVEL,2019-07-05,"HENEHAN, EMILY A",2011-11-15,2011-11-15,TAXI/PARKING/TOLLS,9,FISCAL YEAR 2012,AP,Accounts payable,481707,"HENEHAN, EMILY A"
,OFFICE OF THE MAJORITY WHIP,2012Q3,PERSONNEL COMPENSATION,,"GRIMALDI, DAVID F",2010-12-01,2010-12-31,SPECIAL ASSISTANT,"-1,139.09",FISCAL YEAR 2011,,,,"GRIMALDI, DAVID F"
,OFFICE OF THE MINORITY WHIP,2012Q3,SUPPLIES AND MATERIALS,2019-09-27,,2012-09-11,2012-09-11,FRAMING (TRANSFER),31,FISCAL YEAR 2012,GL,General ledger,FRM0022968,
,DEMOCRATIC CAUCUS,2012Q3,SUPPLIES AND MATERIALS,2019-07-25,DEER PARK,2012-06-30,2012-06-30,WATER,104.91,FISCAL YEAR 2012,AP,Accounts payable,496079,DEER PARK
,DEMOCRATIC CAUCUS,2012Q3,SUPPLIES AND MATERIALS,2019-08-21,DEER PARK,2012-07-31,2012-07-31,WATER,108.93,FISCAL YEAR 2012,AP,Accounts payable,514833,DEER PARK
,DEMOCRATIC CAUCUS,2012Q3,SUPPLIES AND MATERIALS,2019-08-27,LEXIS-NEXIS,2011-12-31,2012-12-31,PUBLICATIONS/REFERENCE MAT'L,"5,000.00",FISCAL YEAR 2012,AP,Accounts payable,506385,LEXIS-NEXIS
,DEMOCRATIC CAUCUS,2012Q3,SUPPLIES AND MATERIALS,2019-09-14,"RUBINO, SHELLEY M",2011-09-23,2011-09-23,FOOD & BEVERAGE,-77,FISCAL YEAR 2011,AR,Accounts receivable,AC-06442,"RUBINO, SHELLEY M"
,REPUBLICAN CONFERENCE,2012Q3,SUPPLIES AND MATERIALS,2019-07-25,DEER PARK,2012-06-30,2012-06-30,WATER,218.75,FISCAL YEAR 2012,AP,Accounts payable,496079,DEER PARK
,REPUBLICAN CONFERENCE,2012Q3,SUPPLIES AND MATERIALS,2019-08-21,DEER PARK,2012-07-31,2012-07-31,WATER,250.76,FISCAL YEAR 2012,AP,Accounts payable,514833,DEER PARK
,REPUBLICAN CONFERENCE,2012Q3,SUPPLIES AND MATERIALS,2019-09-27,DEER PARK,2012-08-31,2012-08-31,WATER,193.75,FISCAL YEAR 2012,AP,Accounts payable,537223,DEER PARK
,CHIEF ADMIN OFCR OF THE HOUSE,2012Q3,PERSONNEL COMPENSATION,,"ABBOTT, JESSICA A",2012-07-01,2012-09-30,FINANCIAL ANALYST,"31,512.51",FISCAL YEAR 2012,,,,"ABBOTT, JESSICA A"
,CHIEF ADMIN OFCR OF THE HOUSE,2012Q3,PERSONNEL COMPENSATION,,"ABEL, TIMOTHY",2012-07-01,2012-09-30,SR TECHNICAL SUPPORT REP (A),"23,444.76",FISCAL YEAR 2012,,,,"ABEL, TIMOTHY"
,CHIEF ADMIN OFCR OF THE HOUSE,2012Q3,PERSONNEL COMPENSATION,,"ACUESTA,JULY J",2012-07-01,2012-09-30,SENIOR SYSTEMS ENGINEER,"26,422.74",FISCAL YEAR 2012,,,,"ACUESTA,JULY J"
,CHIEF ADMIN OFCR OF THE HOUSE,2012Q3,PERSONNEL COMPENSATION,,"ADDISON, TRACY",2012-07-01,2012-09-30,LOGISTICS & DIST SPEC (A),"11,274.00",FISCAL YEAR 2012,,,,"ADDISON, TRACY"
,CHIEF ADMIN OFCR OF THE HOUSE,2012Q3,PERSONNEL COMPENSATION,,"ADELAKUN, DEEN A",2012-07-01,2012-09-30,SR TECH SOLUTIONS ENGINEER,"22,107.00",FISCAL YEAR 2012,,,,"ADELAKUN, DEEN A"
,CHIEF ADMIN OFCR OF THE HOUSE,2012Q3,PERSONNEL COMPENSATION,,"AGEE, MATTHEW P",2012-07-01,2012-09-30,RESOURCE MANAGER,"29,853.99",FISCAL YEAR 2012,,,,"AGEE, MATTHEW P"
,CHIEF ADMIN OFCR OF THE HOUSE,2012Q3,PERSONNEL COMPENSATION,,"AGEE, TINA M",2012-07-01,2012-09-30,DIRECTOR PHOTOGRAPHY,"26,759.92",FISCAL YEAR 2012,,,,"AGEE, TINA M"
,CHIEF ADMIN OFCR OF THE HOUSE,2012Q3,PERSONNEL COMPENSATION,,"AGNEW, ROSE M",2012-07-01,2012-09-30,PAYROLL & BENEFITS GENERALIST,"17,937.75",FISCAL YEAR 2012,,,,"AGNEW, ROSE M"
,CHIEF ADMIN OFCR OF THE HOUSE,2012Q3,PERSONNEL COMPENSATION,,"AKINSEGUN, PATRICIA A",2012-07-01,2012-09-30,TELEPHONE SYSTEMS CONSULTANT,"21,959.00",FISCAL YEAR 2012,,,,"AKINSEGUN, PATRICIA A"
,CHIEF ADMIN OFCR OF THE HOUSE,2012Q3,PERSONNEL COMPENSATION,,"ALEXANDER, GORDON",2012-07-01,2012-09-30,TECH SOLUTIONS ENGINEER,"17,735.76",FISCAL YEAR 2012,,,,"ALEXANDER, GORDON"
,CHIEF ADMIN OFCR OF THE HOUSE,2012Q3,PERSONNEL COMPENSATION,,"ALEXANDER, SHARYN B",2012-07-01,2012-09-30,SPECIAL ASSISTANT,"26,384.49",FISCAL YEAR 2012,,,,"ALEXANDER, SHARYN B"
,CHIEF ADMIN OFCR OF THE HOUSE,2012Q3,PERSONNEL COMPENSATION,,"ALLARD,KENNETH V",2012-07-01,2012-09-30,ADA AIDE,"6,839.67",FISCAL YEAR 2012,,,,"ALLARD,KENNETH V"
,CHIEF ADMIN OFCR OF THE HOUSE,2012Q3,PERSONNEL COMPENSATION,,"ALLARD,KENNETH V",2012-06-01,2012-08-31,ADA AIDE (OVERTIME),"5,318.49",FISCAL YEAR 2012,,,,"ALLARD,KENNETH V"
,CHIEF ADMIN OFCR OF THE HOUSE,2012Q3,PERSONNEL COMPENSATION,,"ALLISON, KEVIN M",2012-07-01,2012-09-30,LOGISTICS & DIST SPEC (A),"13,503.51",FISCAL YEAR 2012,,,,"ALLISON, KEVIN M"
,CHIEF ADMIN OFCR OF THE HOUSE,2012Q3,PERSONNEL COMPENSATION,,"ALSTON,MARK A",2012-07-01,2012-09-30,TECH SOLUTIONS ENGINEER,"16,957.26",FISCAL YEAR 2012,,,,"ALSTON,MARK A"
,CHIEF ADMIN OFCR OF THE HOUSE,2012Q3,PERSONNEL COMPENSATION,,"ALVEY, LISA M",2012-07-01,2012-09-30,FINANCIAL COUNSELOR,"20,286.24",FISCAL YEAR 2012,,,,"ALVEY, LISA M"
,CHIEF ADMIN OFCR OF THE HOUSE,2012Q3,PERSONNEL COMPENSATION,,"ANDERSEN, FREDERIC E",2012-07-01,2012-09-30,2ND ASST SUPERINTENDENT,"22,107.00",FISCAL YEAR 2012,,,,"ANDERSEN, FREDERIC E"
,CHIEF ADMIN OFCR OF THE HOUSE,2012Q3,PERSONNEL COMPENSATION,,"ANDERSON, DONTRELL",2012-07-01,2012-09-30,FINANCIAL COUNSELOR,"15,401.76",FISCAL YEAR 2012,,,,"ANDERSON, DONTRELL"
,CHIEF ADMIN OFCR OF THE HOUSE,2012Q3,PERSONNEL COMPENSATION,,"ANDREWS-MOBLEY, RACHELLE G",2012-07-01,2012-09-30,PRINCIPAL TECHNICAL TRAINER,"24,150.51",FISCAL YEAR 2012,,,,"ANDREWS-MOBLEY, RACHELLE G"
,CHIEF ADMIN OFCR OF THE HOUSE,2012Q3,PERSONNEL COMPENSATION,,"ARMAS, KENTON A",2012-07-01,2012-09-30,JOURNEYMAN TEXTILE SPEC,"18,903.24",FISCAL YEAR 2012,,,,"ARMAS, KENTON A"
,CHIEF ADMIN OFCR OF THE HOUSE,2012Q3,PERSONNEL COMPENSATION,,"ARMSTRONG,JANCIERA C",2012-07-01,2012-09-30,"MANAGER, ACCOUNTING","25,403.76",FISCAL YEAR 2012,,,,"ARMSTRONG,JANCIERA C"
,CHIEF ADMIN OFCR OF THE HOUSE,2012Q3,PERSONNEL COMPENSATION,,"ARTHUR, CAMILLA S",2012-07-01,2012-09-30,ASSISTANT CAO,"38,589.75",FISCAL YEAR 2012,,,,"ARTHUR, CAMILLA S"
,CHIEF ADMIN OFCR OF THE HOUSE,2012Q3,PERSONNEL COMPENSATION,,"ATCHISON, DARRYL A",2012-07-01,2012-09-30,DEPUTY CHIEF ENGINEER,"30,405.24",FISCAL YEAR 2012,,,,"ATCHISON, DARRYL A"
,CHIEF ADMIN OFCR OF THE HOUSE,2012Q3,PERSONNEL COMPENSATION,,"AWAN, OMAR",2012-07-01,2012-09-30,SR BUSINESS PROCESS APPL SPEC,"35,160.75",FISCAL YEAR 2012,,,,"AWAN, OMAR"
,CHIEF ADMIN OFCR OF THE HOUSE,2012Q3,PERSONNEL COMPENSATION,,"BABCOCK, TIMOTHY W",2012-07-01,2012-09-30,JOURNEYMAN TEXTILE SPEC,"14,470.50",FISCAL YEAR 2012,,,,"BABCOCK, TIMOTHY W"
,CHIEF ADMIN OFCR OF THE HOUSE,2012Q3,PERSONNEL COMPENSATION,,"BAER, PETER L",2012-07-01,2012-09-30,BUSINESS PROC APPLIC SPEC,"32,010.99",FISCAL YEAR 2012,,,,"BAER, PETER L"
,CHIEF ADMIN OFCR OF THE HOUSE,2012Q3,PERSONNEL COMPENSATION,,"BAHAM,TODD",2012-07-01,2012-09-30,BROADCAST PRODUCTION TECHNICIA,"18,719.25",FISCAL YEAR 2012,,,,"BAHAM,TODD"
,CHIEF ADMIN OFCR OF THE HOUSE,2012Q3,PERSONNEL COMPENSATION,,"BAHAM,TODD",2012-06-01,2012-08-31,BROADCAST PRODUCTION TECHNICIA (OVERTIME),"1,781.91",FISCAL YEAR 2012,,,,"BAHAM,TODD"
,CHIEF ADMIN OFCR OF THE HOUSE,2012Q3,PERSONNEL COMPENSATION,,"BAILEY, DAVID E",2012-07-01,2012-09-30,SR TECHNICAL SUPPORT REP (A),"23,888.25",FISCAL YEAR 2012,,,,"BAILEY, DAVID E"
,CHIEF ADMIN OFCR OF THE HOUSE,2012Q3,PERSONNEL COMPENSATION,,"BAKER, DARRELL F",2012-07-01,2012-09-30,SENIOR NETWORK TECHNICIAN,"24,150.51",FISCAL YEAR 2012,,,,"BAKER, DARRELL F"
,CHIEF ADMIN OFCR OF THE HOUSE,2012Q3,PERSONNEL COMPENSATION,,"BANFIELD,KELLI C",2012-07-01,2012-09-30,BROADCAST ENGINEER/PROD SPEC,"20,771.49",FISCAL YEAR 2012,,,,"BANFIELD,KELLI C"
,CHIEF ADMIN OFCR OF THE HOUSE,2012Q3,PERSONNEL COMPENSATION,,"BANKS,BIANCA N",2012-07-01,2012-09-30,RETAIL INVENTORY SPECIALIST,"16,569.24",FISCAL YEAR 2012,,,,"BANKS,BIANCA N"
,CHIEF ADMIN OFCR OF THE HOUSE,2012Q3,PERSONNEL COMPENSATION,,"BARBEE, GLENN",2012-07-01,2012-09-30,NETWORK TECHNICIAN,"21,663.00",FISCAL YEAR 2012,,,,"BARBEE, GLENN"
,CHIEF ADMIN OFCR OF THE HOUSE,2012Q3,PERSONNEL COMPENSATION,,"BARBEE,DONELL G",2012-07-01,2012-09-30,RETAIL INVENTORY SPECIALIST,"9,801.00",FISCAL YEAR 2012,,,,"BARBEE,DONELL G"
,CHIEF ADMIN OFCR OF THE HOUSE,2012Q3,PERSONNEL COMPENSATION,,"BARBEE,DONELL G",2012-07-01,2012-08-31,RETAIL INVENTORY SPECIALIST (OVERTIME),32.99,FISCAL YEAR 2012,,,,"BARBEE,DONELL G"
,CHIEF ADMIN OFCR OF THE HOUSE,2012Q3,PERSONNEL COMPENSATION,,"BARBOUR, JUNE M",2012-07-01,2012-09-30,BROADCAST PRODUCTION TECHNICIA,"18,719.25",FISCAL YEAR 2012,,,,"BARBOUR, JUNE M"
,CHIEF ADMIN OFCR OF THE HOUSE,2012Q3,PERSONNEL COMPENSATION,,"BARBOUR, JUNE M",2012-07-01,2012-08-31,BROADCAST PRODUCTION TECHNICIA (OVERTIME),350.98,FISCAL YEAR 2012,,,,"BARBOUR, JUNE M"
,CHIEF ADMIN OFCR OF THE HOUSE,2012Q3,PERSONNEL COMPENSATION,,"BARCINIAK, DANA L",2012-07-01,2012-09-30,SENIOR PHOTOGRAPHER,"21,069.99",FISCAL YEAR 2012,,,,"BARCINIAK, DANA L"
,CHIEF ADMIN OFCR OF THE HOUSE,2012Q3,PERSONNEL COMPENSATION,,"BAREFOOT,JEFFREY",2012-07-01,2012-09-30,PRODUCTION/ENGINEER SPEC (TEMP,"9,245.49",FISCAL YEAR 2012,,,,"BAREFOOT,JEFFREY"
,CHIEF ADMIN OFCR OF THE HOUSE,2012Q3,PERSONNEL COMPENSATION,,"BARNABAE, MONICA M",2012-07-01,2012-09-30,DIRECTOR-HOUSE CHILD CARE CNTR,"26,252.74",FISCAL YEAR 2012,,,,"BARNABAE, MONICA M"
,CHIEF ADMIN OFCR OF THE HOUSE,2012Q3,PERSONNEL COMPENSATION,,"BARRETT, ROBERT R",2012-07-01,2012-09-30,"MANAGER, SUPPORT SYSTEMS","33,938.25",FISCAL YEAR 2012,,,,"BARRETT, ROBERT R"
,CHIEF ADMIN OFCR OF THE HOUSE,2012Q3,PERSONNEL COMPENSATION,,"BARTHOLOMEW, DEBORAH",2012-07-01,2012-09-30,ADMIN-FINANCE & PAYROLL,"22,360.50",FISCAL YEAR 2012,,,,"BARTHOLOMEW, DEBORAH"
,CHIEF ADMIN OFCR OF THE HOUSE,2012Q3,PERSONNEL COMPENSATION,,"BASILIO, TYRONE A",2012-07-01,2012-09-30,TECHNICAL SUPPORT REP,"19,110.75",FISCAL YEAR 2012,,,,"BASILIO, TYRONE A"
,CHIEF ADMIN OFCR OF THE HOUSE,2012Q3,PERSONNEL COMPENSATION,,"BATES, DEBORAH A",2012-07-01,2012-09-30,PRODUCTION/ENGINEER SPEC (TEMP,"7,034.60",FISCAL YEAR 2012,,,,"BATES, DEBORAH A"
,CHIEF ADMIN OFCR OF THE HOUSE,2012Q3,PERSONNEL COMPENSATION,,"BAULEY, PATRICK J",2012-07-01,2012-09-30,TECHNICAL DIRECTOR (A),"28,793.17",FISCAL YEAR 2012,,,,"BAULEY, PATRICK J"
,CHIEF ADMIN OFCR OF THE HOUSE,2012Q3,PERSONNEL COMPENSATION,,"BAULEY, PATRICK J",2012-06-01,2012-07-31,TECHNICAL DIRECTOR (A) (OVERTIME),779.74,FISCAL YEAR 2012,,,,"BAULEY, PATRICK J"
,CHIEF ADMIN OFCR OF THE HOUSE,2012Q3,PERSONNEL COMPENSATION,,"BAXTER,KRISTIE N",2012-06-01,2012-08-01,PHOTOGRAPHER/LAB TECH (TEMP),"14,471.21",FISCAL YEAR 2012,,,,"BAXTER,KRISTIE N"
,CHIEF ADMIN OFCR OF THE HOUSE,2012Q3,PERSONNEL COMPENSATION,,"BEAN, SAUNDRA D",2012-07-01,2012-09-30,CUSTOMER SOLUTIONS REP,"15,771.68",FISCAL YEAR 2012,,,,"BEAN, SAUNDRA D"
,CHIEF ADMIN OFCR OF THE HOUSE,2012Q3,PERSONNEL COMPENSATION,,"BEAUBIAN, TRACI R",2012-07-01,2012-09-30,CHIEF FINANCIAL OFFICER,"42,102.75",FISCAL YEAR 2012,,,,"BEAUBIAN, TRACI R"
,CHIEF ADMIN OFCR OF THE HOUSE,2012Q3,PERSONNEL COMPENSATION,,"BEAUDOIN, GORDON",2012-07-01,2012-09-30,VOICE & VIDEO BRANCH MGR (A),"35,980.01",FISCAL YEAR 2012,,,,"BEAUDOIN, GORDON"
,CHIEF ADMIN OFCR OF THE HOUSE,2012Q3,PERSONNEL COMPENSATION,,"BEIDEL, BERNARD E",2012-07-01,2012-09-30,"DIR, OFFICE OF EMPLOYEE ASSIST","42,102.75",FISCAL YEAR 2012,,,,"BEIDEL, BERNARD E"
,CHIEF ADMIN OFCR OF THE HOUSE,2012Q3,PERSONNEL COMPENSATION,,"BENAVIDEZ, OSCAR",2012-07-01,2012-09-30,LOGISTICS & DIST SPEC (A),"12,029.49",FISCAL YEAR 2012,,,,"BENAVIDEZ, OSCAR"
,CHIEF ADMIN OFCR OF THE HOUSE,2012Q3,PERSONNEL COMPENSATION,,"BENN, PHILLIP F",2012-07-01,2012-09-30,ELECTRONICS TECHNICIAN (A),"22,551.00",FISCAL YEAR 2012,,,,"BENN, PHILLIP F"
,CHIEF ADMIN OFCR OF THE HOUSE,2012Q3,PERSONNEL COMPENSATION,,"BENN, PHILLIP F",2012-08-01,2012-08-31,ELECTRONICS TECHNICIAN (A) (OVERTIME),130.1,FISCAL YEAR 2012,,,,"BENN, PHILLIP F"
,CHIEF ADMIN OFCR OF THE HOUSE,2012Q3,PERSONNEL COMPENSATION,,"BENNETT, GERALD E",2012-07-01,2012-09-30,CHIEF LOGISTICS OFFICER,"42,102.75",FISCAL YEAR 2012,,,,"BENNETT, GERALD E"
,CHIEF ADMIN OFCR OF THE HOUSE,2012Q3,PERSONNEL COMPENSATION,,"BERGER, DONALD W",2012-07-01,2012-09-30,BROADCAST PRODUCTION TECHNICIA,"20,323.74",FISCAL YEAR 2012,,,,"BERGER, DONALD W"
,CHIEF ADMIN OFCR OF THE HOUSE,2012Q3,PERSONNEL COMPENSATION,,"BERGER, DONALD W",2012-06-01,2012-07-31,BROADCAST PRODUCTION TECHNICIA (OVERTIME),"1,055.26",FISCAL YEAR 2012,,,,"BERGER, DONALD W"
,CHIEF ADMIN OFCR OF THE HOUSE,2012Q3,PERSONNEL COMPENSATION,,"BERISKO,PHILIP J",2012-07-01,2012-09-30,FINANCIAL COUNSELOR (A),"22,639.26",FISCAL YEAR 2012,,,,"BERISKO,PHILIP J"
,CHIEF ADMIN OFCR OF THE HOUSE,2012Q3,PERSONNEL COMPENSATION,,"BEST, CHARLENE",2012-07-01,2012-09-30,MANAGER,"22,809.00",FISCAL YEAR 2012,,,,"BEST, CHARLENE"
,CHIEF ADMIN OFCR OF THE HOUSE,2012Q3,PERSONNEL COMPENSATION,,"BETHEA,LASHON L",2012-07-01,2012-09-30,TECHNICAL TRAINER,"24,595.50",FISCAL YEAR 2012,,,,"BETHEA,LASHON L"
,CHIEF ADMIN OFCR OF THE HOUSE,2012Q3,PERSONNEL COMPENSATION,,"BILLARD, MICHAEL A",2012-07-01,2012-09-30,COMMUNICATIONS SPEC,"24,595.50",FISCAL YEAR 2012,,,,"BILLARD, MICHAEL A"
,CHIEF ADMIN OFCR OF THE HOUSE,2012Q3,PERSONNEL COMPENSATION,,"BILLUPS, BRIAN E",2012-07-01,2012-09-30,NETWORK TECHNICIAN (A),"19,110.75",FISCAL YEAR 2012,,,,"BILLUPS, BRIAN E"
,CHIEF ADMIN OFCR OF THE HOUSE,2012Q3,PERSONNEL COMPENSATION,,"BLAKNEY, HAROLD",2012-07-01,2012-09-30,SENIOR SYSTEMS ENGINEER,"36,593.09",FISCAL YEAR 2012,,,,"BLAKNEY, HAROLD"
,CHIEF ADMIN OFCR OF THE HOUSE,2012Q3,PERSONNEL COMPENSATION,,"BOGAN, DAVID S",2012-07-01,2012-09-30,"SUPERVISOR, RETAIL INVENTORY","19,110.75",FISCAL YEAR 2012,,,,"BOGAN, DAVID S"
,CHIEF ADMIN OFCR OF THE HOUSE,2012Q3,PERSONNEL COMPENSATION,,"BOGER, KELLY M",2012-07-01,2012-09-30,ACCOUNT MANAGEMENT COUNSELOR,"19,502.49",FISCAL YEAR 2012,,,,"BOGER, KELLY M"
,CHIEF ADMIN OFCR OF THE HOUSE,2012Q3,PERSONNEL COMPENSATION,,"BOGER, KELLY M",2012-06-01,2012-08-31,ACCOUNT MANAGEMENT COUNSELOR (OVERTIME),"1,687.71",FISCAL YEAR 2012,,,,"BOGER, KELLY M"
,CHIEF ADMIN OFCR OF THE HOUSE,2012Q3,PERSONNEL COMPENSATION,,"BOOKER, CARLOS",2012-07-01,2012-09-30,SALES SPECIALIST,"9,997.50",FISCAL YEAR 2012,,,,"BOOKER, CARLOS"
,CHIEF ADMIN OFCR OF THE HOUSE,2012Q3,PERSONNEL COMPENSATION,,"BOOKER, CARLOS",2012-07-01,2012-08-31,SALES SPECIALIST (OVERTIME),57.39,FISCAL YEAR 2012,,,,"BOOKER, CARLOS"
,CHIEF ADMIN OFCR OF THE HOUSE,2012Q3,PERSONNEL COMPENSATION,,"BOONE, RUSSELL",2012-07-01,2012-09-30,TECHNICAL SUPPORT REP,"21,069.99",FISCAL YEAR 2012,,,,"BOONE, RUSSELL"
,CHIEF ADMIN OFCR OF THE HOUSE,2012Q3,PERSONNEL COMPENSATION,,"BOWERS,KAREN L",2012-07-01,2012-09-30,FINANCIAL COUNSELOR,"18,719.25",FISCAL YEAR 2012,,,,"BOWERS,KAREN L"
,CHIEF ADMIN OFCR OF THE HOUSE,2012Q3,PERSONNEL COMPENSATION,,"BOWLDING, SONIA R",2012-07-01,2012-09-30,REC/WAREHOUSE SPEC (A),"10,980.00",FISCAL YEAR 2012,,,,"BOWLDING, SONIA R"
,CHIEF ADMIN OFCR OF THE HOUSE,2012Q3,PERSONNEL COMPENSATION,,"BOWLES JR, FREDERICK H",2012-07-01,2012-09-30,"SUPERVISOR-LOGISTICS, SUPP EQU","23,592.59",FISCAL YEAR 2012,,,,"BOWLES JR, FREDERICK H"
,CHIEF ADMIN OFCR OF THE HOUSE,2012Q3,PERSONNEL COMPENSATION,,"BOWLES, JAMES A",2012-07-01,2012-09-30,JOURNEYMAN FURNITURE SPEC,"18,903.24",FISCAL YEAR 2012,,,,"BOWLES, JAMES A"
,CHIEF ADMIN OFCR OF THE HOUSE,2012Q3,PERSONNEL COMPENSATION,,"BOWLING-STOKES,CHAUNETTE L",2012-07-01,2012-09-30,SUPERVISOR,"22,659.50",FISCAL YEAR 2012,,,,"BOWLING-STOKES,CHAUNETTE L"
,CHIEF ADMIN OFCR OF THE HOUSE,2012Q3,PERSONNEL COMPENSATION,,"BOWMAN,SHELIA",2012-07-01,2012-09-30,FINANCIAL COUNSELOR,"15,789.00",FISCAL YEAR 2012,,,,"BOWMAN,SHELIA"
,CHIEF ADMIN OFCR OF THE HOUSE,2012Q3,PERSONNEL COMPENSATION,,"BOYD, PETRINA",2012-07-01,2012-09-30,SALES SPECIALIST,"11,146.50",FISCAL YEAR 2012,,,,"BOYD, PETRINA"
,CHIEF ADMIN OFCR OF THE HOUSE,2012Q3,PERSONNEL COMPENSATION,,"BOYD, PETRINA",2012-07-01,2012-07-31,SALES SPECIALIST (OVERTIME),10.72,FISCAL YEAR 2012,,,,"BOYD, PETRINA"
,CHIEF ADMIN OFCR OF THE HOUSE,2012Q3,PERSONNEL COMPENSATION,,"BOYLE, KEVIN J",2012-07-01,2012-09-30,SR BUSINESS PROCESS APPL SPEC,"37,613.25",FISCAL YEAR 2012,,,,"BOYLE, KEVIN J"
,CHIEF ADMIN OFCR OF THE HOUSE,2012Q3,PERSONNEL COMPENSATION,,"BRACKENS, ROBERT",2012-07-01,2012-09-30,BROADCAST PRODUCTION TECHNICIA,"20,771.49",FISCAL YEAR 2012,,,,"BRACKENS, ROBERT"
,CHIEF ADMIN OFCR OF THE HOUSE,2012Q3,PERSONNEL COMPENSATION,,"BRACKENS, ROBERT",2012-06-01,2012-06-30,BROADCAST PRODUCTION TECHNICIA (OVERTIME),89.88,FISCAL YEAR 2012,,,,"BRACKENS, ROBERT"
,CHIEF ADMIN OFCR OF THE HOUSE,2012Q3,PERSONNEL COMPENSATION,,"BRADDY,JIMMY R",2012-07-01,2012-07-31,TECH SOLUTIONS ENGINEER,"5,652.42",FISCAL YEAR 2012,,,,"BRADDY,JIMMY R"
,CHIEF ADMIN OFCR OF THE HOUSE,2012Q3,PERSONNEL COMPENSATION,,"BRADDY,JIMMY R",2012-07-01,2012-07-29,TECH SOLUTIONS ENGINEER (OTHER COMPENSATION),153.09,FISCAL YEAR 2012,,,,"BRADDY,JIMMY R"
,CHIEF ADMIN OFCR OF THE HOUSE,2012Q3,PERSONNEL COMPENSATION,,"BRANCH,PAMELA J",2012-07-01,2012-09-30,SENIOR BENEFITS SPECIALIST,"25,939.74",FISCAL YEAR 2012,,,,"BRANCH,PAMELA J"
,CHIEF ADMIN OFCR OF THE HOUSE,2012Q3,PERSONNEL COMPENSATION,,"BRAXTON, BRANDON A",2012-07-01,2012-09-30,LOGISTICS & DIST SPEC (A),"10,684.50",FISCAL YEAR 2012,,,,"BRAXTON, BRANDON A"
,CHIEF ADMIN OFCR OF THE HOUSE,2012Q3,PERSONNEL COMPENSATION,,"BRAYE, LORENZO",2012-07-01,2012-09-30,SR BROADCAST ENG/PROD SPECLST,"23,704.50",FISCAL YEAR 2012,,,,"BRAYE, LORENZO"
,CHIEF ADMIN OFCR OF THE HOUSE,2012Q3,PERSONNEL COMPENSATION,,"BREWSTER III,JAMES E",2012-07-01,2012-09-30,LOGISTICS & DIST SPEC (A),"9,002.49",FISCAL YEAR 2012,,,,"BREWSTER III,JAMES E"
,CHIEF ADMIN OFCR OF THE HOUSE,2012Q3,PERSONNEL COMPENSATION,,"BREWSTER,CHRISTOPHER A",2012-07-01,2012-09-30,ADMINISTRATIVE COUNSEL,"42,102.75",FISCAL YEAR 2012,,,,"BREWSTER,CHRISTOPHER A"
,CHIEF ADMIN OFCR OF THE HOUSE,2012Q3,PERSONNEL COMPENSATION,,"BRIDGEFORTH, TOINETTA A",2012-07-01,2012-09-30,CONTRACTS SPECIALIST,"21,663.00",FISCAL YEAR 2012,,,,"BRIDGEFORTH, TOINETTA A"
,CHIEF ADMIN OFCR OF THE HOUSE,2012Q3,PERSONNEL COMPENSATION,,"BRISCOE, KEVIN",2012-07-01,2012-09-30,LOGISTICS & DIST SPEC (A),"10,684.50",FISCAL YEAR 2012,,,,"BRISCOE, KEVIN"
,CHIEF ADMIN OFCR OF THE HOUSE,2012Q3,PERSONNEL COMPENSATION,,"BRITT,SHANNON W",2012-07-01,2012-07-31,HUMAN RESOURCES GENERALIST,"4,603.08",FISCAL YEAR 2012,,,,"BRITT,SHANNON W"
,CHIEF ADMIN OFCR OF THE HOUSE,2012Q3,PERSONNEL COMPENSATION,,"BRITT,SHANNON W",2012-08-01,2012-09-30,SR HUMAN RESOURCES GENERALIST,"11,696.34",FISCAL YEAR 2012,,,,"BRITT,SHANNON W"
,CHIEF ADMIN OFCR OF THE HOUSE,2012Q3,PERSONNEL COMPENSATION,,"BROBBEY-MENSAH, KWAME",2012-07-01,2012-09-30,SR INFO SYST. SECURITY ANALYST,"27,946.26",FISCAL YEAR 2012,,,,"BROBBEY-MENSAH, KWAME"
,CHIEF ADMIN OFCR OF THE HOUSE,2012Q3,PERSONNEL COMPENSATION,,"BROWN SR, DEMETRICE T",2012-07-01,2012-09-30,SUPERVISOR,"25,403.76",FISCAL YEAR 2012,,,,"BROWN SR, DEMETRICE T"
,CHIEF ADMIN OFCR OF THE HOUSE,2012Q3,PERSONNEL COMPENSATION,,"BROWN, ANNETTE G",2012-07-01,2012-09-30,SR SOFTWARE ENGINEER,"26,384.49",FISCAL YEAR 2012,,,,"BROWN, ANNETTE G"
,CHIEF ADMIN OFCR OF THE HOUSE,2012Q3,PERSONNEL COMPENSATION,,"BROWN, KEITH S",2012-07-01,2012-09-30,REC/WAREHOUSE SPEC (A),"13,798.50",FISCAL YEAR 2012,,,,"BROWN, KEITH S"
,CHIEF ADMIN OFCR OF THE HOUSE,2012Q3,PERSONNEL COMPENSATION,,"BROWN, PAMELA L",2012-07-01,2012-09-30,CUSTOMER SOLUTIONS REP,"18,123.51",FISCAL YEAR 2012,,,,"BROWN, PAMELA L"
,CHIEF ADMIN OFCR OF THE HOUSE,2012Q3,PERSONNEL COMPENSATION,,"BROWN,DAVID D",2012-07-01,2012-09-30,FINANCIAL COUNSELOR,"15,401.76",FISCAL YEAR 2012,,,,"BROWN,DAVID D"
,CHIEF ADMIN OFCR OF THE HOUSE,2012Q3,PERSONNEL COMPENSATION,,"BROWN,JASON",2012-07-01,2012-09-30,BROADCAST PRODUCTION TECHNICIA,"18,329.01",FISCAL YEAR 2012,,,,"BROWN,JASON"
,CHIEF ADMIN OFCR OF THE HOUSE,2012Q3,PERSONNEL COMPENSATION,,"BROWN,KIMBERLY K",2012-07-01,2012-09-30,RESOURCE ANALYST,"16,569.24",FISCAL YEAR 2012,,,,"BROWN,KIMBERLY K"
,CHIEF ADMIN OFCR OF THE HOUSE,2012Q3,PERSONNEL COMPENSATION,,"BROWN,LAWRENCE",2012-07-01,2012-09-30,BROADCAST ENGINEER/PROD SPEC,"21,214.74",FISCAL YEAR 2012,,,,"BROWN,LAWRENCE"
,CHIEF ADMIN OFCR OF THE HOUSE,2012Q3,PERSONNEL COMPENSATION,,"BROWN,LAWRENCE",2012-07-01,2012-07-31,BROADCAST ENGINEER/PROD SPEC. (OVERTIME),428.37,FISCAL YEAR 2012,,,,"BROWN,LAWRENCE"
,CHIEF ADMIN OFCR OF THE HOUSE,2012Q3,PERSONNEL COMPENSATION,,"BRUMMELL,JENELLE L",2012-07-01,2012-09-30,PARALEGAL,"16,569.24",FISCAL YEAR 2012,,,,"BRUMMELL,JENELLE L"
,CHIEF ADMIN OFCR OF THE HOUSE,2012Q3,PERSONNEL COMPENSATION,,"BUCKLER, RICKY L",2012-07-01,2012-09-30,PURCHASING AGENT,"18,329.01",FISCAL YEAR 2012,,,,"BUCKLER, RICKY L"
,CHIEF ADMIN OFCR OF THE HOUSE,2012Q3,PERSONNEL COMPENSATION,,"BUCKLER, TROY D",2012-07-01,2012-09-30,PURCHASING AGENT,"15,830.01",FISCAL YEAR 2012,,,,"BUCKLER, TROY D"
,CHIEF ADMIN OFCR OF THE HOUSE,2012Q3,PERSONNEL COMPENSATION,,"BUFORD, MARCIA L",2012-07-01,2012-09-30,COMPUTER FAC OP SUPERVISOR,"26,236.24",FISCAL YEAR 2012,,,,"BUFORD, MARCIA L"
,CHIEF ADMIN OFCR OF THE HOUSE,2012Q3,PERSONNEL COMPENSATION,,"BURCH, KENNETH J",2012-07-01,2012-09-30,BUSINESS PROC APPLIC SPEC,"29,301.41",FISCAL YEAR 2012,,,,"BURCH, KENNETH J"
,CHIEF ADMIN OFCR OF THE HOUSE,2012Q3,PERSONNEL COMPENSATION,,"BURNHAM, ELIZABETH",2012-07-01,2012-09-30,PAYROLL & BENEFITS MANAGER,"26,928.51",FISCAL YEAR 2012,,,,"BURNHAM, ELIZABETH"
,CHIEF ADMIN OFCR OF THE HOUSE,2012Q3,PERSONNEL COMPENSATION,,"BUTLER, CLARENCE G",2012-07-01,2012-09-30,JOURNEYMAN FURNITURE SPEC,"15,155.76",FISCAL YEAR 2012,,,,"BUTLER, CLARENCE G"
,CHIEF ADMIN OFCR OF THE HOUSE,2012Q3,PERSONNEL COMPENSATION,,"BUTLER, JAMES F",2012-07-01,2012-09-30,PAYROLL & BENEFITS MANAGER,"25,044.51",FISCAL YEAR 2012,,,,"BUTLER, JAMES F"
,CHIEF ADMIN OFCR OF THE HOUSE,2012Q3,PERSONNEL COMPENSATION,,"CAIN, MOLLY J",2012-07-01,2012-09-30,5TH ASST SUPERINTENDENT,"15,155.76",FISCAL YEAR 2012,,,,"CAIN, MOLLY J"
,CHIEF ADMIN OFCR OF THE HOUSE,2012Q3,PERSONNEL COMPENSATION,,"CALLAWAY, ROBERT M",2012-07-01,2012-09-30,SR BROADCAST ENG./PROD SPEC,"23,256.00",FISCAL YEAR 2012,,,,"CALLAWAY, ROBERT M"
,CHIEF ADMIN OFCR OF THE HOUSE,2012Q3,PERSONNEL COMPENSATION,,"CANNON, DREW",2012-07-01,2012-09-30,4TH ASST SUPERINTENDENT,"17,344.26",FISCAL YEAR 2012,,,,"CANNON, DREW"
,CHIEF ADMIN OFCR OF THE HOUSE,2012Q3,PERSONNEL COMPENSATION,,"CANNON,SUSANNAH",2012-07-01,2012-09-30,CUSTOMER SOLUTIONS REP,"13,460.01",FISCAL YEAR 2012,,,,"CANNON,SUSANNAH"
,CHIEF ADMIN OFCR OF THE HOUSE,2012Q3,PERSONNEL COMPENSATION,,"CARCAMO, ALICIA L",2012-07-01,2012-09-30,ACCOUNTING TECHNICIAN,"18,903.24",FISCAL YEAR 2012,,,,"CARCAMO, ALICIA L"
,CHIEF ADMIN OFCR OF THE HOUSE,2012Q3,PERSONNEL COMPENSATION,,"CARLSON,STACY",2012-07-01,2012-09-30,DEPUTY CAO,"42,674.01",FISCAL YEAR 2012,,,,"CARLSON,STACY"
,CHIEF ADMIN OFCR OF THE HOUSE,2012Q3,PERSONNEL COMPENSATION,,"CARNNIA,CASEY",2012-07-01,2012-09-30,INTERNET SYSTEMS SPECIALIST,"18,849.75",FISCAL YEAR 2012,,,,"CARNNIA,CASEY"
,CHIEF ADMIN OFCR OF THE HOUSE,2012Q3,PERSONNEL COMPENSATION,,"CARR, JOSH D",2012-07-01,2012-09-30,SENIOR SYSTEMS ENGINEER,"24,595.50",FISCAL YEAR 2012,,,,"CARR, JOSH D"
,CHIEF ADMIN OFCR OF THE HOUSE,2012Q3,PERSONNEL COMPENSATION,,"CARRICO, RONALD",2012-07-01,2012-09-30,SR BUSINESS PROCESS APPL SPEC,"35,775.51",FISCAL YEAR 2012,,,,"CARRICO, RONALD"
,CHIEF ADMIN OFCR OF THE HOUSE,2012Q3,PERSONNEL COMPENSATION,,"CARSON,LAWRENCE T",2012-07-01,2012-09-30,SALES SPECIALIST,"9,801.00",FISCAL YEAR 2012,,,,"CARSON,LAWRENCE T"
,CHIEF ADMIN OFCR OF THE HOUSE,2012Q3,PERSONNEL COMPENSATION,,"CARSON,LAWRENCE T",2012-07-01,2012-08-31,SALES SPECIALIST (OVERTIME),56.54,FISCAL YEAR 2012,,,,"CARSON,LAWRENCE T"
,CHIEF ADMIN OFCR OF THE HOUSE,2012Q3,PERSONNEL COMPENSATION,,"CARTER JR, JOHN L",2012-07-01,2012-09-30,"MANAGER, FINISHING","24,777.24",FISCAL YEAR 2012,,,,"CARTER JR, JOHN L"
,CHIEF ADMIN OFCR OF THE HOUSE,2012Q3,PERSONNEL COMPENSATION,,"CARTER,DELISA D",2012-07-01,2012-09-30,SR. SOFTWARE SPECIALIST,"34,547.25",FISCAL YEAR 2012,,,,"CARTER,DELISA D"
,CHIEF ADMIN OFCR OF THE HOUSE,2012Q3,PERSONNEL COMPENSATION,,"CAULK, ANDREW T",2012-07-01,2012-09-30,SUPERVISOR,"23,704.50",FISCAL YEAR 2012,,,,"CAULK, ANDREW T"
,CHIEF ADMIN OFCR OF THE HOUSE,2012Q3,PERSONNEL COMPENSATION,,"CHABOT, ELLIOT C",2012-07-01,2012-09-30,SR SYSTEMS ANALYST,"32,010.99",FISCAL YEAR 2012,,,,"CHABOT, ELLIOT C"
,CHIEF ADMIN OFCR OF THE HOUSE,2012Q3,PERSONNEL COMPENSATION,,"CHAMBERS, KEVIN N",2012-07-01,2012-09-30,SR CUSTOMER SOLUTIONS REP,"19,894.74",FISCAL YEAR 2012,,,,"CHAMBERS, KEVIN N"
,CHIEF ADMIN OFCR OF THE HOUSE,2012Q3,PERSONNEL COMPENSATION,,"CHAMBERS,KEVINA D",2012-07-01,2012-09-30,ACCOUNTING TECHNICIAN,"11,777.49",FISCAL YEAR 2012,,,,"CHAMBERS,KEVINA D"
,CHIEF ADMIN OFCR OF THE HOUSE,2012Q3,PERSONNEL COMPENSATION,,"CHANG, SU-HWA",2012-07-01,2012-09-30,SENIOR SYSTEMS ENGINEER,"29,978.76",FISCAL YEAR 2012,,,,"CHANG, SU-HWA"
,CHIEF ADMIN OFCR OF THE HOUSE,2012Q3,PERSONNEL COMPENSATION,,"CHEN, SUSAN",2012-07-01,2012-09-30,FINANCIAL COUNSELOR,"15,401.76",FISCAL YEAR 2012,,,,"CHEN, SUSAN"
,CHIEF ADMIN OFCR OF THE HOUSE,2012Q3,PERSONNEL COMPENSATION,,"CHILDRESS, J T",2012-07-01,2012-09-30,JOURNEYMAN FURNITURE SPEC,"18,903.24",FISCAL YEAR 2012,,,,"CHILDRESS, J T"
,CHIEF ADMIN OFCR OF THE HOUSE,2012Q3,PERSONNEL COMPENSATION,,"CIANCIOLO,CRAIG",2012-07-01,2012-09-30,JOURNEYMAN FURNITURE SPEC,"14,481.75",FISCAL YEAR 2012,,,,"CIANCIOLO,CRAIG"
,CHIEF ADMIN OFCR OF THE HOUSE,2012Q3,PERSONNEL COMPENSATION,,"CICALE, MICHAEL P",2012-07-01,2012-09-30,SR CUSTOMER SOLUTIONS REP,"18,903.24",FISCAL YEAR 2012,,,,"CICALE, MICHAEL P"
,CHIEF ADMIN OFCR OF THE HOUSE,2012Q3,PERSONNEL COMPENSATION,,"CLAGGETT, TIMOTHY A",2012-07-01,2012-09-30,JOURNEYMAN TEXTILE SPEC,"18,513.24",FISCAL YEAR 2012,,,,"CLAGGETT, TIMOTHY A"
,CHIEF ADMIN OFCR OF THE HOUSE,2012Q3,PERSONNEL COMPENSATION,,"CLARK, MARION",2012-07-01,2012-09-30,SR TELECOMMUNICATIONS ADMIN,"17,344.26",FISCAL YEAR 2012,,,,"CLARK, MARION"
,CHIEF ADMIN OFCR OF THE HOUSE,2012Q3,PERSONNEL COMPENSATION,,"CLARKE, JOHN P",2012-07-01,2012-09-30,SUPERVISOR,"21,214.74",FISCAL YEAR 2012,,,,"CLARKE, JOHN P"
,CHIEF ADMIN OFCR OF THE HOUSE,2012Q3,PERSONNEL COMPENSATION,,"CLOCKER, JOHN C",2012-07-01,2012-09-30,DIRECTOR WEB SYSTEMS,"39,794.25",FISCAL YEAR 2012,,,,"CLOCKER, JOHN C"
,CHIEF ADMIN OFCR OF THE HOUSE,2012Q3,PERSONNEL COMPENSATION,,"COAKLEY,KRISTEN J",2012-07-01,2012-09-30,SR TELECOMMUNICATIONS ADMIN,"16,179.24",FISCAL YEAR 2012,,,,"COAKLEY,KRISTEN J"
,CHIEF ADMIN OFCR OF THE HOUSE,2012Q3,PERSONNEL COMPENSATION,,"COBB, FAYE C",2012-07-01,2012-09-30,"DIR, BUDGET, POLICY & PLANNING","36,177.99",FISCAL YEAR 2012,,,,"COBB, FAYE C"
,CHIEF ADMIN OFCR OF THE HOUSE,2012Q3,PERSONNEL COMPENSATION,,"COLBERT, RAY C",2012-07-01,2012-09-30,ELECTRONICS TECHNICIAN (A),"21,663.00",FISCAL YEAR 2012,,,,"COLBERT, RAY C"
,CHIEF ADMIN OFCR OF THE HOUSE,2012Q3,PERSONNEL COMPENSATION,,"COLBERT, RAY C",2012-06-01,2012-07-31,ELECTRONICS TECHNICIAN (A) (OVERTIME),624.88,FISCAL YEAR 2012,,,,"COLBERT, RAY C"
,CHIEF ADMIN OFCR OF THE HOUSE,2012Q3,PERSONNEL COMPENSATION,,"COLLINS, JOHN B",2012-07-01,2012-09-30,BROADCAST PRODUCTION TECHNICIA,"22,998.51",FISCAL YEAR 2012,,,,"COLLINS, JOHN B"
,CHIEF ADMIN OFCR OF THE HOUSE,2012Q3,PERSONNEL COMPENSATION,,"COLLINS, JOHN B",2012-06-01,2012-08-31,BROADCAST PRODUCTION TECHNICIA (OVERTIME),331.7,FISCAL YEAR 2012,,,,"COLLINS, JOHN B"
,CHIEF ADMIN OFCR OF THE HOUSE,2012Q3,PERSONNEL COMPENSATION,,"COLLINS,JOEL",2012-07-01,2012-09-30,SR INTERNET SYSTEMS SPECIALIST,"28,746.75",FISCAL YEAR 2012,,,,"COLLINS,JOEL"
,CHIEF ADMIN OFCR OF THE HOUSE,2012Q3,PERSONNEL COMPENSATION,,"CONNOLLY,ERIC",2012-07-01,2012-09-30,PHOTOGRAPHER,"14,481.75",FISCAL YEAR 2012,,,,"CONNOLLY,ERIC"
,CHIEF ADMIN OFCR OF THE HOUSE,2012Q3,PERSONNEL COMPENSATION,,"CONNOLLY,ERIC",2012-06-01,2012-07-31,PHOTOGRAPHER (OVERTIME),187.98,FISCAL YEAR 2012,,,,"CONNOLLY,ERIC"
,CHIEF ADMIN OFCR OF THE HOUSE,2012Q3,PERSONNEL COMPENSATION,,"COOK, ERIC H",2012-07-01,2012-09-30,NETWORK TECHNICIAN,"19,894.74",FISCAL YEAR 2012,,,,"COOK, ERIC H"
,CHIEF ADMIN OFCR OF THE HOUSE,2012Q3,PERSONNEL COMPENSATION,,"COOPER, RICHARD S",2012-07-01,2012-09-30,STAFF ACCOUNTANT (A),"24,745.17",FISCAL YEAR 2012,,,,"COOPER, RICHARD S"
,CHIEF ADMIN OFCR OF THE HOUSE,2012Q3,PERSONNEL COMPENSATION,,"COPPA, JOSEPH P",2012-07-01,2012-09-30,SENIOR NETWORK TECHNICIAN,"23,888.25",FISCAL YEAR 2012,,,,"COPPA, JOSEPH P"
,CHIEF ADMIN OFCR OF THE HOUSE,2012Q3,PERSONNEL COMPENSATION,,"CORNEJO, LUIS E",2012-07-01,2012-09-30,SENIOR SYSTEMS ENGINEER,"25,491.51",FISCAL YEAR 2012,,,,"CORNEJO, LUIS E"
,CHIEF ADMIN OFCR OF THE HOUSE,2012Q3,PERSONNEL COMPENSATION,,"COX, BRIDGET A",2012-07-01,2012-09-30,SENIOR SYSTEMS ANALYST,"29,470.74",FISCAL YEAR 2012,,,,"COX, BRIDGET A"
,CHIEF ADMIN OFCR OF THE HOUSE,2012Q3,PERSONNEL COMPENSATION,,"COYNE III, THOMAS E",2012-07-01,2012-09-30,ASSISTANT CAO,"42,102.75",FISCAL YEAR 2012,,,,"COYNE III, THOMAS E"
,CHIEF ADMIN OFCR OF THE HOUSE,2012Q3,PERSONNEL COMPENSATION,,"CROWELL, PETER L",2012-07-01,2012-09-30,BRANCH MANAGER,"32,621.25",FISCAL YEAR 2012,,,,"CROWELL, PETER L"
,CHIEF ADMIN OFCR OF THE HOUSE,2012Q3,PERSONNEL COMPENSATION,,"CRUDUP III, WILLIAM D",2012-07-01,2012-09-30,LOGISTICS & DIST SPEC (A),"12,325.26",FISCAL YEAR 2012,,,,"CRUDUP III, WILLIAM D"
,CHIEF ADMIN OFCR OF THE HOUSE,2012Q3,PERSONNEL COMPENSATION,,"CUFF,LOREN D",2012-07-01,2012-09-30,INTERNET SYSTEMS SPECIALIST,"19,110.75",FISCAL YEAR 2012,,,,"CUFF,LOREN D"
,CHIEF ADMIN OFCR OF THE HOUSE,2012Q3,PERSONNEL COMPENSATION,,"CUFFEY, LAWRENCE",2012-07-01,2012-09-30,SR RECVNG AND WAREHOUSING SPEC,"17,848.50",FISCAL YEAR 2012,,,,"CUFFEY, LAWRENCE"
,CHIEF ADMIN OFCR OF THE HOUSE,2012Q3,PERSONNEL COMPENSATION,,"CUPRILL, CARLOS",2012-07-01,2012-09-30,SR TECHNICAL SUPPORT REP,"22,107.00",FISCAL YEAR 2012,,,,"CUPRILL, CARLOS"
,CHIEF ADMIN OFCR OF THE HOUSE,2012Q3,PERSONNEL COMPENSATION,,"CUSATI, ALESSANDRO",2012-07-01,2012-09-30,CHIEF ENGINEER,"37,001.25",FISCAL YEAR 2012,,,,"CUSATI, ALESSANDRO"
,CHIEF ADMIN OFCR OF THE HOUSE,2012Q3,PERSONNEL COMPENSATION,,"CUTLER JR, BENJAMIN S",2012-07-01,2012-09-30,PAYROLL & BENEFITS ASSISTANT,"15,155.76",FISCAL YEAR 2012,,,,"CUTLER JR, BENJAMIN S"
,CHIEF ADMIN OFCR OF THE HOUSE,2012Q3,PERSONNEL COMPENSATION,,"D'AMICO, THOMAS A",2012-07-01,2012-09-30,LOCKSMITH,"18,903.24",FISCAL YEAR 2012,,,,"D'AMICO, THOMAS A"
,CHIEF ADMIN OFCR OF THE HOUSE,2012Q3,PERSONNEL COMPENSATION,,"DAHL,RYAN S",2012-07-01,2012-09-30,MEDIA LOGISTICS COORDINATOR,"14,819.25",FISCAL YEAR 2012,,,,"DAHL,RYAN S"
,CHIEF ADMIN OFCR OF THE HOUSE,2012Q3,PERSONNEL COMPENSATION,,"DAHLSTROM, DARREN",2012-07-01,2012-09-30,JOURNEYMAN FURNITURE SPEC,"18,903.24",FISCAL YEAR 2012,,,,"DAHLSTROM, DARREN"
,CHIEF ADMIN OFCR OF THE HOUSE,2012Q3,PERSONNEL COMPENSATION,,"DALTON, MARK V",2012-07-01,2012-09-30,SENIOR SYSTEMS ENGINEER,"28,962.75",FISCAL YEAR 2012,,,,"DALTON, MARK V"
,CHIEF ADMIN OFCR OF THE HOUSE,2012Q3,PERSONNEL COMPENSATION,,"DAS, SATYENDRA K",2012-07-01,2012-09-30,BUSINESS PROC APPLIC SPEC,"29,470.74",FISCAL YEAR 2012,,,,"DAS, SATYENDRA K"
,CHIEF ADMIN OFCR OF THE HOUSE,2012Q3,PERSONNEL COMPENSATION,,"DAVENPORT,KAREN V",2012-07-01,2012-09-30,FINANCIAL ANALYST,"21,663.00",FISCAL YEAR 2012,,,,"DAVENPORT,KAREN V"
,CHIEF ADMIN OFCR OF THE HOUSE,2012Q3,PERSONNEL COMPENSATION,,"DAVIS, JOHN J",2012-07-01,2012-09-30,BROADCAST PRODUCTION TECHNICIA,"22,107.00",FISCAL YEAR 2012,,,,"DAVIS, JOHN J"
,CHIEF ADMIN OFCR OF THE HOUSE,2012Q3,PERSONNEL COMPENSATION,,"DAVIS, STACHIA G",2012-07-01,2012-09-30,DIR MOD FURN & TRANSITION,"26,928.51",FISCAL YEAR 2012,,,,"DAVIS, STACHIA G"
,CHIEF ADMIN OFCR OF THE HOUSE,2012Q3,PERSONNEL COMPENSATION,,"DAVIS,SCOTT K",2012-07-01,2012-09-30,PAYROLL & BENEFITS GENERALIST,"16,179.24",FISCAL YEAR 2012,,,,"DAVIS,SCOTT K"
,CHIEF ADMIN OFCR OF THE HOUSE,2012Q3,PERSONNEL COMPENSATION,,"DAWKINS, JOANN",2012-07-01,2012-09-30,SR TELECOMM ADMIN,"16,167.00",FISCAL YEAR 2012,,,,"DAWKINS, JOANN"
,CHIEF ADMIN OFCR OF THE HOUSE,2012Q3,PERSONNEL COMPENSATION,,"DEAN, JOSEPH M",2012-07-01,2012-09-30,JOURNEYMAN TEXTILE SPEC,"19,894.74",FISCAL YEAR 2012,,,,"DEAN, JOSEPH M"
,CHIEF ADMIN OFCR OF THE HOUSE,2012Q3,PERSONNEL COMPENSATION,,"DEAVER,JAMES",2012-07-01,2012-09-30,SENIOR SYSTEMS ENGINEER,"31,512.51",FISCAL YEAR 2012,,,,"DEAVER,JAMES"
,CHIEF ADMIN OFCR OF THE HOUSE,2012Q3,PERSONNEL COMPENSATION,,"DELISLE,KALDON A",2012-08-15,2012-09-30,JOURNEYMAN FURNITURE SPEC,"6,885.69",FISCAL YEAR 2012,,,,"DELISLE,KALDON A"
,CHIEF ADMIN OFCR OF THE HOUSE,2012Q3,PERSONNEL COMPENSATION,,"DELUCA, ALAN",2012-07-01,2012-09-30,COMPUTER FACILITIES OP MGR (A),"34,547.25",FISCAL YEAR 2012,,,,"DELUCA, ALAN"
,CHIEF ADMIN OFCR OF THE HOUSE,2012Q3,PERSONNEL COMPENSATION,,"DENT,RICHARD H",2012-07-01,2012-09-30,JOURNEYMAN TEXTILE SPEC,"12,115.50",FISCAL YEAR 2012,,,,"DENT,RICHARD H"
,CHIEF ADMIN OFCR OF THE HOUSE,2012Q3,PERSONNEL COMPENSATION,,"DERRICK, SCOTT",2012-07-01,2012-09-30,GRAPHICS & DESKTOP PUBL SPEC,"22,551.00",FISCAL YEAR 2012,,,,"DERRICK, SCOTT"
,CHIEF ADMIN OFCR OF THE HOUSE,2012Q3,PERSONNEL COMPENSATION,,"DICKIE, JAMES",2012-07-01,2012-09-30,ENGINEERING OPS MANAGER,"29,853.99",FISCAL YEAR 2012,,,,"DICKIE, JAMES"
,CHIEF ADMIN OFCR OF THE HOUSE,2012Q3,PERSONNEL COMPENSATION,,"DIEFFENDERFER, GARY L",2012-07-01,2012-09-30,SR. APPLICATION DBA SPECIALIST,"31,512.51",FISCAL YEAR 2012,,,,"DIEFFENDERFER, GARY L"
,CHIEF ADMIN OFCR OF THE HOUSE,2012Q3,PERSONNEL COMPENSATION,,"DOBBINS, MARK",2012-07-01,2012-09-30,"MANAGER, PURCHASING","22,998.51",FISCAL YEAR 2012,,,,"DOBBINS, MARK"
,CHIEF ADMIN OFCR OF THE HOUSE,2012Q3,PERSONNEL COMPENSATION,,"DONALDSON, KAREN",2012-07-01,2012-09-30,SR FINANCIAL COUNSELOR,"24,150.51",FISCAL YEAR 2012,,,,"DONALDSON, KAREN"
,CHIEF ADMIN OFCR OF THE HOUSE,2012Q3,PERSONNEL COMPENSATION,,"DOODY,ERICA",2012-07-01,2012-09-30,ADMINISTRATIVE SPECIALIST,"10,852.50",FISCAL YEAR 2012,,,,"DOODY,ERICA"
,CHIEF ADMIN OFCR OF THE HOUSE,2012Q3,PERSONNEL COMPENSATION,,"DOOLEY,GENEVA",2012-07-01,2012-09-30,SENIOR SOFTWARE SPECIALIST,"31,512.51",FISCAL YEAR 2012,,,,"DOOLEY,GENEVA"
,CHIEF ADMIN OFCR OF THE HOUSE,2012Q3,PERSONNEL COMPENSATION,,"DOZIER, BRIAN A",2012-07-01,2012-09-30,INVENTORY ADMINISTRATOR,"14,819.25",FISCAL YEAR 2012,,,,"DOZIER, BRIAN A"
,CHIEF ADMIN OFCR OF THE HOUSE,2012Q3,PERSONNEL COMPENSATION,,"DUENAS, JOSEPH E",2012-07-01,2012-09-30,TECHNICAL SUPPORT REP,"17,937.75",FISCAL YEAR 2012,,,,"DUENAS, JOSEPH E"
,CHIEF ADMIN OFCR OF THE HOUSE,2012Q3,PERSONNEL COMPENSATION,,"DUNKLIN, KELDA Y",2012-07-01,2012-09-30,SR TECHNICAL SUPPORT REP,"25,939.74",FISCAL YEAR 2012,,,,"DUNKLIN, KELDA Y"
,CHIEF ADMIN OFCR OF THE HOUSE,2012Q3,PERSONNEL COMPENSATION,,"DUPUIS,TIMOTHY D",2012-07-01,2012-09-30,ADA AIDE,"6,839.67",FISCAL YEAR 2012,,,,"DUPUIS,TIMOTHY D"
,CHIEF ADMIN OFCR OF THE HOUSE,2012Q3,PERSONNEL COMPENSATION,,"DUPUIS,TIMOTHY D",2012-06-01,2012-08-31,ADA AIDE (OVERTIME),"3,270.18",FISCAL YEAR 2012,,,,"DUPUIS,TIMOTHY D"
,CHIEF ADMIN OFCR OF THE HOUSE,2012Q3,PERSONNEL COMPENSATION,,"DURAN, ROLANDO",2012-07-01,2012-09-30,ELECTRONICS TECHNICIAN (A),"21,663.00",FISCAL YEAR 2012,,,,"DURAN, ROLANDO"
,CHIEF ADMIN OFCR OF THE HOUSE,2012Q3,PERSONNEL COMPENSATION,,"DURAN, ROLANDO",2012-06-01,2012-08-31,ELECTRONICS TECHNICIAN (A) (OVERTIME),531.16,FISCAL YEAR 2012,,,,"DURAN, ROLANDO"
,CHIEF ADMIN OFCR OF THE HOUSE,2012Q3,PERSONNEL COMPENSATION,,"DURHAM, SANDRA F",2012-07-01,2012-09-30,NETWORK OPER BRANCH MGR,"33,938.25",FISCAL YEAR 2012,,,,"DURHAM, SANDRA F"
,CHIEF ADMIN OFCR OF THE HOUSE,2012Q3,PERSONNEL COMPENSATION,,"DURKIN, JEFFREY",2012-07-01,2012-09-30,SENIOR SYSTEMS ENGINEER,"25,939.74",FISCAL YEAR 2012,,,,"DURKIN, JEFFREY"
,CHIEF ADMIN OFCR OF THE HOUSE,2012Q3,PERSONNEL COMPENSATION,,"EBERLE,DAVID A",2012-07-01,2012-09-30,TECHNICAL SUPPORT REP,"18,719.25",FISCAL YEAR 2012,,,,"EBERLE,DAVID A"
,CHIEF ADMIN OFCR OF THE HOUSE,2012Q3,PERSONNEL COMPENSATION,,"EGERSON, TROY H",2012-07-01,2012-09-30,JOURNEYMAN TEXTILE SPEC,"18,123.51",FISCAL YEAR 2012,,,,"EGERSON, TROY H"
,CHIEF ADMIN OFCR OF THE HOUSE,2012Q3,PERSONNEL COMPENSATION,,"ELERY, JR, E J",2012-07-01,2012-09-30,SENIOR CONTRACTS SPECIALIST,"33,729.51",FISCAL YEAR 2012,,,,"ELERY, JR, E J"
,CHIEF ADMIN OFCR OF THE HOUSE,2012Q3,PERSONNEL COMPENSATION,,"ELIAS, ANDREW C",2012-07-01,2012-09-30,DEPUTY DIRECTOR,"29,470.74",FISCAL YEAR 2012,,,,"ELIAS, ANDREW C"
,CHIEF ADMIN OFCR OF THE HOUSE,2012Q3,PERSONNEL COMPENSATION,,"ELLIN, JAMES B",2012-07-01,2012-09-30,NETWORK SYSTEMS ENGINEER,"24,777.24",FISCAL YEAR 2012,,,,"ELLIN, JAMES B"
,CHIEF ADMIN OFCR OF THE HOUSE,2012Q3,PERSONNEL COMPENSATION,,"ELLIOTT, RONALD",2012-07-01,2012-09-30,SR INFO SYST. SECURITY ANALYST,"25,044.51",FISCAL YEAR 2012,,,,"ELLIOTT, RONALD"
,CHIEF ADMIN OFCR OF THE HOUSE,2012Q3,PERSONNEL COMPENSATION,,"ELLIS-GREGG, SHARON",2012-07-01,2012-09-30,PAYROLL & BENEFITS ASSISTANT,"13,798.50",FISCAL YEAR 2012,,,,"ELLIS-GREGG, SHARON"
,CHIEF ADMIN OFCR OF THE HOUSE,2012Q3,PERSONNEL COMPENSATION,,"EMAMALI, NICOLE S",2012-07-01,2012-09-30,SR TECHNICAL SUPPORT REP,"26,928.51",FISCAL YEAR 2012,,,,"EMAMALI, NICOLE S"
,CHIEF ADMIN OFCR OF THE HOUSE,2012Q3,PERSONNEL COMPENSATION,,"ENGLISH, JOSEPH H",2012-07-01,2012-09-30,MOBILE COMM SPECIALIST (DATA),"25,044.51",FISCAL YEAR 2012,,,,"ENGLISH, JOSEPH H"
,CHIEF ADMIN OFCR OF THE HOUSE,2012Q3,PERSONNEL COMPENSATION,,"ERVING, JAMES H",2012-07-01,2012-09-30,COMMUNICATIONS SPECIALIST,"25,939.74",FISCAL YEAR 2012,,,,"ERVING, JAMES H"
,CHIEF ADMIN OFCR OF THE HOUSE,2012Q3,PERSONNEL COMPENSATION,,"EVANS JR, WILLIAM R",2012-07-01,2012-09-30,ELECTRONICS TECHNICIAN (A),"22,551.00",FISCAL YEAR 2012,,,,"EVANS JR, WILLIAM R"
,CHIEF ADMIN OFCR OF THE HOUSE,2012Q3,PERSONNEL COMPENSATION,,"EVANS JR, WILLIAM R",2012-06-01,2012-08-31,ELECTRONICS TECHNICIAN (A) (OVERTIME),"2,244.24",FISCAL YEAR 2012,,,,"EVANS JR, WILLIAM R"
,CHIEF ADMIN OFCR OF THE HOUSE,2012Q3,PERSONNEL COMPENSATION,,"EWERS, GRETCHEN",2012-07-01,2012-09-30,MANAGER,"25,939.74",FISCAL YEAR 2012,,,,"EWERS, GRETCHEN"
,CHIEF ADMIN OFCR OF THE HOUSE,2012Q3,PERSONNEL COMPENSATION,,"EWING JR, JOHN C",2012-07-01,2012-07-31,LOGISTICS & DIST SPEC (A),"3,561.50",FISCAL YEAR 2012,,,,"EWING JR, JOHN C"
,CHIEF ADMIN OFCR OF THE HOUSE,2012Q3,PERSONNEL COMPENSATION,,"EWING JR, JOHN C",2012-08-01,2012-09-30,RECEIVING/WAREHOUSE SPECIALIST,"7,123.00",FISCAL YEAR 2012,,,,"EWING JR, JOHN C"
,CHIEF ADMIN OFCR OF THE HOUSE,2012Q3,PERSONNEL COMPENSATION,,"EY,CARL S",2012-05-01,2012-05-18,DIRECTOR BUSINESS CONTINUITY,"-4,984.57",FISCAL YEAR 2012,,,,"EY,CARL S"
,CHIEF ADMIN OFCR OF THE HOUSE,2012Q3,PERSONNEL COMPENSATION,,"EY,CARL S",2012-05-01,2012-05-18,DIRECTOR BUSINESS CONTINUITY (OTHER COMPENSATION),"5,399.95",FISCAL YEAR 2012,,,,"EY,CARL S"
,CHIEF ADMIN OFCR OF THE HOUSE,2012Q3,PERSONNEL COMPENSATION,,"FARLEY, JOANN I",2012-07-01,2012-09-30,FINANCIAL COUNSELOR,"17,735.76",FISCAL YEAR 2012,,,,"FARLEY, JOANN I"
,CHIEF ADMIN OFCR OF THE HOUSE,2012Q3,PERSONNEL COMPENSATION,,"FIELD, ESTANISLAO",2012-07-01,2012-09-30,INFO SYSTEMS SECURITY ANALYST,"25,044.51",FISCAL YEAR 2012,,,,"FIELD, ESTANISLAO"
,CHIEF ADMIN OFCR OF THE HOUSE,2012Q3,PERSONNEL COMPENSATION,,"FISHER, JEROME",2012-07-01,2012-09-30,SR TECH SOLUTIONS ENGINEER,"24,150.51",FISCAL YEAR 2012,,,,"FISHER, JEROME"
,CHIEF ADMIN OFCR OF THE HOUSE,2012Q3,PERSONNEL COMPENSATION,,"FONTNEAU, BRUCE",2012-07-01,2012-09-30,SR SYSTEMS SUPPORT ENGINEER,"20,771.49",FISCAL YEAR 2012,,,,"FONTNEAU, BRUCE"
,CHIEF ADMIN OFCR OF THE HOUSE,2012Q3,PERSONNEL COMPENSATION,,"FORD, DARIN J",2012-07-01,2012-09-30,SR TECHNICAL SUPPORT REP (A),"22,107.00",FISCAL YEAR 2012,,,,"FORD, DARIN J"
,CHIEF ADMIN OFCR OF THE HOUSE,2012Q3,PERSONNEL COMPENSATION,,"FORGIONE, JOHN A",2012-07-01,2012-09-30,SR CUSTOMER SOLUTIONS REP,"18,513.24",FISCAL YEAR 2012,,,,"FORGIONE, JOHN A"
,CHIEF ADMIN OFCR OF THE HOUSE,2012Q3,PERSONNEL COMPENSATION,,"FOSTER, CHARLES J",2012-07-01,2012-09-30,PAYROLL & BENEFITS ASSISTANT,"13,798.50",FISCAL YEAR 2012,,,,"FOSTER, CHARLES J"
,CHIEF ADMIN OFCR OF THE HOUSE,2012Q3,PERSONNEL COMPENSATION,,"FOUNTAIN,ANIKA",2012-07-01,2012-09-30,TECH SOLUTIONS TECHNICIAN,"17,344.26",FISCAL YEAR 2012,,,,"FOUNTAIN,ANIKA"
,CHIEF ADMIN OFCR OF THE HOUSE,2012Q3,PERSONNEL COMPENSATION,,"FRANK, DEBBIE",2012-07-01,2012-09-30,SR EA COUNSELOR,"28,176.51",FISCAL YEAR 2012,,,,"FRANK, DEBBIE"
,CHIEF ADMIN OFCR OF THE HOUSE,2012Q3,PERSONNEL COMPENSATION,,"FRAVEL,DON J",2012-07-01,2012-09-30,TECH SOLUTIONS TECHNICIAN,"16,957.26",FISCAL YEAR 2012,,,,"FRAVEL,DON J"
,CHIEF ADMIN OFCR OF THE HOUSE,2012Q3,PERSONNEL COMPENSATION,,"FRECH, JASON L",2012-07-01,2012-09-30,SR SYSTEMS ENGINEER,"22,809.00",FISCAL YEAR 2012,,,,"FRECH, JASON L"
,CHIEF ADMIN OFCR OF THE HOUSE,2012Q3,PERSONNEL COMPENSATION,,"FREEMAN, ANTOINETTE P",2012-07-01,2012-09-30,ADMINISTRATIVE SPECIALIST,"14,807.25",FISCAL YEAR 2012,,,,"FREEMAN, ANTOINETTE P"
,CHIEF ADMIN OFCR OF THE HOUSE,2012Q3,PERSONNEL COMPENSATION,,"FREENEY, MALCOLM",2012-07-01,2012-09-30,PROJECT MANAGER,"25,491.51",FISCAL YEAR 2012,,,,"FREENEY, MALCOLM"
,CHIEF ADMIN OFCR OF THE HOUSE,2012Q3,PERSONNEL COMPENSATION,,"FRENCH, CAROL",2012-07-01,2012-09-30,PAYROLL & BENEFITS GENERALIST,"18,123.51",FISCAL YEAR 2012,,,,"FRENCH, CAROL"
,CHIEF ADMIN OFCR OF THE HOUSE,2012Q3,PERSONNEL COMPENSATION,,"FRENCH, CHARLES",2012-07-01,2012-09-30,SENIOR NETWORK TECHNICIAN,"25,044.51",FISCAL YEAR 2012,,,,"FRENCH, CHARLES"
,CHIEF ADMIN OFCR OF THE HOUSE,2012Q3,PERSONNEL COMPENSATION,,"FRITZ,ERIC D",2012-07-01,2012-09-30,SENIOR SYSTEMS ENGINEER,"26,422.74",FISCAL YEAR 2012,,,,"FRITZ,ERIC D"
,CHIEF ADMIN OFCR OF THE HOUSE,2012Q3,PERSONNEL COMPENSATION,,"GAERTNER, LESLIE C",2012-07-01,2012-09-30,SR NETWORK COMM SPEC,"28,962.75",FISCAL YEAR 2012,,,,"GAERTNER, LESLIE C"
,CHIEF ADMIN OFCR OF THE HOUSE,2012Q3,PERSONNEL COMPENSATION,,"GAINES, JULIA W",2012-07-01,2012-09-30,SPECIAL ASSISTANT (A),"24,777.24",FISCAL YEAR 2012,,,,"GAINES, JULIA W"
,CHIEF ADMIN OFCR OF THE HOUSE,2012Q3,PERSONNEL COMPENSATION,,"GALLAGHER, RENEE",2012-07-01,2012-09-30,SR INFO SYST. SECURITY ANALYST,"25,044.51",FISCAL YEAR 2012,,,,"GALLAGHER, RENEE"
,CHIEF ADMIN OFCR OF THE HOUSE,2012Q3,PERSONNEL COMPENSATION,,"GALLEGOS, JERRY L",2012-07-01,2012-09-30,SUPERINTENDENT,"34,836.75",FISCAL YEAR 2012,,,,"GALLEGOS, JERRY L"
,CHIEF ADMIN OFCR OF THE HOUSE,2012Q3,PERSONNEL COMPENSATION,,"GALVAN, RICARDO J",2012-07-01,2012-09-30,INVENTORY AND PLANNING MANAGER,"25,044.51",FISCAL YEAR 2012,,,,"GALVAN, RICARDO J"
,CHIEF ADMIN OFCR OF THE HOUSE,2012Q3,PERSONNEL COMPENSATION,,"GARAY, GERMAN",2012-07-01,2012-09-30,BROADCAST PRODUCTION TECHNICIA,"22,551.00",FISCAL YEAR 2012,,,,"GARAY, GERMAN"
,CHIEF ADMIN OFCR OF THE HOUSE,2012Q3,PERSONNEL COMPENSATION,,"GARAY, GERMAN",2012-06-01,2012-07-31,BROADCAST PRODUCTION TECHNICIA (OVERTIME),"2,862.21",FISCAL YEAR 2012,,,,"GARAY, GERMAN"
,CHIEF ADMIN OFCR OF THE HOUSE,2012Q3,PERSONNEL COMPENSATION,,"GASKINS, JAMES R",2012-07-01,2012-09-30,BRANCH MANAGER,"31,512.51",FISCAL YEAR 2012,,,,"GASKINS, JAMES R"
,CHIEF ADMIN OFCR OF THE HOUSE,2012Q3,PERSONNEL COMPENSATION,,"GATES, TRENA F",2012-07-01,2012-09-30,FINANCIAL COUNSELOR,"20,416.49",FISCAL YEAR 2012,,,,"GATES, TRENA F"
,CHIEF ADMIN OFCR OF THE HOUSE,2012Q3,PERSONNEL COMPENSATION,,"GATES,COREY M",2012-07-01,2012-09-30,JOURNEYMAN TEXTILE SPEC,"12,786.51",FISCAL YEAR 2012,,,,"GATES,COREY M"
,CHIEF ADMIN OFCR OF THE HOUSE,2012Q3,PERSONNEL COMPENSATION,,"GATES,COREY M",2012-06-01,2012-06-30,JOURNEYMAN TEXTILE SPEC (OVERTIME),590.14,FISCAL YEAR 2012,,,,"GATES,COREY M"
,CHIEF ADMIN OFCR OF THE HOUSE,2012Q3,PERSONNEL COMPENSATION,,"GATES,THOMAS D",2012-07-01,2012-09-30,SYSTEMS ENGINEER,"20,472.99",FISCAL YEAR 2012,,,,"GATES,THOMAS D"
,CHIEF ADMIN OFCR OF THE HOUSE,2012Q3,PERSONNEL COMPENSATION,,"GEPERT,DARLA M",2012-07-01,2012-09-30,ADMINISTRATIVE SPECIALIST (A),"12,115.50",FISCAL YEAR 2012,,,,"GEPERT,DARLA M"
,CHIEF ADMIN OFCR OF THE HOUSE,2012Q3,PERSONNEL COMPENSATION,,"GERARDEN,PAUL J",2012-07-01,2012-09-30,CUSTOMER SOLUTIONS REP,"13,123.50",FISCAL YEAR 2012,,,,"GERARDEN,PAUL J"
,CHIEF ADMIN OFCR OF THE HOUSE,2012Q3,PERSONNEL COMPENSATION,,"GIZARA, MICHAEL P",2012-07-01,2012-09-30,SR APPLICATION SECURITY ANALYS,"28,962.75",FISCAL YEAR 2012,,,,"GIZARA, MICHAEL P"
,CHIEF ADMIN OFCR OF THE HOUSE,2012Q3,PERSONNEL COMPENSATION,,"GOGGINS II, JAMES D",2012-07-01,2012-09-30,NETWORK COMM SPECIALIST (A),"22,551.00",FISCAL YEAR 2012,,,,"GOGGINS II, JAMES D"
,CHIEF ADMIN OFCR OF THE HOUSE,2012Q3,PERSONNEL COMPENSATION,,"GOLDSBOROUGH-LEE, ANGEL M",2012-07-01,2012-09-30,"DIR, TECH MGT & INTERNAL CTRLS","33,938.25",FISCAL YEAR 2012,,,,"GOLDSBOROUGH-LEE, ANGEL M"
,CHIEF ADMIN OFCR OF THE HOUSE,2012Q3,PERSONNEL COMPENSATION,,"GONZALEZ, ROSARIO D",2012-07-01,2012-09-30,SR CUSTOMER SOLUTIONS REP,"19,502.49",FISCAL YEAR 2012,,,,"GONZALEZ, ROSARIO D"
,CHIEF ADMIN OFCR OF THE HOUSE,2012Q3,PERSONNEL COMPENSATION,,"GOULD, MICHAEL",2012-07-01,2012-09-30,"MANAGER, REMEDY MANAGEMENT","28,746.75",FISCAL YEAR 2012,,,,"GOULD, MICHAEL"
,CHIEF ADMIN OFCR OF THE HOUSE,2012Q3,PERSONNEL COMPENSATION,,"GRAEUB, ANDREW C",2012-07-01,2012-09-30,"MANAGER, NETWORK SYST ENGINEER","33,323.25",FISCAL YEAR 2012,,,,"GRAEUB, ANDREW C"
,CHIEF ADMIN OFCR OF THE HOUSE,2012Q3,PERSONNEL COMPENSATION,,"GREEN, CAROLINE",2012-07-01,2012-09-30,TECHNICAL SUPPORT REP (A),"17,735.76",FISCAL YEAR 2012,,,,"GREEN, CAROLINE"
,CHIEF ADMIN OFCR OF THE HOUSE,2012Q3,PERSONNEL COMPENSATION,,"GREEN, MITCHELL",2012-07-01,2012-09-30,CONTRACT ADMINISTRATOR,"32,067.24",FISCAL YEAR 2012,,,,"GREEN, MITCHELL"
,CHIEF ADMIN OFCR OF THE HOUSE,2012Q3,PERSONNEL COMPENSATION,,"GREEN,ANDREW L",2012-07-01,2012-09-30,TECHNICAL SUPPORT REP,"16,569.24",FISCAL YEAR 2012,,,,"GREEN,ANDREW L"
,CHIEF ADMIN OFCR OF THE HOUSE,2012Q3,PERSONNEL COMPENSATION,,"GREENE, CHANTEL T",2012-07-01,2012-09-30,MGR BUS SYS AND INTEGRATION,"34,547.25",FISCAL YEAR 2012,,,,"GREENE, CHANTEL T"
,CHIEF ADMIN OFCR OF THE HOUSE,2012Q3,PERSONNEL COMPENSATION,,"GRIGGS,KYLE R",2012-07-01,2012-09-30,CONTRACTS SUPPORT ADMIN,"13,809.24",FISCAL YEAR 2012,,,,"GRIGGS,KYLE R"
,CHIEF ADMIN OFCR OF THE HOUSE,2012Q3,PERSONNEL COMPENSATION,,"GRIGGS,KYLE R",2012-07-01,2012-07-31,CONTRACTS SUPPORT ADMIN (OVERTIME),199.17,FISCAL YEAR 2012,,,,"GRIGGS,KYLE R"
,CHIEF ADMIN OFCR OF THE HOUSE,2012Q3,PERSONNEL COMPENSATION,,"GRISWOLD,RAYMOND",2012-07-01,2012-09-30,"DIRECTOR, ACQ & CONTRACT MGMT","32,302.17",FISCAL YEAR 2012,,,,"GRISWOLD,RAYMOND"
,CHIEF ADMIN OFCR OF THE HOUSE,2012Q3,PERSONNEL COMPENSATION,,"GRONSKI,ROBERT S",2012-07-01,2012-09-30,SR BUSINESS PROCESS APPL SPEC,"29,298.99",FISCAL YEAR 2012,,,,"GRONSKI,ROBERT S"
,CHIEF ADMIN OFCR OF THE HOUSE,2012Q3,PERSONNEL COMPENSATION,,"GUDURU,PRATAP K",2012-07-01,2012-09-30,SENIOR SYSTEMS ENGINEER,"30,775.24",FISCAL YEAR 2012,,,,"GUDURU,PRATAP K"
,CHIEF ADMIN OFCR OF THE HOUSE,2012Q3,PERSONNEL COMPENSATION,,"GUGLIOTTA,NORMAN",2012-07-01,2012-09-30,FINANCIAL COUNSELOR (A),"15,789.00",FISCAL YEAR 2012,,,,"GUGLIOTTA,NORMAN"
,CHIEF ADMIN OFCR OF THE HOUSE,2012Q3,PERSONNEL COMPENSATION,,"HALL,MORGAN",2012-07-01,2012-09-30,FACILITIES MANAGEMENT SPECIALI,"16,569.24",FISCAL YEAR 2012,,,,"HALL,MORGAN"
,CHIEF ADMIN OFCR OF THE HOUSE,2012Q3,PERSONNEL COMPENSATION,,"HAMBRIC, STEEN H",2012-07-01,2012-09-30,ASSISTANT CAO,"42,102.75",FISCAL YEAR 2012,,,,"HAMBRIC, STEEN H"
,CHIEF ADMIN OFCR OF THE HOUSE,2012Q3,PERSONNEL COMPENSATION,,"HAMEL,RYAN T",2012-06-01,2012-09-30,THIRD ASSISTANT,"16,538.78",FISCAL YEAR 2012,,,,"HAMEL,RYAN T"
,CHIEF ADMIN OFCR OF THE HOUSE,2012Q3,PERSONNEL COMPENSATION,,"HAMNER, PHILIP D",2012-07-01,2012-09-30,"DIRECTOR, ACCOUNTING","35,775.51",FISCAL YEAR 2012,,,,"HAMNER, PHILIP D"
,CHIEF ADMIN OFCR OF THE HOUSE,2012Q3,PERSONNEL COMPENSATION,,"HANCOCK, TERRY L",2012-07-01,2012-09-30,SR INFO SYST. SECURITY ANALYST,"31,512.51",FISCAL YEAR 2012,,,,"HANCOCK, TERRY L"
,CHIEF ADMIN OFCR OF THE HOUSE,2012Q3,PERSONNEL COMPENSATION,,"HANEY, WINSTON",2012-07-01,2012-09-30,ACCOUNT MANAGEMENT COUNSELOR,"13,798.50",FISCAL YEAR 2012,,,,"HANEY, WINSTON"
,CHIEF ADMIN OFCR OF THE HOUSE,2012Q3,PERSONNEL COMPENSATION,,"HANLEY,JONATHAN S",2012-07-01,2012-08-31,PROG COORD SUMMER ENRICH PROG,"11,696.34",FISCAL YEAR 2012,,,,"HANLEY,JONATHAN S"
,CHIEF ADMIN OFCR OF THE HOUSE,2012Q3,PERSONNEL COMPENSATION,,"HANONU, TINA M",2012-07-01,2012-09-30,ASSISTANT CAO,"42,102.75",FISCAL YEAR 2012,,,,"HANONU, TINA M"
,CHIEF ADMIN OFCR OF THE HOUSE,2012Q3,PERSONNEL COMPENSATION,,"HAQ,RABIA",2012-07-01,2012-09-30,BUSINESS PROC APPLIC SPEC,"22,809.00",FISCAL YEAR 2012,,,,"HAQ,RABIA"
,CHIEF ADMIN OFCR OF THE HOUSE,2012Q3,PERSONNEL COMPENSATION,,"HARDY, MARGUERITA P",2012-07-01,2012-09-30,CUSTOMER SOLUTIONS REP,"13,798.50",FISCAL YEAR 2012,,,,"HARDY, MARGUERITA P"
,CHIEF ADMIN OFCR OF THE HOUSE,2012Q3,PERSONNEL COMPENSATION,,"HARGROVE, BRIAN",2012-07-01,2012-09-30,LOGISTICS & DIST SPEC (A),"10,095.75",FISCAL YEAR 2012,,,,"HARGROVE, BRIAN"
,CHIEF ADMIN OFCR OF THE HOUSE,2012Q3,PERSONNEL COMPENSATION,,"HARRINGTON, KEITH",2012-07-01,2012-09-30,FINANCIAL COUNSELOR,"22,639.26",FISCAL YEAR 2012,,,,"HARRINGTON, KEITH"
,CHIEF ADMIN OFCR OF THE HOUSE,2012Q3,PERSONNEL COMPENSATION,,"HARRIS, DONALD",2012-07-01,2012-09-30,SR NETWORK COMM SPECIALIST,"28,454.01",FISCAL YEAR 2012,,,,"HARRIS, DONALD"
,CHIEF ADMIN OFCR OF THE HOUSE,2012Q3,PERSONNEL COMPENSATION,,"HARRIS, KEVIN",2012-07-01,2012-09-30,JOURNEYMAN FURNITURE SPEC,"18,903.24",FISCAL YEAR 2012,,,,"HARRIS, KEVIN"
,CHIEF ADMIN OFCR OF THE HOUSE,2012Q3,PERSONNEL COMPENSATION,,"HARRIS, STEPHANIE A",2012-07-01,2012-09-30,SR BUSINESS PROC APPL SPEC II,"42,102.75",FISCAL YEAR 2012,,,,"HARRIS, STEPHANIE A"
,CHIEF ADMIN OFCR OF THE HOUSE,2012Q3,PERSONNEL COMPENSATION,,"HARVEY, JAMIE",2012-07-01,2012-09-30,SR TELECOMMUNICATIONS ADMIN (A,"16,167.00",FISCAL YEAR 2012,,,,"HARVEY, JAMIE"
,CHIEF ADMIN OFCR OF THE HOUSE,2012Q3,PERSONNEL COMPENSATION,,"HARVEY,KINSEY B",2012-07-01,2012-09-30,MEDIA LOGISTICS COORDINATOR,"15,401.76",FISCAL YEAR 2012,,,,"HARVEY,KINSEY B"
,CHIEF ADMIN OFCR OF THE HOUSE,2012Q3,PERSONNEL COMPENSATION,,"HAYES,KATHLEEN M",2012-07-01,2012-09-30,CUSTOMER SOLUTIONS REP,"14,148.00",FISCAL YEAR 2012,,,,"HAYES,KATHLEEN M"
,CHIEF ADMIN OFCR OF THE HOUSE,2012Q3,PERSONNEL COMPENSATION,,"HAYES,MICHELLE P",2012-07-01,2012-09-30,SENIOR SYSTEMS ENGINEER,"30,960.24",FISCAL YEAR 2012,,,,"HAYES,MICHELLE P"
,CHIEF ADMIN OFCR OF THE HOUSE,2012Q3,PERSONNEL COMPENSATION,,"HEEB III, JOHN J",2012-07-01,2012-09-30,SR BUSINESS PROCESS APPL SPEC,"33,729.51",FISCAL YEAR 2012,,,,"HEEB III, JOHN J"
,CHIEF ADMIN OFCR OF THE HOUSE,2012Q3,PERSONNEL COMPENSATION,,"HERBERT, GREGORY L",2012-07-01,2012-09-30,REC/WAREHOUSE SPEC (A),"12,029.49",FISCAL YEAR 2012,,,,"HERBERT, GREGORY L"
,CHIEF ADMIN OFCR OF THE HOUSE,2012Q3,PERSONNEL COMPENSATION,,"HIBBS, CYNTHIA",2012-07-01,2012-09-30,NETWORK COORDINATOR (A),"18,903.24",FISCAL YEAR 2012,,,,"HIBBS, CYNTHIA"
,CHIEF ADMIN OFCR OF THE HOUSE,2012Q3,PERSONNEL COMPENSATION,,"HICKS, KATHERINE A",2012-07-01,2012-09-30,RESOURCE ANALYST,"13,589.87",FISCAL YEAR 2012,,,,"HICKS, KATHERINE A"
,CHIEF ADMIN OFCR OF THE HOUSE,2012Q3,PERSONNEL COMPENSATION,,"HICKS, KATHERINE A",2012-09-01,2012-09-30,RESOURCE ANALYST (OTHER COMPENSATION),"6,370.25",FISCAL YEAR 2012,,,,"HICKS, KATHERINE A"
,CHIEF ADMIN OFCR OF THE HOUSE,2012Q3,PERSONNEL COMPENSATION,,"HILL, TITRA M",2012-07-01,2012-09-30,RECEPTIONIST,"13,460.01",FISCAL YEAR 2012,,,,"HILL, TITRA M"
,CHIEF ADMIN OFCR OF THE HOUSE,2012Q3,PERSONNEL COMPENSATION,,"HIRSCH, PATRICK A",2012-07-01,2012-09-30,DIR-HOUSE RECORDING STUDIO,"39,794.25",FISCAL YEAR 2012,,,,"HIRSCH, PATRICK A"
,CHIEF ADMIN OFCR OF THE HOUSE,2012Q3,PERSONNEL COMPENSATION,,"HITE,JASON A",2012-07-01,2012-09-30,CHIEF HUMAN RESOURCES OFFICER,"34,956.25",FISCAL YEAR 2012,,,,"HITE,JASON A"
,CHIEF ADMIN OFCR OF THE HOUSE,2012Q3,PERSONNEL COMPENSATION,,"HOANG, CHI PHUONG N",2012-07-01,2012-09-30,SR BUSINESS PROCESS APPL SPEC,"25,912.74",FISCAL YEAR 2012,,,,"HOANG, CHI PHUONG N"
,CHIEF ADMIN OFCR OF THE HOUSE,2012Q3,PERSONNEL COMPENSATION,,"HOBBS, DENINE",2012-07-01,2012-09-30,SPECIAL ASSISTANT,"24,595.50",FISCAL YEAR 2012,,,,"HOBBS, DENINE"
,CHIEF ADMIN OFCR OF THE HOUSE,2012Q3,PERSONNEL COMPENSATION,,"HODGES, JOHN E",2012-07-01,2012-09-30,"MANAGER, SALES & CUSTOMER SVC","24,777.24",FISCAL YEAR 2012,,,,"HODGES, JOHN E"
,CHIEF ADMIN OFCR OF THE HOUSE,2012Q3,PERSONNEL COMPENSATION,,"HOKHOLD, MARK D",2012-07-01,2012-09-30,SYSTEMS ENGINEER,"24,595.50",FISCAL YEAR 2012,,,,"HOKHOLD, MARK D"
,CHIEF ADMIN OFCR OF THE HOUSE,2012Q3,PERSONNEL COMPENSATION,,"HOLAU,GEORGE",2012-07-01,2012-09-30,FINANCIAL COUNSELOR,"20,286.24",FISCAL YEAR 2012,,,,"HOLAU,GEORGE"
,CHIEF ADMIN OFCR OF THE HOUSE,2012Q3,PERSONNEL COMPENSATION,,"HOLLAND, GREGORY",2012-07-01,2012-09-30,LOGISTICS & DIST SPEC (A),"11,274.00",FISCAL YEAR 2012,,,,"HOLLAND, GREGORY"
,CHIEF ADMIN OFCR OF THE HOUSE,2012Q3,PERSONNEL COMPENSATION,,"HOLLEY, STEVEN M",2012-07-01,2012-09-30,LOGISTICS & DIST SPEC (A),"10,783.00",FISCAL YEAR 2012,,,,"HOLLEY, STEVEN M"
,CHIEF ADMIN OFCR OF THE HOUSE,2012Q3,PERSONNEL COMPENSATION,,"HOLLIWAY, MONROE",2012-07-01,2012-09-30,LOGISTICS & DIST SPEC (A),"10,684.50",FISCAL YEAR 2012,,,,"HOLLIWAY, MONROE"
,CHIEF ADMIN OFCR OF THE HOUSE,2012Q3,PERSONNEL COMPENSATION,,"HOLMBERG, BARBARA A",2012-07-01,2012-09-30,PAYROLL & BENEFITS ASSISTANT,"14,807.25",FISCAL YEAR 2012,,,,"HOLMBERG, BARBARA A"
,CHIEF ADMIN OFCR OF THE HOUSE,2012Q3,PERSONNEL COMPENSATION,,"HORNBURG, RICHARD A",2012-07-01,2012-09-30,BUSINESS PROC APPLIC SPEC,"27,437.01",FISCAL YEAR 2012,,,,"HORNBURG, RICHARD A"
,CHIEF ADMIN OFCR OF THE HOUSE,2012Q3,PERSONNEL COMPENSATION,,"HORTON, ALFREDDA L",2012-07-01,2012-09-30,ASSISTANT CAO,"42,102.75",FISCAL YEAR 2012,,,,"HORTON, ALFREDDA L"
,CHIEF ADMIN OFCR OF THE HOUSE,2012Q3,PERSONNEL COMPENSATION,,"HOWARD, ANTHONY T",2012-07-01,2012-09-30,JOURNEYMAN TEXTILE SPEC,"16,505.25",FISCAL YEAR 2012,,,,"HOWARD, ANTHONY T"
,CHIEF ADMIN OFCR OF THE HOUSE,2012Q3,PERSONNEL COMPENSATION,,"HUGHES, MICHAEL A",2012-07-01,2012-09-30,FINANCIAL COUNSELOR,"15,491.01",FISCAL YEAR 2012,,,,"HUGHES, MICHAEL A"
,CHIEF ADMIN OFCR OF THE HOUSE,2012Q3,PERSONNEL COMPENSATION,,"HUGHES, RICHARD N",2012-07-01,2012-09-30,SENIOR AUDIO SPECIALIST,"29,470.74",FISCAL YEAR 2012,,,,"HUGHES, RICHARD N"
,CHIEF ADMIN OFCR OF THE HOUSE,2012Q3,PERSONNEL COMPENSATION,,"HUGHES, RICHARD N",2012-06-01,2012-06-30,SENIOR AUDIO SPECIALIST (OVERTIME),212.53,FISCAL YEAR 2012,,,,"HUGHES, RICHARD N"
,CHIEF ADMIN OFCR OF THE HOUSE,2012Q3,PERSONNEL COMPENSATION,,"HUNT,DANIEL",2012-07-01,2012-09-30,SR NETWORK COMM SPECIALIST,"30,405.24",FISCAL YEAR 2012,,,,"HUNT,DANIEL"
,CHIEF ADMIN OFCR OF THE HOUSE,2012Q3,PERSONNEL COMPENSATION,,"HUNTER, PAMELA A",2012-07-01,2012-09-30,PROGRAM MANAGER,"26,928.51",FISCAL YEAR 2012,,,,"HUNTER, PAMELA A"
,CHIEF ADMIN OFCR OF THE HOUSE,2012Q3,PERSONNEL COMPENSATION,,"HUNTER, STEVE",2012-07-01,2012-09-30,ACCOUNT MANAGEMENT COUNSELOR,"13,460.01",FISCAL YEAR 2012,,,,"HUNTER, STEVE"
,CHIEF ADMIN OFCR OF THE HOUSE,2012Q3,PERSONNEL COMPENSATION,,"HUNTER, STEVE",2012-06-01,2012-08-31,ACCOUNT MANAGEMENT COUNSELOR (OVERTIME),"1,164.78",FISCAL YEAR 2012,,,,"HUNTER, STEVE"
,CHIEF ADMIN OFCR OF THE HOUSE,2012Q3,PERSONNEL COMPENSATION,,"HURDA, JACQUELINE L",2012-07-01,2012-09-30,FINANCIAL COUNSELOR (A),"19,502.49",FISCAL YEAR 2012,,,,"HURDA, JACQUELINE L"
,CHIEF ADMIN OFCR OF THE HOUSE,2012Q3,PERSONNEL COMPENSATION,,"ILOG,ANGELA M",2012-07-01,2012-09-30,CONTRACTS SUPPORT ADMIN,"13,809.24",FISCAL YEAR 2012,,,,"ILOG,ANGELA M"
,CHIEF ADMIN OFCR OF THE HOUSE,2012Q3,PERSONNEL COMPENSATION,,"JACKSON, REGGIE",2012-07-01,2012-09-30,SR TECHNICAL SUPPORT REP (A),"22,809.00",FISCAL YEAR 2012,,,,"JACKSON, REGGIE"
,CHIEF ADMIN OFCR OF THE HOUSE,2012Q3,PERSONNEL COMPENSATION,,"JACKSON, TREVERA R",2012-07-01,2012-09-30,SYSTEMS ENGINEER,"22,639.26",FISCAL YEAR 2012,,,,"JACKSON, TREVERA R"
,CHIEF ADMIN OFCR OF THE HOUSE,2012Q3,PERSONNEL COMPENSATION,,"JACKSON, WANDA J",2012-07-01,2012-09-30,TELECOMMUNICATIONS BRANCH MNGR,"25,912.74",FISCAL YEAR 2012,,,,"JACKSON, WANDA J"
,CHIEF ADMIN OFCR OF THE HOUSE,2012Q3,PERSONNEL COMPENSATION,,"JACOBSON, BRADLEY J",2012-07-01,2012-09-30,BRANCH MANAGER,"33,938.25",FISCAL YEAR 2012,,,,"JACOBSON, BRADLEY J"
,CHIEF ADMIN OFCR OF THE HOUSE,2012Q3,PERSONNEL COMPENSATION,,"JANIFER, ROLAND S",2012-07-01,2012-09-30,"SUPERVISOR,LOGIS & DIST (A)","17,735.76",FISCAL YEAR 2012,,,,"JANIFER, ROLAND S"
,CHIEF ADMIN OFCR OF THE HOUSE,2012Q3,PERSONNEL COMPENSATION,,"JEFFERSON,KENYATTA",2012-07-01,2012-09-30,TECH SOLUTIONS ENGINEER,"16,179.24",FISCAL YEAR 2012,,,,"JEFFERSON,KENYATTA"
,CHIEF ADMIN OFCR OF THE HOUSE,2012Q3,PERSONNEL COMPENSATION,,"JENKINS, JAMES",2012-07-01,2012-09-30,WORKFLOW COORDINATOR,"18,903.24",FISCAL YEAR 2012,,,,"JENKINS, JAMES"
,CHIEF ADMIN OFCR OF THE HOUSE,2012Q3,PERSONNEL COMPENSATION,,"JENNINGS, ARACELI",2012-07-01,2012-09-30,FINANCIAL ASSISTANT,"16,505.25",FISCAL YEAR 2012,,,,"JENNINGS, ARACELI"
,CHIEF ADMIN OFCR OF THE HOUSE,2012Q3,PERSONNEL COMPENSATION,,"JENSEN,CHRISTINE",2012-07-01,2012-09-30,PROGRAM ASSISTANT (WWP),"23,704.50",FISCAL YEAR 2012,,,,"JENSEN,CHRISTINE"
,CHIEF ADMIN OFCR OF THE HOUSE,2012Q3,PERSONNEL COMPENSATION,,"JOHANN, DEREK",2012-07-01,2012-09-30,SR RECEIVING & WAREHOUSIN SPEC,"16,505.25",FISCAL YEAR 2012,,,,"JOHANN, DEREK"
,CHIEF ADMIN OFCR OF THE HOUSE,2012Q3,PERSONNEL COMPENSATION,,"JOHNSON, ANDRE",2012-07-01,2012-09-30,APPLICATION DBA SPECIALIST,"22,551.00",FISCAL YEAR 2012,,,,"JOHNSON, ANDRE"
,CHIEF ADMIN OFCR OF THE HOUSE,2012Q3,PERSONNEL COMPENSATION,,"JOHNSON, DWAYNE",2012-07-01,2012-09-30,RETAIL INVENTORY SPECIALIST,"14,134.74",FISCAL YEAR 2012,,,,"JOHNSON, DWAYNE"
,CHIEF ADMIN OFCR OF THE HOUSE,2012Q3,PERSONNEL COMPENSATION,,"JOHNSON, ERIC C",2012-02-01,2012-09-30,LOGISTICS & DIST SPEC (A),"10,408.00",FISCAL YEAR 2012,,,,"JOHNSON, ERIC C"
,CHIEF ADMIN OFCR OF THE HOUSE,2012Q3,PERSONNEL COMPENSATION,,"JOHNSON, MARGARET K",2012-07-01,2012-09-30,SR MODULAR FURNITURE SPEC,"16,957.26",FISCAL YEAR 2012,,,,"JOHNSON, MARGARET K"
,CHIEF ADMIN OFCR OF THE HOUSE,2012Q3,PERSONNEL COMPENSATION,,"JOHNSON, REGINALD",2012-07-01,2012-09-30,FINANCIAL COUNSELOR (A),"16,957.26",FISCAL YEAR 2012,,,,"JOHNSON, REGINALD"
,CHIEF ADMIN OFCR OF THE HOUSE,2012Q3,PERSONNEL COMPENSATION,,"JOHNSON, ROBERT C",2012-07-01,2012-09-30,SENIOR SYSTEMS ENGINEER,"29,470.74",FISCAL YEAR 2012,,,,"JOHNSON, ROBERT C"
,CHIEF ADMIN OFCR OF THE HOUSE,2012Q3,PERSONNEL COMPENSATION,,"JOHNSON, STEPHEN R",2012-07-01,2012-09-30,AUDIO SPECIALIST,"25,044.51",FISCAL YEAR 2012,,,,"JOHNSON, STEPHEN R"
,CHIEF ADMIN OFCR OF THE HOUSE,2012Q3,PERSONNEL COMPENSATION,,"JOHNSON, STEPHEN R",2012-06-01,2012-08-31,AUDIO SPECIALIST (OVERTIME),"1,264.26",FISCAL YEAR 2012,,,,"JOHNSON, STEPHEN R"
,CHIEF ADMIN OFCR OF THE HOUSE,2012Q3,PERSONNEL COMPENSATION,,"JOHNSON,KWASI Z",2012-07-01,2012-09-30,LOGISTICS & DIST SPEC (A),"8,751.24",FISCAL YEAR 2012,,,,"JOHNSON,KWASI Z"
,CHIEF ADMIN OFCR OF THE HOUSE,2012Q3,PERSONNEL COMPENSATION,,"JOLICOEUR,VICTORIA J",2012-07-16,2012-09-30,CONTRACT ADMINISTRATOR,"16,564.38",FISCAL YEAR 2012,,,,"JOLICOEUR,VICTORIA J"
,CHIEF ADMIN OFCR OF THE HOUSE,2012Q3,PERSONNEL COMPENSATION,,"JONES III,CLARENCE",2012-07-01,2012-09-30,SENIOR NETWORK TECHNICIAN,"18,719.25",FISCAL YEAR 2012,,,,"JONES III,CLARENCE"
,CHIEF ADMIN OFCR OF THE HOUSE,2012Q3,PERSONNEL COMPENSATION,,"JONES JR, CHARLES J",2012-07-01,2012-09-30,NETWORK COMM SPECIALIST,"23,704.50",FISCAL YEAR 2012,,,,"JONES JR, CHARLES J"
,CHIEF ADMIN OFCR OF THE HOUSE,2012Q3,PERSONNEL COMPENSATION,,"JONES, DEBORAH D",2012-07-01,2012-09-30,FINANCIAL COUNSELOR,"21,069.99",FISCAL YEAR 2012,,,,"JONES, DEBORAH D"
,CHIEF ADMIN OFCR OF THE HOUSE,2012Q3,PERSONNEL COMPENSATION,,"JONES, MITCHAEL",2012-07-01,2012-09-30,TECHNICAL TRAINER,"19,894.74",FISCAL YEAR 2012,,,,"JONES, MITCHAEL"
,CHIEF ADMIN OFCR OF THE HOUSE,2012Q3,PERSONNEL COMPENSATION,,"JONES, STEPHEN E",2012-07-01,2012-09-30,SENIOR SYSTEMS ENGINEER,"29,298.99",FISCAL YEAR 2012,,,,"JONES, STEPHEN E"
,CHIEF ADMIN OFCR OF THE HOUSE,2012Q3,PERSONNEL COMPENSATION,,"JONES, WESLEY D",2012-07-01,2012-09-30,LOGISTICS & DIST SPEC (A),"10,980.00",FISCAL YEAR 2012,,,,"JONES, WESLEY D"
,CHIEF ADMIN OFCR OF THE HOUSE,2012Q3,PERSONNEL COMPENSATION,,"JONES,RODNEY B",2012-07-01,2012-09-30,SR TECHNICAL SUPPORT REP,"20,771.49",FISCAL YEAR 2012,,,,"JONES,RODNEY B"
,CHIEF ADMIN OFCR OF THE HOUSE,2012Q3,PERSONNEL COMPENSATION,,"JONES,YOLANDA S",2012-07-01,2012-09-30,PAYROLL & BENEFITS GENERALIST,"15,401.76",FISCAL YEAR 2012,,,,"JONES,YOLANDA S"
,CHIEF ADMIN OFCR OF THE HOUSE,2012Q3,PERSONNEL COMPENSATION,,"JORDAN, YONG O",2012-07-01,2012-09-30,SR TECH SOLUTIONS ENGINEER,"24,150.51",FISCAL YEAR 2012,,,,"JORDAN, YONG O"
,CHIEF ADMIN OFCR OF THE HOUSE,2012Q3,PERSONNEL COMPENSATION,,"JOYCE, ERIC",2012-07-01,2012-09-30,SUPERVISOR,"27,946.26",FISCAL YEAR 2012,,,,"JOYCE, ERIC"
,CHIEF ADMIN OFCR OF THE HOUSE,2012Q3,PERSONNEL COMPENSATION,,"JUDGE, NANCY",2012-07-01,2012-09-30,CUSTOMER SOLUTIONS REP,"15,155.76",FISCAL YEAR 2012,,,,"JUDGE, NANCY"
,CHIEF ADMIN OFCR OF THE HOUSE,2012Q3,PERSONNEL COMPENSATION,,"KAESER, STEVEN W",2012-07-01,2012-09-30,SENIOR SYSTEMS ENGINEER,"28,454.01",FISCAL YEAR 2012,,,,"KAESER, STEVEN W"
,CHIEF ADMIN OFCR OF THE HOUSE,2012Q3,PERSONNEL COMPENSATION,,"KAHLER, KENT",2012-07-01,2012-09-30,SYSTEMS ENGINEER,"25,044.51",FISCAL YEAR 2012,,,,"KAHLER, KENT"
,CHIEF ADMIN OFCR OF THE HOUSE,2012Q3,PERSONNEL COMPENSATION,,"KAPLAN,LEAH",2012-07-01,2012-09-30,MEDIA LOGISTICS ASSISTANT,"11,777.49",FISCAL YEAR 2012,,,,"KAPLAN,LEAH"
,CHIEF ADMIN OFCR OF THE HOUSE,2012Q3,PERSONNEL COMPENSATION,,"KEANE, MICHAEL T",2012-07-01,2012-07-31,WORKFLOW COORDINATOR,"6,239.75",FISCAL YEAR 2012,,,,"KEANE, MICHAEL T"
,CHIEF ADMIN OFCR OF THE HOUSE,2012Q3,PERSONNEL COMPENSATION,,"KEANE, MICHAEL T",2012-08-01,2012-09-30,"MANAGER, WORKFLOW MANAGEMENT","14,907.00",FISCAL YEAR 2012,,,,"KEANE, MICHAEL T"
,CHIEF ADMIN OFCR OF THE HOUSE,2012Q3,PERSONNEL COMPENSATION,,"KELLAHER,ANTHONY",2012-07-01,2012-09-30,MEDIA LOGISTICS COORDINATOR,"17,544.51",FISCAL YEAR 2012,,,,"KELLAHER,ANTHONY"
,CHIEF ADMIN OFCR OF THE HOUSE,2012Q3,PERSONNEL COMPENSATION,,"KELLEY, KEVIN S",2012-07-01,2012-09-30,CUSTOMER SOLUTIONS REP,"15,942.34",FISCAL YEAR 2012,,,,"KELLEY, KEVIN S"
,CHIEF ADMIN OFCR OF THE HOUSE,2012Q3,PERSONNEL COMPENSATION,,"KELLEY, MARY M",2012-07-01,2012-09-30,RESOURCE MANAGER,"28,962.75",FISCAL YEAR 2012,,,,"KELLEY, MARY M"
,CHIEF ADMIN OFCR OF THE HOUSE,2012Q3,PERSONNEL COMPENSATION,,"KELLEY, TARA A",2012-07-01,2012-09-30,COMMUNICATIONS SPEC (A),"20,676.99",FISCAL YEAR 2012,,,,"KELLEY, TARA A"
,CHIEF ADMIN OFCR OF THE HOUSE,2012Q3,PERSONNEL COMPENSATION,,"KELLY, CYNTHIA W",2012-07-01,2012-07-01,INTERNET SYSTEMS SPECIALIST,251.55,FISCAL YEAR 2012,,,,"KELLY, CYNTHIA W"
,CHIEF ADMIN OFCR OF THE HOUSE,2012Q3,PERSONNEL COMPENSATION,,"KELLY, CYNTHIA W",2012-07-01,2012-07-01,INTERNET SYSTEMS SPECIALIST (OTHER COMPENSATION),"1,855.16",FISCAL YEAR 2012,,,,"KELLY, CYNTHIA W"
,CHIEF ADMIN OFCR OF THE HOUSE,2012Q3,PERSONNEL COMPENSATION,,"KEMP, DAVID S",2012-07-01,2012-09-30,SENIOR SYSTEMS ENGINEER,"32,621.25",FISCAL YEAR 2012,,,,"KEMP, DAVID S"
,CHIEF ADMIN OFCR OF THE HOUSE,2012Q3,PERSONNEL COMPENSATION,,"KENEALY, PATRICK T",2012-07-01,2012-09-30,FINANCIAL ANALYST,"33,729.51",FISCAL YEAR 2012,,,,"KENEALY, PATRICK T"
,CHIEF ADMIN OFCR OF THE HOUSE,2012Q3,PERSONNEL COMPENSATION,,"KILSON,FRANKLIN P",2012-07-01,2012-09-30,NETWORK TECHNICIAN,"21,214.74",FISCAL YEAR 2012,,,,"KILSON,FRANKLIN P"
,CHIEF ADMIN OFCR OF THE HOUSE,2012Q3,PERSONNEL COMPENSATION,,"KIMBALL, MARK E",2012-07-01,2012-09-30,SR TECHNICAL SUPPORT REP (A),"21,663.00",FISCAL YEAR 2012,,,,"KIMBALL, MARK E"
,CHIEF ADMIN OFCR OF THE HOUSE,2012Q3,PERSONNEL COMPENSATION,,"KING, ERIC C",2012-07-01,2012-09-30,JOURNEYMAN FURNITURE SPEC,"19,502.49",FISCAL YEAR 2012,,,,"KING, ERIC C"
,CHIEF ADMIN OFCR OF THE HOUSE,2012Q3,PERSONNEL COMPENSATION,,"KING, JOHN A",2012-07-01,2012-09-30,"SUPERVISOR,LOGISTICS & DIST (A","17,735.76",FISCAL YEAR 2012,,,,"KING, JOHN A"
,CHIEF ADMIN OFCR OF THE HOUSE,2012Q3,PERSONNEL COMPENSATION,,"KLEMP, CAROLINE",2012-07-01,2012-09-30,DIRECTOR MEMBERS' SERVICES,"34,836.75",FISCAL YEAR 2012,,,,"KLEMP, CAROLINE"
,CHIEF ADMIN OFCR OF THE HOUSE,2012Q3,PERSONNEL COMPENSATION,,"KLUSSENDORF, KATHLEEN M",2012-07-01,2012-09-30,SPECIAL ASSISTANT,"27,280.50",FISCAL YEAR 2012,,,,"KLUSSENDORF, KATHLEEN M"
,CHIEF ADMIN OFCR OF THE HOUSE,2012Q3,PERSONNEL COMPENSATION,,"KNELL, KATHERINE A",2012-07-01,2012-09-30,HRIS APPLICATIONS MANAGER,"38,187.92",FISCAL YEAR 2012,,,,"KNELL, KATHERINE A"
,CHIEF ADMIN OFCR OF THE HOUSE,2012Q3,PERSONNEL COMPENSATION,,"KNOERL, THOMAS K",2012-07-01,2012-09-30,NETWORK COMMUNICATIONS SPEC,"25,939.74",FISCAL YEAR 2012,,,,"KNOERL, THOMAS K"
,CHIEF ADMIN OFCR OF THE HOUSE,2012Q3,PERSONNEL COMPENSATION,,"KORNACKI, OLGA R",2012-07-01,2012-09-30,DIRECTOR,"32,621.25",FISCAL YEAR 2012,,,,"KORNACKI, OLGA R"
,CHIEF ADMIN OFCR OF THE HOUSE,2012Q3,PERSONNEL COMPENSATION,,"KOSH, EMORY A",2012-07-01,2012-09-30,PAYROLL & BENEFITS GENERALIST,"15,789.00",FISCAL YEAR 2012,,,,"KOSH, EMORY A"
,CHIEF ADMIN OFCR OF THE HOUSE,2012Q3,PERSONNEL COMPENSATION,,"KOZTOSKI, DOUGLAS W",2012-07-01,2012-09-30,BROADCAST PRODUCTION TECHNICIA,"19,110.75",FISCAL YEAR 2012,,,,"KOZTOSKI, DOUGLAS W"
,CHIEF ADMIN OFCR OF THE HOUSE,2012Q3,PERSONNEL COMPENSATION,,"KOZTOSKI, DOUGLAS W",2012-06-01,2012-08-31,BROADCAST PRODUCTION TECHNICIA (OVERTIME),964.72,FISCAL YEAR 2012,,,,"KOZTOSKI, DOUGLAS W"
,CHIEF ADMIN OFCR OF THE HOUSE,2012Q3,PERSONNEL COMPENSATION,,"KRALY,ELIZABETH A",2012-07-01,2012-09-30,"MANAGER, CAO HUMAN RESOURCES","26,082.74",FISCAL YEAR 2012,,,,"KRALY,ELIZABETH A"
,CHIEF ADMIN OFCR OF THE HOUSE,2012Q3,PERSONNEL COMPENSATION,,"KRAMER, STEPHEN",2012-07-01,2012-09-30,NETWORK COMMUNICATIONS SPEC,"25,044.51",FISCAL YEAR 2012,,,,"KRAMER, STEPHEN"
,CHIEF ADMIN OFCR OF THE HOUSE,2012Q3,PERSONNEL COMPENSATION,,"KREMKAU,REBECCA K",2012-07-01,2012-09-30,FINANCIAL ANALYST,"20,771.49",FISCAL YEAR 2012,,,,"KREMKAU,REBECCA K"
,CHIEF ADMIN OFCR OF THE HOUSE,2012Q3,PERSONNEL COMPENSATION,,"KUPER, KAREN",2012-07-01,2012-09-30,SPECIAL ASSISTANT/OPER SUPERVI,"24,595.50",FISCAL YEAR 2012,,,,"KUPER, KAREN"
,CHIEF ADMIN OFCR OF THE HOUSE,2012Q3,PERSONNEL COMPENSATION,,"LAGASSE, DANIEL",2012-07-01,2012-09-30,MOBILE COMM SPEC - TELEPHONY,"29,978.76",FISCAL YEAR 2012,,,,"LAGASSE, DANIEL"
,CHIEF ADMIN OFCR OF THE HOUSE,2012Q3,PERSONNEL COMPENSATION,,"LAU,DAVID E",2012-07-01,2012-09-30,SR SYSTEMS SECURITY ENGINEER,"29,853.99",FISCAL YEAR 2012,,,,"LAU,DAVID E"
,CHIEF ADMIN OFCR OF THE HOUSE,2012Q3,PERSONNEL COMPENSATION,,"LAWSON,DION A",2012-07-01,2012-09-30,PAYROLL & BENEFITS GENERALIST,"16,179.24",FISCAL YEAR 2012,,,,"LAWSON,DION A"
,CHIEF ADMIN OFCR OF THE HOUSE,2012Q3,PERSONNEL COMPENSATION,,"LEBER, DENNIS",2012-07-01,2012-09-30,SR NETWORK SYSTEMS ENGINEER,"27,437.01",FISCAL YEAR 2012,,,,"LEBER, DENNIS"
,CHIEF ADMIN OFCR OF THE HOUSE,2012Q3,PERSONNEL COMPENSATION,,"LEIBACH,WILLIAM",2012-07-01,2012-09-30,"DIRECTOR, INTERNAL CONTROLS","32,302.17",FISCAL YEAR 2012,,,,"LEIBACH,WILLIAM"
